ENTITY,COST_CENTRE,COST_CENTRE_DESCRIPTION,SERVICE,DIRECTORATE,SUBJECTIVE,SUBJECTIVE_DESCRIPTION,SUPPLIER_NAME,DESCRIPTION,VOUCHER_NUM,AMOUNT,PAYMENT_DATE,LINE_AMOUNT,PAID_AMOUNT
51,600001,Corporate Properties,Natural Resources and Assets,Infrastructure and Planning,21218,R&M - Fixed Plant - Reactive,Polartek,Polartek - To supply & fit compressor for Normandy Pool heat pump,2597055 ,"1,442.55", 04/07/2019,"1,442.55","1,731.06"
51,600001,Corporate Properties,Natural Resources and Assets,Infrastructure and Planning,22002,Electricity,British Gas Business,601209671-994270014 Carn Gwarval 26.5.19-20.6.19,2602986 ,706.95, 11/07/2019,706.95,848.34
51,600001,Corporate Properties,Natural Resources and Assets,Infrastructure and Planning,21127,R&M - Planned Lift servicing,P & P Lifts Ltd,IOS - Park House - To carry out work as per Quotation Q1933-1-03042019,2610072 ,"2,592.21", 23/07/2019,"2,592.21","3,110.65"
51,600001,Corporate Properties,Natural Resources and Assets,Infrastructure and Planning,21201,R&M - Buildings - Reactive,Wright Construction,Replacement UPVC window - IOS Museum,2611626 ,900.00, 23/07/2019,900.00,"1,080.00"
51,600001,Corporate Properties,Natural Resources and Assets,Infrastructure and Planning,43506,Professional Fees - Legal,Currie & Brown UK Ltd,Currie and Brown Museum Costings,2592007 ,"1,815.00", 25/07/2019,"1,815.00","2,178.00"
51,600001,Corporate Properties,Natural Resources and Assets,Infrastructure and Planning,31602,Air Travel,RBS Commercial Card Division,14-06-2019|6459|TRAVEL TEAM|ISLES OF SCILLY SS CO|TR21 0LJ|4411|FLIGHT 269600|IOS_NSTINSON,2611566 ,"18,406.09", 26/07/2019,171.96,"19,557.25"
51,600001,Corporate Properties,Natural Resources and Assets,Infrastructure and Planning,31602,Air Travel,RBS Commercial Card Division,21-06-2019|6459|TRAVEL TEAM|WWW.ISLEOFSCILLY-TRAVE|TR21 0LJ|4411|FLIGHT 270817|IOS_NSTINSON,2611566 ,"18,406.09", 26/07/2019,189.39,"19,557.25"
51,600001,Corporate Properties,Natural Resources and Assets,Infrastructure and Planning,31602,Air Travel,RBS Commercial Card Division,05-06-2019|6459|TRAVEL TEAM|ISLES OF SCILLY SS CO|TR21 0LJ|4411|FLIGHT AMENDMENT|,2611566 ,"18,406.09", 26/07/2019,10.00,"19,557.25"
51,600001,Corporate Properties,Natural Resources and Assets,Infrastructure and Planning,73942,Repairs,Davey & Gilbert Ltd,For investigating air source heat pump in nursery at Carn Gwaval,2613341 ,542.50, 30/07/2019,542.50,651.00
51,600001,Corporate Properties,Natural Resources and Assets,Infrastructure and Planning,21210,R&M - Electrical - Reactive,Evans Electricals,MATERIALS,2632362 ,"1,089.55", 13/08/2019,649.55,"1,001.55"
51,600001,Corporate Properties,Natural Resources and Assets,Infrastructure and Planning,21210,R&M - Electrical - Reactive,Evans Electricals,LABOUR,2632362 ,"1,089.55", 13/08/2019,440.00,"1,001.55"
51,600001,Corporate Properties,Natural Resources and Assets,Infrastructure and Planning,43608,Construction and Road Maintenance,P C Green,LABOUR,2627957 ,"7,625.00", 13/08/2019,"1,025.00","8,945.00"
51,600001,Corporate Properties,Natural Resources and Assets,Infrastructure and Planning,43608,Construction and Road Maintenance,P C Green,MATERIALS,2627957 ,"7,625.00", 13/08/2019,"6,600.00","8,945.00"
51,600001,Corporate Properties,Natural Resources and Assets,Infrastructure and Planning,43608,Construction and Road Maintenance,P C Green,PC Green Building Services - Museum Scaffolding and Fitting Acro Props,2627957 ,"7,625.00", 13/08/2019,"-7,625.00","8,945.00"
51,600001,Corporate Properties,Natural Resources and Assets,Infrastructure and Planning,43608,Construction and Road Maintenance,P C Green,PC Green Building Services - Museum Scaffolding and Fitting Acro Props,2627957 ,"7,625.00", 13/08/2019,"7,625.00","8,945.00"
51,600001,Corporate Properties,Natural Resources and Assets,Infrastructure and Planning,31602,Air Travel,RBS Commercial Card Division,25-07-2019|6459|TRAVEL TEAM|ISLES OF SCILLY SS CO|TR21 0LJ|4411|SINGLE FLIGHT FOR STEVE BENNEY -269600|IOS_NSTINSON,2639302 ,"10,452.23", 22/08/2019,85.98,"10,892.36"
51,600001,Corporate Properties,Natural Resources and Assets,Infrastructure and Planning,31602,Air Travel,RBS Commercial Card Division,28-06-2019|6459|TRAVEL TEAM|WWW.ISLEOFSCILLY-TRAVE|TR21 0LJ|4411|RETURN FLIGHTS FOR ALEX LOVERIDGE - 272080|IOS_NSTINSON,2639302 ,"10,452.23", 22/08/2019,221.82,"10,892.36"
51,600001,Corporate Properties,Natural Resources and Assets,Infrastructure and Planning,31603,Other Public Transport,RBS Commercial Card Division,28-06-2019|6459|TRAVEL TEAM|ISLES OF SCILLY SS CO|TR21 0LJ|4411|CAR PARKING FOR RICHARD OVEREND -270817|IOS_NSTINSON,2639302 ,"10,452.23", 22/08/2019,18.33,"10,892.36"
51,600001,Corporate Properties,Natural Resources and Assets,Infrastructure and Planning,21101,R&M - Buildings - Planned,Poynton Bradbury Wynter Cole Architects Ltd,PBWC - Stage 1 and 2 completed plus mileage,2641058 ,"1,333.05", 27/08/2019,"1,333.05","1,599.66"
51,600001,Corporate Properties,Natural Resources and Assets,Infrastructure and Planning,41126,Electrical Appliance testing,JP Electrical South West Ltd,J P Electrical Ltd - Wesleyan Chapel Electrical Test July 2019,2643434 ,"4,462.50", 27/08/2019,"4,462.50","5,355.00"
51,600001,Corporate Properties,Natural Resources and Assets,Infrastructure and Planning,22002,Electricity,British Gas Business,,2633862 ,850.46, 03/09/2019,850.46,"1,020.55"
51,600001,Corporate Properties,Natural Resources and Assets,Infrastructure and Planning,41304,Cleaning & Domestic Materials,The Consortium,"001003 x 12
049401 x 5
820318 x 5
027087 x 5
016162 x 40
042666 x 30 
820136 x 5",2655174 ,"1,441.10", 10/09/2019,"1,441.10","1,729.32"
51,600001,Corporate Properties,Natural Resources and Assets,Infrastructure and Planning,25003,Fire Equipment,Advanced Fire and Security South West Ltd,Advanced Fire and Security South West Ltd - Gym Survey,2664093 ,"1,949.60", 17/09/2019,"1,949.60","2,339.52"
51,600001,Corporate Properties,Natural Resources and Assets,Infrastructure and Planning,43600,Fire Risk Assessments,Steve Benney t/a Fire Risk Consulting Ltd,Steve Benney - to carry out new or reviewd FRA's at requested locations,2658528 ,"1,380.00", 17/09/2019,"1,380.00","1,656.00"
51,600001,Corporate Properties,Natural Resources and Assets,Infrastructure and Planning,43506,Professional Fees - Legal,Browne Jacobson LLP,Browne Jacobson - Professional services in connection with regulatory/construction enquiry,2658762 ,"18,789.00", 19/09/2019,"18,789.00","22,546.80"
51,600001,Corporate Properties,Natural Resources and Assets,Infrastructure and Planning,43608,Construction and Road Maintenance,P C Green,PC Green Building Services - Museum Scaffolding and Fitting Acro Props,2641037 ,"1,660.00", 19/09/2019,"1,610.00","1,982.00"
51,600001,Corporate Properties,Natural Resources and Assets,Infrastructure and Planning,43608,Construction and Road Maintenance,P C Green,PC Green Building Services - Museum Scaffolding and Fitting Acro Props,2641037 ,"1,660.00", 19/09/2019,50.00,"1,982.00"
51,600001,Corporate Properties,Natural Resources and Assets,Infrastructure and Planning,43608,Construction and Road Maintenance,P C Green,PC Green Building Services - Museum Scaffolding and Fitting Acro Props,2641037 ,"1,660.00", 19/09/2019,"-1,660.00","1,982.00"
51,600001,Corporate Properties,Natural Resources and Assets,Infrastructure and Planning,43608,Construction and Road Maintenance,P C Green,PC Green Building Services - Museum Scaffolding and Fitting Acro Props,2641037 ,"1,660.00", 19/09/2019,"1,660.00","1,982.00"
51,600001,Corporate Properties,Natural Resources and Assets,Infrastructure and Planning,11601,Agency Costs,RBS Commercial Card Division,30-07-2019|7369|CRAIG DRYDEN|TREGARTHEN'S(ST MARY'S|TR21 0PP|7011||,2670465 ,"16,790.01", 27/09/2019,158.33,"17,110.78"
51,600001,Corporate Properties,Natural Resources and Assets,Infrastructure and Planning,11601,Agency Costs,RBS Commercial Card Division,30-07-2019|7369|CRAIG DRYDEN|SURVEYMONKEY|4|7372||,2670465 ,"16,790.01", 27/09/2019,29.17,"17,110.78"
51,600001,Corporate Properties,Natural Resources and Assets,Infrastructure and Planning,11601,Agency Costs,RBS Commercial Card Division,01-08-2019|6459|TRAVEL TEAM|WWW.ISLEOFSCILLY-TRAVE|TR21 0LJ|4411|FLIGHT 278979|,2670465 ,"16,790.01", 27/09/2019,237.52,"17,110.78"
51,600001,Corporate Properties,Natural Resources and Assets,Infrastructure and Planning,11601,Agency Costs,RBS Commercial Card Division,01-08-2019|6459|TRAVEL TEAM|WWW.ISLEOFSCILLY-TRAVE|TR21 0LJ|4411|FLIGHT 278980|,2670465 ,"16,790.01", 27/09/2019,118.76,"17,110.78"
51,600001,Corporate Properties,Natural Resources and Assets,Infrastructure and Planning,11601,Agency Costs,RBS Commercial Card Division,05-08-2019|6459|TRAVEL TEAM|WWW.ISLEOFSCILLY-TRAVE|TR21 0LJ|4411|FLIGHT 279719|IOS_NSTINSON,2670465 ,"16,790.01", 27/09/2019,91.98,"17,110.78"
51,600001,Corporate Properties,Natural Resources and Assets,Infrastructure and Planning,11601,Agency Costs,RBS Commercial Card Division,06-08-2019|6459|TRAVEL TEAM|WWW.ISLEOFSCILLY-TRAVE|TR21 0LJ|4411|FLIGHT 279939|IOS_NSTINSON,2670465 ,"16,790.01", 27/09/2019,118.76,"17,110.78"
51,600001,Corporate Properties,Natural Resources and Assets,Infrastructure and Planning,11601,Agency Costs,RBS Commercial Card Division,08-08-2019|6459|TRAVEL TEAM|WWW.ISLEOFSCILLY-TRAVE|TR21 0LJ|4411|FLIGHT 280228|IOS_NSTINSON,2670465 ,"16,790.01", 27/09/2019,221.82,"17,110.78"
51,600001,Corporate Properties,Natural Resources and Assets,Infrastructure and Planning,11601,Agency Costs,RBS Commercial Card Division,12-08-2019|6459|TRAVEL TEAM|WWW.ISLEOFSCILLY-TRAVE|TR21 0LJ|4411|FLIGHT 280824|IOS_NSTINSON,2670465 ,"16,790.01", 27/09/2019,118.76,"17,110.78"
51,600001,Corporate Properties,Natural Resources and Assets,Infrastructure and Planning,11601,Agency Costs,RBS Commercial Card Division,12-08-2019|6459|TRAVEL TEAM|WWW.ISLEOFSCILLY-TRAVE|TR21 0LJ|4411|FLIGHT 280820|IOS_NSTINSON,2670465 ,"16,790.01", 27/09/2019,118.76,"17,110.78"
51,600001,Corporate Properties,Natural Resources and Assets,Infrastructure and Planning,11601,Agency Costs,RBS Commercial Card Division,12-08-2019|6459|TRAVEL TEAM|WWW.ISLEOFSCILLY-TRAVE|TR21 0LJ|4411|FLIGHT 280794|IOS_NSTINSON,2670465 ,"16,790.01", 27/09/2019,118.76,"17,110.78"
51,600001,Corporate Properties,Natural Resources and Assets,Infrastructure and Planning,11601,Agency Costs,RBS Commercial Card Division,12-08-2019|6459|TRAVEL TEAM|WWW.ISLEOFSCILLY-TRAVE|TR21 0LJ|4411|FLIGHT 280791|IOS_NSTINSON,2670465 ,"16,790.01", 27/09/2019,118.76,"17,110.78"
51,600001,Corporate Properties,Natural Resources and Assets,Infrastructure and Planning,11601,Agency Costs,RBS Commercial Card Division,12-08-2019|6459|TRAVEL TEAM|WWW.ISLEOFSCILLY-TRAVE|TR21 0LJ|4411|FLIGHT 280769|IOS_NSTINSON,2670465 ,"16,790.01", 27/09/2019,152.00,"17,110.78"
51,600001,Corporate Properties,Natural Resources and Assets,Infrastructure and Planning,11601,Agency Costs,RBS Commercial Card Division,12-08-2019|6459|TRAVEL TEAM|WWW.ISLEOFSCILLY-TRAVE|TR21 0LJ|4411|FLIGHT 281767|IOS_NSTINSON,2670465 ,"16,790.01", 27/09/2019,152.00,"17,110.78"
51,600001,Corporate Properties,Natural Resources and Assets,Infrastructure and Planning,11601,Agency Costs,RBS Commercial Card Division,12-08-2019|6459|TRAVEL TEAM|ISLES OF SCILLY SS CO|TR21 0LJ|4411|FLIGHT 279161|IOS_NSTINSON,2670465 ,"16,790.01", 27/09/2019,10.00,"17,110.78"
51,600001,Corporate Properties,Natural Resources and Assets,Infrastructure and Planning,11601,Agency Costs,RBS Commercial Card Division,13-08-2019|7369|CRAIG DRYDEN|DVLA VEHICLE TAX|SA6 7JL|9399||,2670465 ,"16,790.01", 27/09/2019,262.50,"17,110.78"
51,600001,Corporate Properties,Natural Resources and Assets,Infrastructure and Planning,11601,Agency Costs,RBS Commercial Card Division,15-08-2019|6459|TRAVEL TEAM|ISLES OF SCILLY SS CO|TR21 0LJ|4411|SCILLONIAN 281416|IOS_NSTINSON,2670465 ,"16,790.01", 27/09/2019,56.76,"17,110.78"
51,600001,Corporate Properties,Natural Resources and Assets,Infrastructure and Planning,11601,Agency Costs,RBS Commercial Card Division,15-08-2019|6459|TRAVEL TEAM|WWW.ISLEOFSCILLY-TRAVE|TR21 0LJ|4411|FLIGHT 281491|IOS_NSTINSON,2670465 ,"16,790.01", 27/09/2019,171.96,"17,110.78"
51,600001,Corporate Properties,Natural Resources and Assets,Infrastructure and Planning,11601,Agency Costs,RBS Commercial Card Division,15-08-2019|6459|TRAVEL TEAM|WWW.ISLEOFSCILLY-TRAVE|TR21 0LJ|4411|FLIGHT 281522|IOS_NSTINSON,2670465 ,"16,790.01", 27/09/2019,171.96,"17,110.78"
51,600001,Corporate Properties,Natural Resources and Assets,Infrastructure and Planning,11601,Agency Costs,RBS Commercial Card Division,19-08-2019|7369|CRAIG DRYDEN|HAMPTON INN HOTELS|EX5 2LJ|3665||,2670465 ,"16,790.01", 27/09/2019,81.75,"17,110.78"
51,600001,Corporate Properties,Natural Resources and Assets,Infrastructure and Planning,11601,Agency Costs,RBS Commercial Card Division,19-08-2019|7369|CRAIG DRYDEN|HAMPTON INN HOTELS|EX5 2LJ|3665||,2670465 ,"16,790.01", 27/09/2019,81.75,"17,110.78"
51,600001,Corporate Properties,Natural Resources and Assets,Infrastructure and Planning,11601,Agency Costs,RBS Commercial Card Division,20-08-2019|7369|CRAIG DRYDEN|TRAINLINE.COM|EC1N 2TD|4112||,2670465 ,"16,790.01", 27/09/2019,75.63,"17,110.78"
51,600001,Corporate Properties,Natural Resources and Assets,Infrastructure and Planning,11601,Agency Costs,RBS Commercial Card Division,22-08-2019|6459|TRAVEL TEAM|WWW.ISLEOFSCILLY-TRAVE|TR21 0LJ|4411|FLIGHT 282808|IOS_NSTINSON,2670465 ,"16,790.01", 27/09/2019,110.91,"17,110.78"
51,600001,Corporate Properties,Natural Resources and Assets,Infrastructure and Planning,11601,Agency Costs,RBS Commercial Card Division,23-08-2019|6459|TRAVEL TEAM|WWW.ISLEOFSCILLY-TRAVE|TR21 0LJ|4411|FLIGHT 283050|IOS_NSTINSON,2670465 ,"16,790.01", 27/09/2019,118.76,"17,110.78"
51,600001,Corporate Properties,Natural Resources and Assets,Infrastructure and Planning,31602,Air Travel,RBS Commercial Card Division,26-07-2019|6459|TRAVEL TEAM|WWW.ISLEOFSCILLY-TRAVE|TR21 0LJ|4411|DAY RETURN FLIGHT FOR MARK HARRIS - 277912|,2670465 ,"16,790.01", 27/09/2019,152.00,"17,110.78"
51,600002,Public Conveniences,Natural Resources and Assets,Infrastructure and Planning,27001,Contract Cleaning,E J & A C Stewart,E.J Stewart - Cleaning St Agnes July,2600660 ,796.25, 09/07/2019,796.25,796.25
51,600002,Public Conveniences,Natural Resources and Assets,Infrastructure and Planning,27001,Contract Cleaning,E J & A C Stewart,E.J Stewart - Cleaning St Agnes August,2627274 ,796.25, 08/08/2019,796.25,796.25
51,600002,Public Conveniences,Natural Resources and Assets,Infrastructure and Planning,27001,Contract Cleaning,E J & A C Stewart,E.J Stewart - Cleaning St Agnes - September 2019,2651572 ,796.25, 03/09/2019,796.25,796.25
51,600002,Public Conveniences,Natural Resources and Assets,Infrastructure and Planning,22002,Electricity,Edf Energy Plc,INV 6077198 Line 229,2665928 ,719.03, 20/09/2019,719.03,862.83
51,600002,Public Conveniences,Natural Resources and Assets,Infrastructure and Planning,22002,Electricity,Edf Energy Plc,INV 6242981 Line 298,2665926 ,727.08, 20/09/2019,727.08,872.49
51,600003,Commercial Property,Natural Resources and Assets,Infrastructure and Planning,43507,Professional Fees - Construction,Hamson Barron Smith Ltd,To carry out further inspection/survey at IOS Museum,2591039 ,"2,000.00", 02/07/2019,"2,000.00","2,400.00"
51,600003,Commercial Property,Natural Resources and Assets,Infrastructure and Planning,49325,Telephone Network,CTI Communications Ltd,CTi Communications PEC Phone Upgrade June 2019,2600835 ,640.00, 09/07/2019,640.00,768.00
51,600003,Commercial Property,Natural Resources and Assets,Infrastructure and Planning,43507,Professional Fees - Construction,Hamson Barron Smith Ltd,To carry out further inspection/survey at IOS Museum,2647338 ,750.00, 29/08/2019,750.00,900.00
51,600003,Commercial Property,Natural Resources and Assets,Infrastructure and Planning,25003,Fire Equipment,Advanced Fire and Security South West Ltd,Advanced South West - Museum Alarm System -costs to be split with housing,2639707 ,"6,185.24", 17/09/2019,"6,185.24","7,422.29"
51,600003,Commercial Property,Natural Resources and Assets,Infrastructure and Planning,22002,Electricity,Edf Energy Plc,INV 5920251 Line 167,2665919 ,743.05, 20/09/2019,743.05,891.66
51,600004,Coast & Flood Protection,Natural Resources and Assets,Infrastructure and Planning,21106,R&M - Environmental - Planned,Environment Agency,Environment Agency - Flood and Coastal Erosion Risk Management Levy,2613192 ,"2,744.00", 25/07/2019,"2,744.00","2,744.00"
51,600004,Coast & Flood Protection,Natural Resources and Assets,Infrastructure and Planning,28001,Maintenance of Grounds,Milestone Environmental Limited,Milestone Environmental Site Visit,2654924 ,662.00, 10/09/2019,662.00,794.40
51,600004,Coast & Flood Protection,Natural Resources and Assets,Infrastructure and Planning,28001,Maintenance of Grounds,Milestone Environmental Limited,Milestone Environmental Site Visit,2654926 ,"1,100.00", 10/09/2019,"1,100.00","1,320.00"
51,600010,Operational R & M Services,Operational Services,Infrastructure and Planning,41104,Equipment & Plant - Direct Purchase,Interpump Hydraulics UK Ltd,Hydraulic hose swaging machine including carriage,2597091 ,"2,497.50", 04/07/2019,"2,497.50","2,997.00"
51,600010,Operational R & M Services,Operational Services,Infrastructure and Planning,31102,Vehicle Repair and Maintenance,RBS Commercial Card Division,11-06-2019|7369|CRAIG DRYDEN|DVLA VEHICLE TAX|SA6 7JL|9399||,2611566 ,"18,406.09", 26/07/2019,262.50,"19,557.25"
51,600010,Operational R & M Services,Operational Services,Infrastructure and Planning,31102,Vehicle Repair and Maintenance,RBS Commercial Card Division,08-07-2019|7369|CRAIG DRYDEN|DVLA VEHICLE TAX|SA6 7JL|9399||,2639302 ,"10,452.23", 22/08/2019,262.50,"10,892.36"
51,600010,Operational R & M Services,Operational Services,Infrastructure and Planning,31102,Vehicle Repair and Maintenance,RBS Commercial Card Division,08-07-2019|7369|CRAIG DRYDEN|DVLA VEHICLE TAX|SA6 7JL|9399||,2639302 ,"10,452.23", 22/08/2019,162.50,"10,892.36"
51,600010,Operational R & M Services,Operational Services,Infrastructure and Planning,31102,Vehicle Repair and Maintenance,Sibleys Fuel & Marine Services,Sibleys Fuel and Marine Services June,2641033 ,"1,208.94", 22/08/2019,"1,208.94","1,450.72"
51,600010,Operational R & M Services,Operational Services,Infrastructure and Planning,41308,Construction Materials,Five Islands Trading Company,Operational Service: 2019-2020,2647961 ,569.50, 03/09/2019,569.50,683.40
51,600010,Operational R & M Services,Operational Services,Infrastructure and Planning,31102,Vehicle Repair and Maintenance,Sibleys Fuel & Marine Services,Sibleys Fuel and Marine Services July,2653429 ,"2,491.78", 05/09/2019,993.12,"2,841.17"
51,600010,Operational R & M Services,Operational Services,Infrastructure and Planning,31102,Vehicle Repair and Maintenance,Sibleys Fuel & Marine Services,Sibleys Fuel and Marine Services July,2653429 ,"2,491.78", 05/09/2019,"1,498.66","2,841.17"
51,600010,Operational R & M Services,Operational Services,Infrastructure and Planning,31102,Vehicle Repair and Maintenance,Sibleys Fuel & Marine Services,Sibleys Fuel and Marine Services July,2653429 ,"2,491.78", 05/09/2019,"-2,491.78","2,841.17"
51,600010,Operational R & M Services,Operational Services,Infrastructure and Planning,31102,Vehicle Repair and Maintenance,Sibleys Fuel & Marine Services,Sibleys Fuel and Marine Services July,2653429 ,"2,491.78", 05/09/2019,"2,491.78","2,841.17"
51,600010,Operational R & M Services,Operational Services,Infrastructure and Planning,31102,Vehicle Repair and Maintenance,Sibleys Fuel & Marine Services,Sibleys Fuel and Marine Services - August,2653773 ,"3,339.95", 05/09/2019,278.00,"3,966.23"
51,600010,Operational R & M Services,Operational Services,Infrastructure and Planning,31102,Vehicle Repair and Maintenance,Sibleys Fuel & Marine Services,Sibleys Fuel and Marine Services - August,2653773 ,"3,339.95", 05/09/2019,"3,061.95","3,966.23"
51,600010,Operational R & M Services,Operational Services,Infrastructure and Planning,31102,Vehicle Repair and Maintenance,Sibleys Fuel & Marine Services,Sibleys Fuel and Marine Services - August,2653773 ,"3,339.95", 05/09/2019,"-3,339.95","3,966.23"
51,600010,Operational R & M Services,Operational Services,Infrastructure and Planning,31102,Vehicle Repair and Maintenance,Sibleys Fuel & Marine Services,Sibleys Fuel and Marine Services - August,2653773 ,"3,339.95", 05/09/2019,"3,339.95","3,966.23"
51,600010,Operational R & M Services,Operational Services,Infrastructure and Planning,41308,Construction Materials,Wright Construction,Materials for Operational Services from Apr 18 to March 19 inc,2654838 ,502.81, 10/09/2019,502.81,603.37
51,600010,Operational R & M Services,Operational Services,Infrastructure and Planning,41118,Health & Safety Equipment,RBS Commercial Card Division,20-08-2019|2872|RUSSELL SCHILD|SAFELINCS|LN13 9FX|5712|FIRE EXTINGUISHER FOR OPERATIONAL SERVICES VEHICLES|,2670465 ,"16,790.01", 27/09/2019,15.89,"17,110.78"
51,600012,Highways,Operational Services,Infrastructure and Planning,43608,Construction and Road Maintenance,C.G Ground Works And General Building,Various highway/tarmac repairs,2608813 ,"2,335.00", 23/07/2019,"2,335.00","2,802.00"
51,600012,Highways,Operational Services,Infrastructure and Planning,43608,Construction and Road Maintenance,Duchy Of Cornwall,Share of cost re: Garrison Field,2627538 ,"2,523.25", 08/08/2019,"2,523.25","3,027.90"
51,600012,Highways,Operational Services,Infrastructure and Planning,41308,Construction Materials,Instarmac Group Plc,"Rapid seting cement, overbanding tape and tac coat spray",2633258 ,"2,157.36", 29/08/2019,"2,157.36","2,588.83"
51,600012,Highways,Operational Services,Infrastructure and Planning,28001,Maintenance of Grounds,C.G Ground Works And General Building,C G Ground Works - Reinstate Way Adjacent to Porthloo Terrace,2656113 ,"1,715.00", 10/09/2019,"1,450.00","2,058.00"
51,600012,Highways,Operational Services,Infrastructure and Planning,28001,Maintenance of Grounds,C.G Ground Works And General Building,C G Ground Works - Reinstate Way Adjacent to Porthloo Terrace,2656113 ,"1,715.00", 10/09/2019,265.00,"2,058.00"
51,600012,Highways,Operational Services,Infrastructure and Planning,28001,Maintenance of Grounds,C.G Ground Works And General Building,"C G Ground Works - Excavate, Prep and Reinstate Bottom of Rocky Hill Aug",2656114 ,"2,975.00", 10/09/2019,"2,600.00","3,570.00"
51,600012,Highways,Operational Services,Infrastructure and Planning,28001,Maintenance of Grounds,C.G Ground Works And General Building,"C G Ground Works - Excavate, Prep and Reinstate Bottom of Rocky Hill Aug",2656114 ,"2,975.00", 10/09/2019,375.00,"3,570.00"
51,600012,Highways,Operational Services,Infrastructure and Planning,28001,Maintenance of Grounds,Tim Dean,T Dean - Tree works CG July 19,2658785 ,650.00, 12/09/2019,650.00,650.00
51,600021,Development Management,Planning and Development,Infrastructure and Planning,45208,IT Software Support,Esri (UK) Services Ltd,ArcGIS Desktop Basic (concurrent use) Primary Maintenance,2590213 ,827.00, 02/07/2019,827.00,992.40
51,600021,Development Management,Planning and Development,Infrastructure and Planning,31602,Air Travel,RBS Commercial Card Division,18-06-2019|6459|TRAVEL TEAM|ISLES OF SCILLY SS CO|TR21 0LJ|4411|FLIGHT 270163|IOS_NSTINSON,2611566 ,"18,406.09", 26/07/2019,221.82,"19,557.25"
51,600021,Development Management,Planning and Development,Infrastructure and Planning,41101,Office Equipment,RBS Commercial Card Division,24-07-2019|7435|JOANNA EVANS|AMZNMKTPLACE|EC2A 2FA|5999||IOS_NSTINSON,2639302 ,"10,452.23", 22/08/2019,25.78,"10,892.36"
51,600021,Development Management,Planning and Development,Infrastructure and Planning,43506,Professional Fees - Legal,Cornwall Council,Section 106 Planning Obligation for 2 Harbour View Mansions,2647769 ,"5,417.60", 05/09/2019,49.00,"6,499.52"
51,600021,Development Management,Planning and Development,Infrastructure and Planning,43506,Professional Fees - Legal,Cornwall Council,Section 106 Planning Obligation for 2 Harbour View Mansions,2638318 ,"2,563.47", 17/09/2019,115.20,"3,072.16"
51,600022,Strategic Planning,Planning and Development,Infrastructure and Planning,43532,Professional Fees - Other,Understanding Data Ltd,Update to Housing Topic Paper,2610575 ,"1,300.00", 23/07/2019,"1,300.00","1,300.00"
51,600022,Strategic Planning,Planning and Development,Infrastructure and Planning,43533,Professional Fees - Property Surveys,Cornwall Council,Geophysical Survey Works on land at Ennor Castle Farm (Housing Allocation Site H3),2607073 ,"1,956.36", 06/08/2019,"1,956.36","2,347.63"
51,600022,Strategic Planning,Planning and Development,Infrastructure and Planning,43532,Professional Fees - Other,Enfusion Ltd,SA Addendum work for the CIOS,2652218 ,"1,200.00", 03/09/2019,"1,200.00","1,440.00"
51,600030,Fire & Rescue,Fire and Rescue,Infrastructure and Planning,12301,Training,Cornwall Council,Cornwall Council Pheonix Trailer Training,2602378 ,"3,000.00", 18/07/2019,"3,000.00","3,000.00"
51,600030,Fire & Rescue,Fire and Rescue,Infrastructure and Planning,31105,Vehicle Parts,RBS Commercial Card Division,28-05-2019|7393|JULIAN WRIGHT|BIG WHEELS REDRUTH|TR15 3RR|5533|OIL AND FUEL FILTERS FOR TRESCO FIRE APPLIANCE|,2611566 ,"18,406.09", 26/07/2019,19.66,"19,557.25"
51,600030,Fire & Rescue,Fire and Rescue,Infrastructure and Planning,31602,Air Travel,RBS Commercial Card Division,14-06-2019|6459|TRAVEL TEAM|ISLES OF SCILLY SS CO|TR21 0LJ|4411|FLIGHT 269597|IOS_NSTINSON,2611566 ,"18,406.09", 26/07/2019,171.96,"19,557.25"
51,600030,Fire & Rescue,Fire and Rescue,Infrastructure and Planning,31602,Air Travel,RBS Commercial Card Division,14-06-2019|6459|TRAVEL TEAM|ISLES OF SCILLY SS CO|TR21 0LJ|4411|FLIGHT 269540|IOS_NSTINSON,2611566 ,"18,406.09", 26/07/2019,332.73,"19,557.25"
51,600030,Fire & Rescue,Fire and Rescue,Infrastructure and Planning,31602,Air Travel,RBS Commercial Card Division,14-06-2019|6459|TRAVEL TEAM|ISLES OF SCILLY SS CO|TR21 0LJ|4411|FLIGHT 269540|IOS_NSTINSON,2611566 ,"18,406.09", 26/07/2019,332.73,"19,557.25"
51,600030,Fire & Rescue,Fire and Rescue,Infrastructure and Planning,31602,Air Travel,RBS Commercial Card Division,18-06-2019|6459|TRAVEL TEAM|ISLES OF SCILLY SS CO|TR21 0LJ|4411|FLIGHT 270298|IOS_NSTINSON,2611566 ,"18,406.09", 26/07/2019,109.26,"19,557.25"
51,600030,Fire & Rescue,Fire and Rescue,Infrastructure and Planning,31602,Air Travel,RBS Commercial Card Division,26-06-2019|7369|CRAIG DRYDEN|WWW.ISLEOFSCILLY-TRAVE|TR21 0LJ|4411||,2611566 ,"18,406.09", 26/07/2019,443.64,"19,557.25"
51,600030,Fire & Rescue,Fire and Rescue,Infrastructure and Planning,31602,Air Travel,RBS Commercial Card Division,31-05-2019|6459|TRAVEL TEAM|ISLES OF SCILLY SS CO|TR21 0LJ|4411|FLIGHT 266904|IOS_NSTINSON,2611566 ,"18,406.09", 26/07/2019,218.50,"19,557.25"
51,600030,Fire & Rescue,Fire and Rescue,Infrastructure and Planning,31602,Air Travel,RBS Commercial Card Division,29-05-2019|6459|TRAVEL TEAM|ISLES OF SCILLY SS CO|TR21 0LJ|4411|FLIGHT 266531|IOS_NSTINSON,2611566 ,"18,406.09", 26/07/2019,218.50,"19,557.25"
51,600030,Fire & Rescue,Fire and Rescue,Infrastructure and Planning,41118,Health & Safety Equipment,RBS Commercial Card Division,20-06-2019|2872|RUSSELL SCHILD|SAFELINCS - SAFETY|LN13 9DQ|5065|FIRE SERVICE EXTINGUISHER ADDITIONS|,2611566 ,"18,406.09", 26/07/2019,249.97,"19,557.25"
51,600030,Fire & Rescue,Fire and Rescue,Infrastructure and Planning,22001,Heating Oil,Sibleys Fuel & Marine Services,Sibleys Fuel LAFS inc Off Islands,2617598 ,"2,175.56", 30/07/2019,275.43,"2,334.56"
51,600030,Fire & Rescue,Fire and Rescue,Infrastructure and Planning,22001,Heating Oil,Sibleys Fuel & Marine Services,Sibleys Fuel LAFS inc Off Islands,2617593 ,"1,430.71", 30/07/2019,25.71,"1,519.20"
51,600030,Fire & Rescue,Fire and Rescue,Infrastructure and Planning,22001,Heating Oil,Sibleys Fuel & Marine Services,Sibleys Fuel LAFS inc Off Islands,2617593 ,"1,430.71", 30/07/2019,8.84,"1,519.20"
51,600030,Fire & Rescue,Fire and Rescue,Infrastructure and Planning,22001,Heating Oil,Sibleys Fuel & Marine Services,Sibleys Fuel LAFS inc Off Islands,2617602 ,"1,457.91", 30/07/2019,56.25,"1,555.10"
51,600030,Fire & Rescue,Fire and Rescue,Infrastructure and Planning,31102,Vehicle Repair and Maintenance,Kellands (Plant Sales) Ltd,"Kellands - Fire - cleaner, antifreeze ect",2614029 ,558.42, 30/07/2019,558.42,670.10
51,600030,Fire & Rescue,Fire and Rescue,Infrastructure and Planning,46118,Freight Costs,Isles Of Scilly Steamship Co,"01.04.18 - 31.01.19
ISLES OF SCILLY STEAMSHIP CO (FIRE FREIGHT SERVICE)",2549022 ,"1,254.77", 30/07/2019,"1,254.77","1,505.71"
51,600030,Fire & Rescue,Fire and Rescue,Infrastructure and Planning,12301,Training,Scott Health And Safety Ltd,Scott H & S LAFS BA course,2627831 ,"2,900.00", 08/08/2019,"2,900.00","3,480.00"
51,600030,Fire & Rescue,Fire and Rescue,Infrastructure and Planning,31102,Vehicle Repair and Maintenance,Steve Oates t/a Doerwheal,Steve Oates - Fire - Change Vehicle Pump St Martins,2632293 ,480.00, 13/08/2019,480.00,576.00
51,600030,Fire & Rescue,Fire and Rescue,Infrastructure and Planning,31102,Vehicle Repair and Maintenance,Steve Oates t/a Doerwheal,Retrospective PO: 1573 Labour,2632541 ,842.50, 13/08/2019,842.50,"1,011.00"
51,600030,Fire & Rescue,Fire and Rescue,Infrastructure and Planning,31102,Vehicle Repair and Maintenance,Steve Oates t/a Doerwheal,"Retrospective PO: 1574 Labour, materials, freight",2632539 ,516.20, 13/08/2019,516.20,619.44
51,600030,Fire & Rescue,Fire and Rescue,Infrastructure and Planning,31102,Vehicle Repair and Maintenance,Steve Oates t/a Doerwheal,"Retrospective PO: Remove Rear wheel, arrange carriage from St Agnes to St Mary's",2632536 ,"1,020.00", 13/08/2019,"1,020.00","1,224.00"
51,600030,Fire & Rescue,Fire and Rescue,Infrastructure and Planning,31102,Vehicle Repair and Maintenance,Steve Oates t/a Doerwheal,Steve Oates - Fire - fit lighting mast August,2638165 ,768.60, 20/08/2019,768.60,922.32
51,600030,Fire & Rescue,Fire and Rescue,Infrastructure and Planning,43532,Professional Fees - Other,Steve Oates t/a Doerwheal,Retrospective PO: Labour Fire & Rescue invoice 1581,2634581 ,724.09, 20/08/2019,724.09,868.91
51,600030,Fire & Rescue,Fire and Rescue,Infrastructure and Planning,31102,Vehicle Repair and Maintenance,Steve Oates t/a Doerwheal,Steve Oates - Fire - Annual service of Zetor Tractor and new parts July,2641125 ,589.71, 27/08/2019,589.71,707.65
51,600030,Fire & Rescue,Fire and Rescue,Infrastructure and Planning,31102,Vehicle Repair and Maintenance,Steve Oates t/a Doerwheal,Steve Oates - Fire - Pump Trailer TRAR6 St Martins Service July,2641124 ,680.00, 27/08/2019,680.00,816.00
51,600030,Fire & Rescue,Fire and Rescue,Infrastructure and Planning,11305,Fire Pension - Contributions Refund,Cornwall Council,Retrospective PO - Pension Fund - Recharge of Cost to Cornwall Pension Fund for Administration of the Fire fighters' Pension Schemes,2638229 ,"2,177.00", 29/08/2019,"2,177.00","2,177.00"
51,600030,Fire & Rescue,Fire and Rescue,Infrastructure and Planning,41118,Health & Safety Equipment,Scott Health And Safety Ltd,Scott Health and Safety - BA Spare parts,2633179 ,581.76, 05/09/2019,581.76,698.11
51,600030,Fire & Rescue,Fire and Rescue,Infrastructure and Planning,22001,Heating Oil,Sibleys Fuel & Marine Services,Sibleys Fuel LAFS inc Off Islands,2657221 ,"1,174.50", 10/09/2019,74.50,"1,409.40"
51,600030,Fire & Rescue,Fire and Rescue,Infrastructure and Planning,43532,Professional Fees - Other,Hymans Robertson LLP,Hymans Robertson - Professional fees for services provided in connection with the IOS Fire and Rescue service,2659902 ,"1,700.00", 17/09/2019,"1,700.00","2,040.00"
51,600030,Fire & Rescue,Fire and Rescue,Infrastructure and Planning,31602,Air Travel,RBS Commercial Card Division,16-08-2019|6459|TRAVEL TEAM|ISLES OF SCILLY SS CO|TR21 0LJ|4411|RETURN FLIGHTS FOR M GUY & R CARRIER - 281695|IOS_NSTINSON,2670465 ,"16,790.01", 27/09/2019,343.92,"17,110.78"
51,600030,Fire & Rescue,Fire and Rescue,Infrastructure and Planning,31602,Air Travel,RBS Commercial Card Division,16-08-2019|6459|TRAVEL TEAM|ISLES OF SCILLY SS CO|TR21 0LJ|4411|RETURN FLIGHTS FOR R WARD - 281697|IOS_NSTINSON,2670465 ,"16,790.01", 27/09/2019,171.96,"17,110.78"
51,600030,Fire & Rescue,Fire and Rescue,Infrastructure and Planning,31602,Air Travel,RBS Commercial Card Division,16-08-2019|6459|TRAVEL TEAM|ISLES OF SCILLY SS CO|TR21 0LJ|4411|RETURN FLIGHTS FOR MIKE FOSTER - 281696|IOS_NSTINSON,2670465 ,"16,790.01", 27/09/2019,171.96,"17,110.78"
51,600030,Fire & Rescue,Fire and Rescue,Infrastructure and Planning,31602,Air Travel,RBS Commercial Card Division,16-08-2019|6459|TRAVEL TEAM|ISLES OF SCILLY SS CO|TR21 0LJ|4411|RETURN FLIGHTS FOR R HOBBS & B WYPYSZYVSKI - 281699|IOS_NSTINSON,2670465 ,"16,790.01", 27/09/2019,343.92,"17,110.78"
51,600030,Fire & Rescue,Fire and Rescue,Infrastructure and Planning,31602,Air Travel,RBS Commercial Card Division,"16-08-2019|6459|TRAVEL TEAM|ISLES OF SCILLY SS CO|TR21 0LJ|4411|RETURN FLIGHTS FOR I NEAL, C HOWELLS & A HOWELLS - 281575 - PAYMENT 2|IOS_NSTINSON",2670465 ,"16,790.01", 27/09/2019,115.88,"17,110.78"
51,600030,Fire & Rescue,Fire and Rescue,Infrastructure and Planning,31602,Air Travel,RBS Commercial Card Division,"16-08-2019|6459|TRAVEL TEAM|ISLES OF SCILLY SS CO|TR21 0LJ|4411|RETURN FLIGHTS FOR I NEAL, C HOWELLS & A HOWELLS - 281575 - PART PAYMENT|IOS_NSTINSON",2670465 ,"16,790.01", 27/09/2019,400.00,"17,110.78"
51,600030,Fire & Rescue,Fire and Rescue,Infrastructure and Planning,31602,Air Travel,RBS Commercial Card Division,16-08-2019|6459|TRAVEL TEAM|ISLES OF SCILLY SS CO|TR21 0LJ|4411|RETURN FLIGHTS FOR A O'NEIL & A HULANDS - 281698|IOS_NSTINSON,2670465 ,"16,790.01", 27/09/2019,343.92,"17,110.78"
51,600030,Fire & Rescue,Fire and Rescue,Infrastructure and Planning,41101,Office Equipment,RBS Commercial Card Division,20-08-2019|7369|CRAIG DRYDEN|SAFELINCS|LN13 9FX|5712||,2670465 ,"16,790.01", 27/09/2019,15.89,"17,110.78"
51,600030,Fire & Rescue,Fire and Rescue,Infrastructure and Planning,41101,Office Equipment,RBS Commercial Card Division,27-08-2019|7369|CRAIG DRYDEN|SAFELINCS|LN13 9FX|5712||,2670465 ,"16,790.01", 27/09/2019,-15.89,"17,110.78"
51,600031,Emergency Planning,Fire and Rescue,Infrastructure and Planning,31602,Air Travel,RBS Commercial Card Division,19-08-2019|6459|TRAVEL TEAM|WWW.ISLEOFSCILLY-TRAVE|TR21 0LJ|4411|RETURN FLIGHTS FOR E KINGWELL & C DEAN - 282173|IOS_NSTINSON,2670465 ,"16,790.01", 27/09/2019,367.92,"17,110.78"
51,600032,Wholetime -2006 Scheme Fire Pension,Fire and Rescue,Infrastructure and Planning,11412,Pension Payments - Firefighters,Cornwall Council,Fire Pensions Teacher Pensions Q1 2019-20,2610003 ,"2,713.93", 01/08/2019,762.18,"2,713.93"
51,600040,Waste Collection and Operations,Waste and Recycling,Infrastructure and Planning,27011,Bin container rental,Kingfisher Direct Ltd,Order for Middlesbrough Dual Litter and Recycling Unit -160. As quoted in Proforma Number: 37238,2590794 ,"2,795.00", 02/07/2019,"2,795.00","3,354.00"
51,600040,Waste Collection and Operations,Waste and Recycling,Infrastructure and Planning,27011,Bin container rental,Kingfisher Direct Ltd,Order for Middlesbrough Dual Litter and Recycling Unit -160. As quoted in Proforma Number: 37238,2590794 ,"2,795.00", 02/07/2019,"-2,755.00","3,354.00"
51,600040,Waste Collection and Operations,Waste and Recycling,Infrastructure and Planning,27011,Bin container rental,Kingfisher Direct Ltd,Order for Middlesbrough Dual Litter and Recycling Unit -160. As quoted in Proforma Number: 37238,2590794 ,"2,795.00", 02/07/2019,"2,755.00","3,354.00"
51,600040,Waste Collection and Operations,Waste and Recycling,Infrastructure and Planning,49323,Sani Bins,Soho Commercial Ltd,4 x 1100ltr wheelie bins(2 blue2Black) with drop fronts,2591850 ,"1,116.00", 02/07/2019,"1,116.00","1,339.20"
51,600040,Waste Collection and Operations,Waste and Recycling,Infrastructure and Planning,57069,Waste Disposal Contracts - Private Contractors,Bryher Forge,Waste Contract for 2019/20- Bryher,2590856 ,900.00, 02/07/2019,900.00,900.00
51,600040,Waste Collection and Operations,Waste and Recycling,Infrastructure and Planning,12301,Training,Leppitt Associates,"Wamitab refresher for Mark Fairest, Glyn Leppitt Associates",2598097 ,975.00, 09/07/2019,975.00,"1,170.00"
51,600040,Waste Collection and Operations,Waste and Recycling,Infrastructure and Planning,42501,Protective Clothing,Essential Safety Wear Ltd,New starter M&R(nobby) full PPE and 40 boxes of disposable nitrile gloves M&R and W&R,2600671 ,450.53, 09/07/2019,450.53,540.64
51,600040,Waste Collection and Operations,Waste and Recycling,Infrastructure and Planning,46119,Haulage Costs,Island Carriers,Island Carriers - Waste/Recycling June 2019,2602508 ,"4,786.26", 11/07/2019,"4,786.26","5,743.53"
51,600040,Waste Collection and Operations,Waste and Recycling,Infrastructure and Planning,46119,Haulage Costs,Suez Recycling and Recovery UK Ltd (was Sita UK Ltd),Suez June 2019,2583201 ,438.90, 11/07/2019,438.90,526.68
51,600040,Waste Collection and Operations,Waste and Recycling,Infrastructure and Planning,46118,Freight Costs,Isles Of Scilly Travel,Isles of Scilly Travel - Waste July 2019,2604988 ,"12,166.40", 16/07/2019,"12,166.40","14,599.68"
51,600040,Waste Collection and Operations,Waste and Recycling,Infrastructure and Planning,43002,Stationery and Consumables,William Pollard & Co Ltd,5000 weighbridge tickets inc delivery from Pollards,2604054 ,659.00, 23/07/2019,659.00,790.80
51,600040,Waste Collection and Operations,Waste and Recycling,Infrastructure and Planning,46119,Haulage Costs,Suez Recycling and Recovery UK Ltd (was Sita UK Ltd),Suez July,2597480 ,"24,583.70", 25/07/2019,"24,583.70","29,500.44"
51,600040,Waste Collection and Operations,Waste and Recycling,Infrastructure and Planning,57069,Waste Disposal Contracts - Private Contractors,Bryher Forge,Waste Contract for 2019/20- Bryher,2612987 ,900.00, 25/07/2019,900.00,900.00
51,600040,Waste Collection and Operations,Waste and Recycling,Infrastructure and Planning,31105,Vehicle Parts,RBS Commercial Card Division,24-06-2019|7393|JULIAN WRIGHT|COMM VEHICLE HYDRA|DE55 2DY|5969|HYDRAULIC PUMPS FOR TWIN PACK DUSTCART|,2611566 ,"18,406.09", 26/07/2019,730.00,"19,557.25"
51,600040,Waste Collection and Operations,Waste and Recycling,Infrastructure and Planning,27005,Recycling,Wheal Alfred Metals Recycling Ltd,"Tyres sent for disposal at Wheal Alfreds Metal,",2621858 ,670.50, 01/08/2019,670.50,804.60
51,600040,Waste Collection and Operations,Waste and Recycling,Infrastructure and Planning,57069,Waste Disposal Contracts - Private Contractors,Tresco Estate,Tresco Waste Contract,2623692 ,"1,597.22", 06/08/2019,"1,597.22","1,916.66"
51,600040,Waste Collection and Operations,Waste and Recycling,Infrastructure and Planning,57069,Waste Disposal Contracts - Private Contractors,Tresco Estate,Tresco Waste Contract,2623693 ,"1,597.22", 06/08/2019,"1,597.22","1,916.66"
51,600040,Waste Collection and Operations,Waste and Recycling,Infrastructure and Planning,27003,Refuse Collection,Weir & Carmichael Ltd,Retrospective PO: Seagull Proof Sacks,2607868 ,"1,270.00", 08/08/2019,"1,270.00","1,524.00"
51,600040,Waste Collection and Operations,Waste and Recycling,Infrastructure and Planning,45208,IT Software Support,Weightron Bilanciai Ltd,Computer support from Weightron Billancai for weighbridge system for 2019/20,2627487 ,827.12, 08/08/2019,827.12,992.54
51,600040,Waste Collection and Operations,Waste and Recycling,Infrastructure and Planning,46119,Haulage Costs,Peake (Gb) Ltd,Peake GB Ltd - disposal of misc chemicals,2627723 ,"2,723.00", 08/08/2019,"2,723.00","3,267.60"
51,600040,Waste Collection and Operations,Waste and Recycling,Infrastructure and Planning,46119,Haulage Costs,Mr R F Legg,Mr R F Legg - Waste disposal St Agnes August,2629712 ,750.00, 13/08/2019,750.00,900.00
51,600040,Waste Collection and Operations,Waste and Recycling,Infrastructure and Planning,46119,Haulage Costs,Island Carriers,Island Carriers - Waste/Recycling July,2629781 ,"5,116.31", 13/08/2019,"5,116.31","6,139.60"
51,600040,Waste Collection and Operations,Waste and Recycling,Infrastructure and Planning,22501,Rent,Duchy Of Cornwall,Moorwell Depot �A�,2633304 ,"1,687.50", 15/08/2019,"1,687.50","1,687.50"
51,600040,Waste Collection and Operations,Waste and Recycling,Infrastructure and Planning,22501,Rent,Duchy Of Cornwall,Moorwell �b� Incinerator etc: 25 Mar 2019 to 28 Sep 2019,2633280 ,881.85, 15/08/2019,881.85,881.85
51,600040,Waste Collection and Operations,Waste and Recycling,Infrastructure and Planning,46118,Freight Costs,Isles Of Scilly Travel,Isles of Scilly Travel - Freight - Waste August,2633261 ,"20,363.51", 15/08/2019,"20,363.51","24,436.21"
51,600040,Waste Collection and Operations,Waste and Recycling,Infrastructure and Planning,31602,Air Travel,RBS Commercial Card Division,03-07-2019|7369|CRAIG DRYDEN|WWW.ISLEOFSCILLY-TRAVE|TR21 0LJ|4411||,2639302 ,"10,452.23", 22/08/2019,125.26,"10,892.36"
51,600040,Waste Collection and Operations,Waste and Recycling,Infrastructure and Planning,46119,Haulage Costs,Wheal Alfred Metals Recycling Ltd,Wheal Alfred Annual Purchase Order 2019,2639352 ,800.00, 22/08/2019,800.00,960.00
51,600040,Waste Collection and Operations,Waste and Recycling,Infrastructure and Planning,41305,Purchase of Waste Sacks,Smartlift Bulk Packing,422 bulk bags from Smartlift bulk packaging inc delivery,2641290 ,"1,332.10", 27/08/2019,"1,332.10","1,598.52"
51,600040,Waste Collection and Operations,Waste and Recycling,Infrastructure and Planning,43608,Construction and Road Maintenance,Jajo Automated software ltd,"Power supply enclosure to protect p/supply and PV panel inverters in main building, Jajo,",2641248 ,"5,850.00", 27/08/2019,"5,850.00","7,020.00"
51,600040,Waste Collection and Operations,Waste and Recycling,Infrastructure and Planning,46118,Freight Costs,Island Carriers,Island Carriers -  Waste / Recycling April,2641132 ,"3,421.62", 27/08/2019,"3,421.62","4,105.95"
51,600040,Waste Collection and Operations,Waste and Recycling,Infrastructure and Planning,46119,Haulage Costs,Mr R F Legg,Mr R F Legg - Waste Disposal St Agnes July,2641136 ,750.00, 27/08/2019,750.00,900.00
51,600040,Waste Collection and Operations,Waste and Recycling,Infrastructure and Planning,46119,Haulage Costs,Suez Recycling and Recovery UK Ltd (was Sita UK Ltd),Suez - Waste Disposal August,2627328 ,"26,269.80", 29/08/2019,"26,269.80","31,523.76"
51,600040,Waste Collection and Operations,Waste and Recycling,Infrastructure and Planning,46119,Haulage Costs,Viridor Waste Management Ltd,Viridor - Asbestos Skip July,2627471 ,827.50, 29/08/2019,827.50,993.00
51,600040,Waste Collection and Operations,Waste and Recycling,Infrastructure and Planning,31102,Vehicle Repair and Maintenance,Steve Oates t/a Doerwheal,Steve Oates - Waste and Recycling - AE60 FDU repairs,2653163 ,480.00, 03/09/2019,480.00,576.00
51,600040,Waste Collection and Operations,Waste and Recycling,Infrastructure and Planning,41103,Equipment - Spares,Interpump Hydraulics UK Ltd,Hydraulic hose and fittings,2648054 ,779.49, 03/09/2019,779.49,935.39
51,600040,Waste Collection and Operations,Waste and Recycling,Infrastructure and Planning,57069,Waste Disposal Contracts - Private Contractors,Bryher Forge,Waste Contract for 2019/20- Bryher,2647386 ,900.00, 03/09/2019,900.00,900.00
51,600040,Waste Collection and Operations,Waste and Recycling,Infrastructure and Planning,46119,Haulage Costs,Mr R F Legg,Mr R F Legg - Waste disposal St Agnes September,2657294 ,750.00, 10/09/2019,750.00,900.00
51,600040,Waste Collection and Operations,Waste and Recycling,Infrastructure and Planning,46119,Haulage Costs,Isles Of Scilly Travel,Isles of Scilly Travel - Waste September 2019,2658548 ,"15,208.00", 12/09/2019,"15,208.00","18,249.60"
51,600040,Waste Collection and Operations,Waste and Recycling,Infrastructure and Planning,46119,Haulage Costs,Suez Recycling and Recovery UK Ltd (was Sita UK Ltd),Suez - August Waste,2654927 ,"20,931.00", 26/09/2019,"20,931.00","25,117.20"
51,600040,Waste Collection and Operations,Waste and Recycling,Infrastructure and Planning,27003,Refuse Collection,RBS Commercial Card Division,01-08-2019|7393|JULIAN WRIGHT|POST OFFICE COUNTER|TR21 0LR|9402|POSTAGE OF ELECTRICAL PART FROM DUSTCART FOR REPAIR|,2670465 ,"16,790.01", 27/09/2019,8.70,"17,110.78"
51,600042,Waste Recycling (Code Closed),Waste and Recycling,Infrastructure and Planning,57069,Waste Disposal Contracts - Private Contractors,Tresco Estate,Tresco Waste Contract,2649484 ,"1,916.66", 03/09/2019,"1,916.66","2,299.99"
51,600050,Water & Sewerage,Operational Services,Infrastructure and Planning,46103,Hotel Expenses,Star Castle Hotel,Star Castle 31st May 1st-3rd June and 5th-8th June Richard Challis,2599264 ,437.50, 09/07/2019,437.50,525.00
51,600050,Water & Sewerage,Operational Services,Infrastructure and Planning,46103,Hotel Expenses,Star Castle Hotel,Star Castle 31st May 1st-3rd June and 5th-8th June Richard Challis,2599264 ,437.50, 09/07/2019,-525.00,525.00
51,600050,Water & Sewerage,Operational Services,Infrastructure and Planning,46103,Hotel Expenses,Star Castle Hotel,Star Castle 31st May 1st-3rd June and 5th-8th June Richard Challis,2599264 ,437.50, 09/07/2019,525.00,525.00
51,600050,Water & Sewerage,Operational Services,Infrastructure and Planning,49002,Miscellaneous Expenditure,Terran Design Systems Ltd,"9 days site visit, installation of residual current monitoring system for desal plant, testing/re-termination of plugs/sockets for intake, software/electrical re-comissioning of magflow for intake, testing remote pump, monitoring panel",2590785 ,"3,615.00", 09/07/2019,"3,615.00","4,338.00"
51,600050,Water & Sewerage,Operational Services,Infrastructure and Planning,49002,Miscellaneous Expenditure,Kirton Water Treatment Services Ltd,"6 off replacement seals and seats for duplex ball valve, fit bypass configuration using saddles and fittings, 2 days labour on site",2590158 ,"1,034.82", 09/07/2019,"1,034.82","1,241.78"
51,600050,Water & Sewerage,Operational Services,Infrastructure and Planning,49002,Miscellaneous Expenditure,Terran Design Systems Ltd,"GEM420 4G router, EWON 4005CD, directional antenna telegraph",2590781 ,"1,161.00", 09/07/2019,"1,161.00","1,393.20"
51,600050,Water & Sewerage,Operational Services,Infrastructure and Planning,49002,Miscellaneous Expenditure,Terran Design Systems Ltd,"Software - 10hr day rate, modifications to hmi webpage to show plant changes and test, subscription for SSL (Secure socket layer) remote phone access for mimic (1year)",2590783 ,"1,410.00", 09/07/2019,"1,410.00","1,692.00"
51,600050,Water & Sewerage,Operational Services,Infrastructure and Planning,49002,Miscellaneous Expenditure,Oil & Water Supplies Ltd,"15 x supapleat FFC 5mic, silicone PART NO 24PP005-40HSA 330 each",2590120 ,"4,950.00", 11/07/2019,"4,950.00","5,940.00"
51,600050,Water & Sewerage,Operational Services,Infrastructure and Planning,49002,Miscellaneous Expenditure,Oil & Water Supplies Ltd,"Supapleat FFC, 5 micron, silicone, part no 24PP005-40HSA",2603218 ,"4,950.00", 11/07/2019,"4,950.00","5,940.00"
51,600050,Water & Sewerage,Operational Services,Infrastructure and Planning,49002,Miscellaneous Expenditure,Pfs (Helston) Ltd,"Water- UPVC fittings, safety equipment, bolt-on saddles, VJ Maxifit xtra, pipe cutters, polysteel, connector kits, discharge tube, non-return valve, flange adaptor, ball lever valve, plain bushes, barrel nipple, plass4 coupling, plasson",2602446 ,"2,541.04", 11/07/2019,"2,541.04","3,049.24"
51,600050,Water & Sewerage,Operational Services,Infrastructure and Planning,49002,Miscellaneous Expenditure,Kirton Water Treatment Services Ltd,"6 off replacement seals and seats for duplex ball valve, fit bypass configuration using saddles and fittings, 2 days labour on site",2602364 ,"1,082.95", 11/07/2019,"1,082.95","1,299.54"
51,600050,Water & Sewerage,Operational Services,Infrastructure and Planning,28001,Maintenance of Grounds,C.G Ground Works And General Building,C. G Groundworks - Water leak at Atlantic Slipway July,2607150 ,597.22, 16/07/2019,597.22,716.66
51,600050,Water & Sewerage,Operational Services,Infrastructure and Planning,28001,Maintenance of Grounds,C.G Ground Works And General Building,C.G Groundworks and General Building - excavate and demolish old pit in preparation for new meter July,2607152 ,508.00, 16/07/2019,508.00,609.60
51,600050,Water & Sewerage,Operational Services,Infrastructure and Planning,49002,Miscellaneous Expenditure,C.G Ground Works And General Building,"Excavate mains water leak at Jacksons Hill, reinstate",2607085 ,"1,225.95", 16/07/2019,"1,225.95","1,471.15"
51,600050,Water & Sewerage,Operational Services,Infrastructure and Planning,49002,Miscellaneous Expenditure,C.G Ground Works And General Building,"Prepare and pour concrete pad, aggregate, cement, shutters, tractor and mixer hire, digger hire, labour",2607090 ,"2,877.59", 16/07/2019,"2,877.59","3,453.11"
51,600050,Water & Sewerage,Operational Services,Infrastructure and Planning,22002,Electricity,British Gas,INV 955487807 Line 173,2607955 ,567.44, 19/07/2019,567.44,680.92
51,600050,Water & Sewerage,Operational Services,Infrastructure and Planning,22002,Electricity,British Gas,INV 963465332 Line 182,2607962 ,"1,793.62", 19/07/2019,"1,793.62","2,152.34"
51,600050,Water & Sewerage,Operational Services,Infrastructure and Planning,22002,Electricity,British Gas,INV 962455596 Line 168,2607947 ,"5,445.03", 19/07/2019,"5,445.03","6,534.03"
51,600050,Water & Sewerage,Operational Services,Infrastructure and Planning,49002,Miscellaneous Expenditure,C.G Ground Works And General Building,"Excavate area 1m x 1m3 for required earth mat at Desalination Plant, trench area 28 mtrs for earth ribbon, reinstate",2608809 ,800.00, 23/07/2019,800.00,960.00
51,600050,Water & Sewerage,Operational Services,Infrastructure and Planning,49363,Sewage Treatment Plants,Pfs (Helston) Ltd,Float switches for Sewerage pits.,2608833 ,476.25, 23/07/2019,476.25,571.50
51,600050,Water & Sewerage,Operational Services,Infrastructure and Planning,49002,Miscellaneous Expenditure,South West Water Ltd,Analysis of water samples,2602399 ,661.23, 25/07/2019,661.23,793.48
51,600050,Water & Sewerage,Operational Services,Infrastructure and Planning,49002,Miscellaneous Expenditure,Tresco Estate,Annual boating costs for water sampling,2613214 ,823.00, 25/07/2019,8.00,823.00
51,600050,Water & Sewerage,Operational Services,Infrastructure and Planning,31602,Air Travel,RBS Commercial Card Division,20-06-2019|6459|TRAVEL TEAM|ISLES OF SCILLY SS CO|TR21 0LJ|4411|FLIGHTS FOR OLIVER BYWATERS - 270583|IOS_NSTINSON,2611566 ,"18,406.09", 26/07/2019,343.92,"19,557.25"
51,600050,Water & Sewerage,Operational Services,Infrastructure and Planning,31602,Air Travel,RBS Commercial Card Division,21-06-2019|6459|TRAVEL TEAM|ISLES OF SCILLY SS CO|TR21 0LJ|4411|FLIGHT 270756|IOS_NSTINSON,2611566 ,"18,406.09", 26/07/2019,324.42,"19,557.25"
51,600050,Water & Sewerage,Operational Services,Infrastructure and Planning,31602,Air Travel,RBS Commercial Card Division,21-06-2019|6459|TRAVEL TEAM|ISLES OF SCILLY SS CO|TR21 0LJ|4411|FLIGHTS FOR O BYWATERS - 270583|IOS_NSTINSON,2611566 ,"18,406.09", 26/07/2019,17.20,"19,557.25"
51,600050,Water & Sewerage,Operational Services,Infrastructure and Planning,49002,Miscellaneous Expenditure,Pfs (Helston) Ltd,"KTZ-411 4"" 11KW TSURUMI pump 415/3/50",2621865 ,"3,386.40", 01/08/2019,"3,386.40","4,063.68"
51,600050,Water & Sewerage,Operational Services,Infrastructure and Planning,41305,Purchase of Waste Sacks,Cromwell Polythene,"BLUE
Bag, Bottom Weld (400.00}x735.00x970.00mm
40.00mu Tint, PE Recycled, LDPE;
Printed Random, Print Position Front,1 colours,
Black ink, Design Text & Logo;
Order: 20,000 sacks",2627825 ,"2,501.94", 08/08/2019,"2,501.94","3,002.33"
51,600050,Water & Sewerage,Operational Services,Infrastructure and Planning,43609,Chemicals -Water Treatment,Oil & Water Supplies Ltd,Anti-scalent PRO-TEK R.O Plus 11 25kg drums x 32,2633200 ,"3,222.40", 13/08/2019,"3,222.40","3,866.88"
51,600050,Water & Sewerage,Operational Services,Infrastructure and Planning,49002,Miscellaneous Expenditure,Evans Electricals,MATERIALS,2632359 ,"1,848.73", 13/08/2019,"1,540.73","1,787.13"
51,600050,Water & Sewerage,Operational Services,Infrastructure and Planning,49002,Miscellaneous Expenditure,Evans Electricals,LABOUR,2632359 ,"1,848.73", 13/08/2019,308.00,"1,787.13"
51,600050,Water & Sewerage,Operational Services,Infrastructure and Planning,49002,Miscellaneous Expenditure,Oil & Water Supplies Ltd,"Desalination Plant Supapleat FFC, 5 micron, part no 24PP005-40HSA cartridge filters x 15, 330 each",2628931 ,"4,950.00", 13/08/2019,"4,950.00","5,940.00"
51,600050,Water & Sewerage,Operational Services,Infrastructure and Planning,31602,Air Travel,RBS Commercial Card Division,09-07-2019|7369|CRAIG DRYDEN|WWW.ISLEOFSCILLY-TRAVE|TR21 0LJ|4411||,2639302 ,"10,452.23", 22/08/2019,85.98,"10,892.36"
51,600050,Water & Sewerage,Operational Services,Infrastructure and Planning,43609,Chemicals -Water Treatment,Oil & Water Supplies Ltd,2 x PRO Tek Clean HR LBR Sodium Hypochlorite 250 kg drums,2639724 ,"1,020.26", 22/08/2019,"1,020.26","1,224.31"
51,600050,Water & Sewerage,Operational Services,Infrastructure and Planning,41109,R&M of Plant & Equipment,Terran Design Systems Ltd,"7 days site visit, installing and wiring intake booster pump, pre-start commissioning, plant cover",2649357 ,"2,650.00", 03/09/2019,"2,650.00","3,180.00"
51,600050,Water & Sewerage,Operational Services,Infrastructure and Planning,41109,R&M of Plant & Equipment,Terran Design Systems Ltd,"7 days site visit, installation of I/R bypass, optimisation work of booster pump startup in full automatic mode with alarms, work with Falmouth Divers on Intake storm damage and repairs",2652202 ,"2,485.00", 03/09/2019,"2,485.00","2,982.00"
51,600050,Water & Sewerage,Operational Services,Infrastructure and Planning,43609,Chemicals -Water Treatment,Oil & Water Supplies Ltd,"Water treatment chemicals - 3 x caustic soda IBC, Twaddle 60, Sodium Hydroxide, 1250 kgs, with tamper proof seals, rental at ADR, carriage",2639730 ,"4,541.00", 03/09/2019,"4,541.00","5,449.20"
51,600050,Water & Sewerage,Operational Services,Infrastructure and Planning,43609,Chemicals -Water Treatment,Oil & Water Supplies Ltd,"Uplift pallet of R.O Cleanse 24 (32 drums), carriage to depot, clean and disposal of drums.",2648540 ,418.00, 03/09/2019,418.00,501.60
51,600050,Water & Sewerage,Operational Services,Infrastructure and Planning,21101,R&M - Buildings - Planned,C.G Ground Works And General Building,C G Ground Works - Rip of old render and re render - Buzza Reservoir,2656111 ,"1,053.12", 10/09/2019,850.00,"1,263.74"
51,600050,Water & Sewerage,Operational Services,Infrastructure and Planning,21101,R&M - Buildings - Planned,C.G Ground Works And General Building,C G Ground Works - Rip of old render and re render - Buzza Reservoir,2656111 ,"1,053.12", 10/09/2019,203.12,"1,263.74"
51,600050,Water & Sewerage,Operational Services,Infrastructure and Planning,21224,R&M - Responsive Grounds maintenance,C.G Ground Works And General Building,C G Ground Works - Excavate and Reinstate Water Leak At Well Lane,2656110 ,578.40, 10/09/2019,400.00,694.08
51,600050,Water & Sewerage,Operational Services,Infrastructure and Planning,21224,R&M - Responsive Grounds maintenance,C.G Ground Works And General Building,C G Ground Works - Excavate and Reinstate Water Leak At Well Lane,2656110 ,578.40, 10/09/2019,178.40,694.08
51,600050,Water & Sewerage,Operational Services,Infrastructure and Planning,41109,R&M of Plant & Equipment,Terran Design Systems Ltd,"Completed repairs to intake system, calibrating instrumentation, assistance with cover at Desalination Plant/Water Pumping Station, car mileage, parking, 5 days site visit",2658259 ,"1,934.50", 12/09/2019,"1,934.50","2,321.40"
51,600050,Water & Sewerage,Operational Services,Infrastructure and Planning,41109,R&M of Plant & Equipment,Terran Design Systems Ltd,Design work on boreholes and borehole booster/sea pump to ensure electrical design covered section 709 of BS7671:2018. Subscription to Trimble design software and develop single line diagrams to communicate to local resources.,2664134 ,"2,100.00", 17/09/2019,"2,100.00","2,520.00"
51,600050,Water & Sewerage,Operational Services,Infrastructure and Planning,43609,Chemicals -Water Treatment,Terran Design Systems Ltd,"Commissioning booster pump, testing with commissioning engineer, testing and commissioning RCD monitoring system, assistance with site cover, seven days site visit.",2664132 ,"2,485.00", 17/09/2019,"2,485.00","2,982.00"
51,600050,Water & Sewerage,Operational Services,Infrastructure and Planning,41104,Equipment & Plant - Direct Purchase,Portreath Garden Machinery,Strimmer for Bryher water department,2666028 ,530.00, 19/09/2019,530.00,636.00
51,600050,Water & Sewerage,Operational Services,Infrastructure and Planning,41109,R&M of Plant & Equipment,Terran Design Systems Ltd,"Water Department: 
1 x 15kw Drive
1 x 24v PSU
32A Circuit Breaker
Carriage - all intake booster",2664137 ,"1,901.00", 19/09/2019,"1,901.00","2,281.20"
51,600050,Water & Sewerage,Operational Services,Infrastructure and Planning,49002,Miscellaneous Expenditure,South West Water Ltd,Annual water analysis fees from South West Water,2648014 ,804.93, 19/09/2019,804.93,965.92
51,600050,Water & Sewerage,Operational Services,Infrastructure and Planning,22002,Electricity,British Gas,INV 957488961 Line 290,2665892 ,"7,224.41", 20/09/2019,"7,224.41","8,669.29"
51,600050,Water & Sewerage,Operational Services,Infrastructure and Planning,22002,Electricity,British Gas,INV 957488963 Line 289,2665891 ,"1,556.93", 20/09/2019,"1,556.93","1,868.31"
51,600050,Water & Sewerage,Operational Services,Infrastructure and Planning,22002,Electricity,British Gas,INV 961482747 Line 272,2665841 ,781.05, 20/09/2019,781.05,937.26
51,600050,Water & Sewerage,Operational Services,Infrastructure and Planning,41109,R&M of Plant & Equipment,Oil & Water Supplies Ltd,"Supapleat FFC 5 micron, Silicone -PN 24PP005-40HSA X 15 filters",2673796 ,"4,950.00", 26/09/2019,"4,950.00","5,940.00"
51,600050,Water & Sewerage,Operational Services,Infrastructure and Planning,31602,Air Travel,RBS Commercial Card Division,27-08-2019|6459|TRAVEL TEAM|WWW.ISLEOFSCILLY-TRAVE|TR21 0LJ|4411|FLIGHT FOR R CHALLIS - 283475|IOS_NSTINSON,2670465 ,"16,790.01", 27/09/2019,85.98,"17,110.78"
51,600050,Water & Sewerage,Operational Services,Infrastructure and Planning,45302,Postal/Secure Courier,RBS Commercial Card Division,27-08-2019|7393|JULIAN WRIGHT|POST OFFICE COUNTER|TR21 0LR|9402|POSTAGE OF SEWAGE SCUSI SEAL|,2670465 ,"16,790.01", 27/09/2019,23.70,"17,110.78"
51,600060,Airport,Operational Services,Infrastructure and Planning,45210,IT Communications,Digital Navigators,Digital Navigation Airport Contract 01.04.19 - 31.03.20,2591022 ,"4,800.00", 02/07/2019,"4,800.00","4,800.00"
51,600060,Airport,Operational Services,Infrastructure and Planning,49002,Miscellaneous Expenditure,St Mary's Hall Hotel,St Mary's Hall Liz Jepson,2596439 ,"1,155.86", 04/07/2019,"1,155.86","1,387.00"
51,600060,Airport,Operational Services,Infrastructure and Planning,43534,Licences,Civil Aviation Authority,Line 181,2597020 ,715.60, 05/07/2019,715.60,715.60
51,600060,Airport,Operational Services,Infrastructure and Planning,41310,Delivery Charges,Richard Hand Haulage,R Hand Haulage Airport Freight Annual 1st Apr 2019 - 31st Mar 2020,2602358 ,"4,005.00", 09/07/2019,"4,005.00","4,806.00"
51,600060,Airport,Operational Services,Infrastructure and Planning,45103,Line Rental & Installation,Servicom (High Tech) Ltd,Servicom 1st Apr 2019 - 31st Mar 2020,2598090 ,778.16, 09/07/2019,778.16,933.78
51,600060,Airport,Operational Services,Infrastructure and Planning,45210,IT Communications,Copperchase Ltd,Copperchase 1 year MEP VCCS Support Contract,2601012 ,"3,040.00", 09/07/2019,"3,040.00","3,648.00"
51,600060,Airport,Operational Services,Infrastructure and Planning,25003,Fire Equipment,Amerex Fire International Ltd,Amerex: Firefighting equipment,2604883 ,640.90, 16/07/2019,640.90,769.08
51,600060,Airport,Operational Services,Infrastructure and Planning,49002,Miscellaneous Expenditure,Paul Lewis T/A Island Carpets,Paul Lewis/ Island Carpets flooring No.1 Bungalows,2604091 ,645.00, 16/07/2019,645.00,645.00
51,600060,Airport,Operational Services,Infrastructure and Planning,89152,Bathroom Works - CHL ENTITY 33 USE ONLY,Jewson Ltd,"Jewson bathroom supplies 3 Airport Bungalows, quote 0893/00440654",2604096 ,895.66, 18/07/2019,895.66,"1,074.79"
51,600060,Airport,Operational Services,Infrastructure and Planning,21101,R&M - Buildings - Planned,Colin McKinnon Builders,Colin Mckinnon 1 Airport Bungalows Refurb,2611451 ,"3,417.57", 23/07/2019,"3,417.57","3,417.57"
51,600060,Airport,Operational Services,Infrastructure and Planning,41104,Equipment & Plant - Direct Purchase,Dales Cornwall Ltd,Dales: Servo/Brake for Airport van,2611457 ,532.00, 23/07/2019,532.00,638.40
51,600060,Airport,Operational Services,Infrastructure and Planning,41302,Materials,David Parr Engineering,D Parr Engineering. All Airport vehicles breakdown & repair as required @ 38.00 per hr 1st April 2019 -31st March 2020,2611515 ,"1,577.00", 23/07/2019,"1,577.00","1,892.40"
51,600060,Airport,Operational Services,Infrastructure and Planning,41302,Materials,David Parr Engineering,D Parr Engineering Contract All Airport vehicles & Machinery 1st April 2019 -31st March 2020,2611459 ,"1,160.00", 23/07/2019,"1,160.00","1,392.00"
51,600060,Airport,Operational Services,Infrastructure and Planning,41302,Materials,David Parr Engineering,D Parr Engineering Contract All Airport vehicles & Machinery 1st April 2019 -31st March 2020,2611460 ,"1,160.00", 23/07/2019,"1,160.00","1,392.00"
51,600060,Airport,Operational Services,Infrastructure and Planning,31102,Vehicle Repair and Maintenance,RBS Commercial Card Division,04-06-2019|2872|RUSSELL SCHILD|ANDREW SYMONS LIMITED|EX17 1DN|8911|RIDE ON LAWN MOWER REPAIR PARTS|,2611566 ,"18,406.09", 26/07/2019,266.33,"19,557.25"
51,600060,Airport,Operational Services,Infrastructure and Planning,31105,Vehicle Parts,RBS Commercial Card Division,19-06-2019|2872|RUSSELL SCHILD|ANDREW SYMONS LIMITED|EX17 1DN|8911|MACHINERY PARTS|,2611566 ,"18,406.09", 26/07/2019,204.99,"19,557.25"
51,600060,Airport,Operational Services,Infrastructure and Planning,31602,Air Travel,RBS Commercial Card Division,13-06-2019|6459|TRAVEL TEAM|ISLES OF SCILLY SS CO|TR21 0LJ|4411|FLIGHT 268976 AMENDMENT|IOS_NSTINSON,2611566 ,"18,406.09", 26/07/2019,92.00,"19,557.25"
51,600060,Airport,Operational Services,Infrastructure and Planning,31602,Air Travel,RBS Commercial Card Division,17-06-2019|6459|TRAVEL TEAM|ISLES OF SCILLY SS CO|TR21 0LJ|4411|FLIGHT 269966|IOS_NSTINSON,2611566 ,"18,406.09", 26/07/2019,197.96,"19,557.25"
51,600060,Airport,Operational Services,Infrastructure and Planning,31602,Air Travel,RBS Commercial Card Division,04-06-2019|6459|TRAVEL TEAM|WWW.ISLEOFSCILLY-TRAVE|TR21 0LJ|4411|FLIGHT 267734|IOS_NSTINSON,2611566 ,"18,406.09", 26/07/2019,178.00,"19,557.25"
51,600060,Airport,Operational Services,Infrastructure and Planning,31602,Air Travel,RBS Commercial Card Division,28-05-2019|6459|TRAVEL TEAM|WWW.ISLEOFSCILLY-TRAVE|TR21 0LJ|4411|FLIGHT 266411|IOS_NSTINSON,2611566 ,"18,406.09", 26/07/2019,460.00,"19,557.25"
51,600060,Airport,Operational Services,Infrastructure and Planning,31602,Air Travel,RBS Commercial Card Division,11-06-2019|6459|TRAVEL TEAM|WWW.ISLEOFSCILLY-TRAVE|TR21 0LJ|4411|FLIGHT 268976|IOS_NSTINSON,2611566 ,"18,406.09", 26/07/2019,460.00,"19,557.25"
51,600060,Airport,Operational Services,Infrastructure and Planning,41101,Office Equipment,RBS Commercial Card Division,29-05-2019|2872|RUSSELL SCHILD|SMARTCARD|BN3 7GS|5044|SECURITY ID CARDS|,2611566 ,"18,406.09", 26/07/2019,117.50,"19,557.25"
51,600060,Airport,Operational Services,Infrastructure and Planning,41103,Equipment - Spares,RBS Commercial Card Division,05-06-2019|2872|RUSSELL SCHILD|AMZNMKTPLACE|EC2A 2FA|5999|AGL PARTS|,2611566 ,"18,406.09", 26/07/2019,17.46,"19,557.25"
51,600060,Airport,Operational Services,Infrastructure and Planning,41103,Equipment - Spares,RBS Commercial Card Division,06-06-2019|2872|RUSSELL SCHILD|AMZNMKTPLACE|EC2A 2FA|5999|AGL PARTS|,2611566 ,"18,406.09", 26/07/2019,8.84,"19,557.25"
51,600060,Airport,Operational Services,Infrastructure and Planning,41103,Equipment - Spares,RBS Commercial Card Division,06-06-2019|2872|RUSSELL SCHILD|AMZNMKTPLACE AMAZON.CO|0|5999|AGL SPARES|,2611566 ,"18,406.09", 26/07/2019,27.45,"19,557.25"
51,600060,Airport,Operational Services,Infrastructure and Planning,41103,Equipment - Spares,RBS Commercial Card Division,06-06-2019|2872|RUSSELL SCHILD|AMZNMKTPLACE|EC2A 2FA|5999|AGL PARTS|,2611566 ,"18,406.09", 26/07/2019,2.92,"19,557.25"
51,600060,Airport,Operational Services,Infrastructure and Planning,41103,Equipment - Spares,RBS Commercial Card Division,06-06-2019|2872|RUSSELL SCHILD|AMZNMKTPLACE|EC2A 2FA|5999|AGL PARTS|,2611566 ,"18,406.09", 26/07/2019,7.98,"19,557.25"
51,600060,Airport,Operational Services,Infrastructure and Planning,41103,Equipment - Spares,RBS Commercial Card Division,06-06-2019|2872|RUSSELL SCHILD|AMZNMKTPLACE|EC2A 2FA|5999|AGL PARTS|,2611566 ,"18,406.09", 26/07/2019,4.12,"19,557.25"
51,600060,Airport,Operational Services,Infrastructure and Planning,41103,Equipment - Spares,RBS Commercial Card Division,10-06-2019|2872|RUSSELL SCHILD|AMZNMKTPLACE|EC2A 2FA|5999|AGL PARTS|,2611566 ,"18,406.09", 26/07/2019,11.82,"19,557.25"
51,600060,Airport,Operational Services,Infrastructure and Planning,45103,Line Rental & Installation,RBS Commercial Card Division,18-06-2019|2872|RUSSELL SCHILD|BT PAY BY PHONE|DH98 1 BT|4814|CALL COSTS (34.37%)|,2611566 ,"18,406.09", 26/07/2019,17.46,"19,557.25"
51,600060,Airport,Operational Services,Infrastructure and Planning,45103,Line Rental & Installation,RBS Commercial Card Division,18-06-2019|2872|RUSSELL SCHILD|BT PAY BY PHONE|DH98 1 BT|4814|LINE RENTAL (65.63%)|,2611566 ,"18,406.09", 26/07/2019,40.00,"19,557.25"
51,600060,Airport,Operational Services,Infrastructure and Planning,22001,Heating Oil,Sibleys Fuel & Marine Services,Sibleys Airport Vehicles Fuel (Petrol&Derv) 1st Apr 2019 - 31st Mar 2020,2617598 ,"2,175.56", 30/07/2019,47.75,"2,334.56"
51,600060,Airport,Operational Services,Infrastructure and Planning,22001,Heating Oil,Sibleys Fuel & Marine Services,Sibleys Heating Oil Airport 1st Apr 2019 - 31st Mar 2020,2617598 ,"2,175.56", 30/07/2019,"1,840.76","2,334.56"
51,600060,Airport,Operational Services,Infrastructure and Planning,22001,Heating Oil,Sibleys Fuel & Marine Services,Sibleys Heating Oil Airport 1st Apr 2019 - 31st Mar 2020,2617593 ,"1,430.71", 30/07/2019,"1,292.00","1,519.20"
51,600060,Airport,Operational Services,Infrastructure and Planning,22001,Heating Oil,Sibleys Fuel & Marine Services,Sibleys Airport Vehicles Fuel (Petrol&Derv) 1st Apr 2019 - 31st Mar 2020,2617593 ,"1,430.71", 30/07/2019,33.32,"1,519.20"
51,600060,Airport,Operational Services,Infrastructure and Planning,22001,Heating Oil,Sibleys Fuel & Marine Services,Sibleys Airport Vehicles Fuel (Petrol&Derv) 1st Apr 2019 - 31st Mar 2020,2617593 ,"1,430.71", 30/07/2019,70.84,"1,519.20"
51,600060,Airport,Operational Services,Infrastructure and Planning,22001,Heating Oil,Sibleys Fuel & Marine Services,Sibleys Heating Oil Airport 1st Apr 2019 - 31st Mar 2020,2617602 ,"1,457.91", 30/07/2019,"1,296.00","1,555.10"
51,600060,Airport,Operational Services,Infrastructure and Planning,22001,Heating Oil,Sibleys Fuel & Marine Services,Sibleys Airport Vehicles Fuel (Petrol&Derv) 1st Apr 2019 - 31st Mar 2020,2617602 ,"1,457.91", 30/07/2019,105.66,"1,555.10"
51,600060,Airport,Operational Services,Infrastructure and Planning,28001,Maintenance of Grounds,Record UK,Record Uk (Doors) 1st Apr 2019 - 31st Mar 2020,2597486 ,608.00, 30/07/2019,608.00,729.60
51,600060,Airport,Operational Services,Infrastructure and Planning,41103,Equipment - Spares,Record UK,Record Doors UK,2597486 ,608.00, 30/07/2019,-608.00,729.60
51,600060,Airport,Operational Services,Infrastructure and Planning,41103,Equipment - Spares,Record UK,Record Doors UK,2597486 ,608.00, 30/07/2019,608.00,729.60
51,600060,Airport,Operational Services,Infrastructure and Planning,42503,Uniforms / Clothing,Sibleys Fuel & Marine Services,Sibleys Laundry Airport 1st Apr 2019 -31st Mar 2020,2617598 ,"2,175.56", 30/07/2019,11.62,"2,334.56"
51,600060,Airport,Operational Services,Infrastructure and Planning,49002,Miscellaneous Expenditure,Cornwall Refrigeration solutions Ltd,Cornwall Refrigeration Solutions Annual Apr 1st 2019 - 31st Mar 2020,2618014 ,"1,040.00", 30/07/2019,"1,040.00","1,248.00"
51,600060,Airport,Operational Services,Infrastructure and Planning,49002,Miscellaneous Expenditure,Cornwall Refrigeration solutions Ltd,Cornwall Refrigeration Solutions Annual Apr 1st 2019 - 31st Mar 2020,2618033 ,"1,040.00", 30/07/2019,"1,040.00","1,248.00"
51,600060,Airport,Operational Services,Infrastructure and Planning,43534,Licences,One Off Payments,Line 245,2621863 ,715.60, 02/08/2019,715.60,715.60
51,600060,Airport,Operational Services,Infrastructure and Planning,28001,Maintenance of Grounds,Cornwall Airport Limited,Grip Test Runways Airport,2627184 ,"3,750.00", 06/08/2019,"3,750.00","4,500.00"
51,600060,Airport,Operational Services,Infrastructure and Planning,46103,Hotel Expenses,Tregarthen's Hotel (Scilly) Ltd,Tregarthens 1-8th July Ms. Elizabeth Jepson. (Airport),2625902 ,435.00, 06/08/2019,435.00,522.00
51,600060,Airport,Operational Services,Infrastructure and Planning,21101,R&M - Buildings - Planned,Paul Lewis T/A Island Carpets,Paul Lewis Floor Fitting No.3 Airport Bungalows,2628862 ,831.70, 08/08/2019,831.70,831.70
51,600060,Airport,Operational Services,Infrastructure and Planning,45103,Line Rental & Installation,Servicom (High Tech) Ltd,Servicom 1st Apr 2019 - 31st Mar 2020,2627267 ,816.57, 08/08/2019,816.57,979.87
51,600060,Airport,Operational Services,Infrastructure and Planning,45206,IT Software Purchases,Joint Application Development Enterprises Ltd,Jade Bespoke Web Application Solution Development,2627555 ,"2,250.00", 08/08/2019,"2,250.00","2,700.00"
51,600060,Airport,Operational Services,Infrastructure and Planning,45210,IT Communications,Paul Fassam Geomatics,Paul Fassam Geomatics Annual Apr 1st 2019 - Mar 31st 2020,2627343 ,"4,880.00", 08/08/2019,"4,880.00","5,856.00"
51,600060,Airport,Operational Services,Infrastructure and Planning,22002,Electricity,British Gas,994270010 Line 225,2627964 ,"4,803.64", 09/08/2019,"4,803.64","5,764.36"
51,600060,Airport,Operational Services,Infrastructure and Planning,49002,Miscellaneous Expenditure,Portreath Garden Machinery,"Portreath Garden Machinery, New Strimmer",2629614 ,671.67, 13/08/2019,30.00,800.00
51,600060,Airport,Operational Services,Infrastructure and Planning,49002,Miscellaneous Expenditure,Portreath Garden Machinery,"Portreath Garden Machinery, New Strimmer",2629614 ,671.67, 13/08/2019,641.67,800.00
51,600060,Airport,Operational Services,Infrastructure and Planning,49002,Miscellaneous Expenditure,Portreath Garden Machinery,"Portreath Garden Machinery, New Strimmer",2629614 ,671.67, 13/08/2019,-671.67,800.00
51,600060,Airport,Operational Services,Infrastructure and Planning,49002,Miscellaneous Expenditure,Portreath Garden Machinery,"Portreath Garden Machinery, New Strimmer",2629614 ,671.67, 13/08/2019,671.67,800.00
51,600060,Airport,Operational Services,Infrastructure and Planning,12301,Training,TS Training Ltd,Duty crew and op services training x 5 days,2634589 ,"2,205.00", 15/08/2019,"1,102.50","2,646.00"
51,600060,Airport,Operational Services,Infrastructure and Planning,22002,Electricity,Edf Energy Plc,Electricity,2636971 ,"1,933.52", 20/08/2019,"1,933.52","2,320.23"
51,600060,Airport,Operational Services,Infrastructure and Planning,22002,Electricity,Edf Energy Plc,Electricity,2636975 ,"4,675.65", 20/08/2019,"4,675.65","5,610.78"
51,600060,Airport,Operational Services,Infrastructure and Planning,21101,R&M - Buildings - Planned,Colin McKinnon Builders,Colin Mckinnon No. 3 Airport Bungalows work.,2637156 ,"3,772.00", 22/08/2019,"3,772.00","3,772.00"
51,600060,Airport,Operational Services,Infrastructure and Planning,21101,R&M - Buildings - Planned,Wright Construction,Mark Wright Construction Building Works and Maintenance to Airport 1st April 2019 - 31st March 2020,2637340 ,"5,805.00", 22/08/2019,"5,805.00","6,966.00"
51,600060,Airport,Operational Services,Infrastructure and Planning,22002,Electricity,RBS Commercial Card Division,18-07-2019|2872|RUSSELL SCHILD|ALLPAY  BRISTOL ENERGY|BS1 6AG|8398|ELECTRICITY SUPPLY FOR VACANT BUNGALOW NO 1|,2639302 ,"10,452.23", 22/08/2019,69.13,"10,892.36"
51,600060,Airport,Operational Services,Infrastructure and Planning,22002,Electricity,Edf Energy Plc,ELECTRICITY,2640115 ,"4,206.05", 29/08/2019,"4,206.05","5,047.26"
51,600060,Airport,Operational Services,Infrastructure and Planning,25003,Fire Equipment,Perren Engineering Ltd,Perren Engineering - Nitrogen Cylinder,2647877 ,737.50, 29/08/2019,737.50,885.00
51,600060,Airport,Operational Services,Infrastructure and Planning,43534,Licences,One Off Payments,Civil Aviation Authority - Line 315,2647960 ,715.60, 30/08/2019,715.60,715.60
51,600060,Airport,Operational Services,Infrastructure and Planning,21101,R&M - Buildings - Planned,Blackwell Building Services (IoS) Ltd,Airport Bungalow Flat Roof works. Replace roof joists etc....,2654734 ,"3,337.70", 05/09/2019,"3,337.70","4,005.24"
51,600060,Airport,Operational Services,Infrastructure and Planning,45103,Line Rental & Installation,Servicom (High Tech) Ltd,Servicom 1st Apr 2019 - 31st Mar 2020,2653789 ,816.57, 05/09/2019,816.57,979.87
51,600060,Airport,Operational Services,Infrastructure and Planning,22001,Heating Oil,Sibleys Fuel & Marine Services,Sibleys Heating Oil Airport 1st Apr 2019 - 31st Mar 2020,2657216 ,"1,377.85", 10/09/2019,"1,337.22","1,452.84"
51,600060,Airport,Operational Services,Infrastructure and Planning,22001,Heating Oil,Sibleys Fuel & Marine Services,Sibleys Airport Vehicles Fuel (Petrol&Derv) 1st Apr 2019 - 31st Mar 2020,2657216 ,"1,377.85", 10/09/2019,40.63,"1,452.84"
51,600060,Airport,Operational Services,Infrastructure and Planning,22001,Heating Oil,Sibleys Fuel & Marine Services,Sibleys Heating Oil Airport 1st Apr 2019 - 31st Mar 2020,2657221 ,"1,174.50", 10/09/2019,"1,100.00","1,409.40"
51,600060,Airport,Operational Services,Infrastructure and Planning,22002,Electricity,Edf Energy Plc,ELECTRICITY,2658557 ,"1,611.98", 12/09/2019,"1,611.98","1,934.38"
51,600060,Airport,Operational Services,Infrastructure and Planning,41302,Materials,David Parr Engineering,D Parr Engineering Contract All Airport vehicles & Machinery 1st April 2019 -31st March 2020,2663901 ,"1,160.00", 17/09/2019,"1,160.00","1,392.00"
51,600060,Airport,Operational Services,Infrastructure and Planning,89403,Insurance Capital Costs,Hayward Aviation,Hayward Aviation 31st March 2019 30th March  2020 Liability Insurance.,2666768 ,"8,178.80", 24/09/2019,"8,178.80","8,178.80"
51,600060,Airport,Operational Services,Infrastructure and Planning,31602,Air Travel,RBS Commercial Card Division,01-08-2019|6459|TRAVEL TEAM|WWW.ISLEOFSCILLY-TRAVE|TR21 0LJ|4411|RETURN FLIGHTS FOR M LEE & A DUNLEAVY - 279019|,2670465 ,"16,790.01", 27/09/2019,467.00,"17,110.78"
51,600060,Airport,Operational Services,Infrastructure and Planning,31602,Air Travel,RBS Commercial Card Division,20-08-2019|6459|TRAVEL TEAM|WWW.ISLEOFSCILLY-TRAVE|TR21 0LJ|4411|RETURN FLIGHTS FOR D HOLLINGSWORTH & W SHERLOCK - 282357|IOS_NSTINSON,2670465 ,"16,790.01", 27/09/2019,250.00,"17,110.78"
51,600060,Airport,Operational Services,Infrastructure and Planning,31602,Air Travel,RBS Commercial Card Division,20-08-2019|6459|TRAVEL TEAM|WWW.ISLEOFSCILLY-TRAVE|TR21 0LJ|4411|RETURN FLIGHT FOR M SCHOLES - 282358|IOS_NSTINSON,2670465 ,"16,790.01", 27/09/2019,125.00,"17,110.78"
51,600060,Airport,Operational Services,Infrastructure and Planning,41304,Cleaning & Domestic Materials,RBS Commercial Card Division,06-08-2019|2872|RUSSELL SCHILD|AMZNMKTPLACE AMAZON.CO|EC2A 2FA|5999|AIRPORT TERMINAL CLEANING PRODUCTS|,2670465 ,"16,790.01", 27/09/2019,12.17,"17,110.78"
51,600060,Airport,Operational Services,Infrastructure and Planning,41304,Cleaning & Domestic Materials,RBS Commercial Card Division,06-08-2019|2872|RUSSELL SCHILD|AMZNMKTPLACE AMAZON.CO|EC2A 2FA|5999|AIRPORT TERMINAL CLEANING PRODUCTS|,2670465 ,"16,790.01", 27/09/2019,57.08,"17,110.78"
51,600060,Airport,Operational Services,Infrastructure and Planning,41304,Cleaning & Domestic Materials,RBS Commercial Card Division,06-08-2019|2872|RUSSELL SCHILD|AMAZON.CO.UK MH74N4QV4|L2338|5969|AIRPORT TERMINAL CLEANING PRODUCTS|,2670465 ,"16,790.01", 27/09/2019,37.07,"17,110.78"
51,600060,Airport,Operational Services,Infrastructure and Planning,41304,Cleaning & Domestic Materials,RBS Commercial Card Division,27-08-2019|2872|RUSSELL SCHILD|AMZNMKTPLACE AMAZON.CO|EC2A 2FA|5999|REFUND CLEANING PRODUCTS|,2670465 ,"16,790.01", 27/09/2019,-57.08,"17,110.78"
51,600060,Airport,Operational Services,Infrastructure and Planning,43534,Licences,RBS Commercial Card Division,31-07-2019|2872|RUSSELL SCHILD|UK CAA LICENSING|RH6 0YR|9399|ZAC PEARCE ATCO LICENCE ISSUE FROM CAA|,2670465 ,"16,790.01", 27/09/2019,"2,673.00","17,110.78"
51,600070,Infrastructure & Planning SLT,Infrastructure and Planning Management,Infrastructure and Planning,46103,Hotel Expenses,RBS Commercial Card Division,22-07-2019|7450|NICOLA STINSON|COTSWOLD HOUSE|TR11 4DF|7011||,2639302 ,"10,452.23", 22/08/2019,60.00,"10,892.36"
51,600100,Adult Social Care,Adult Social Care,Community,22501,Rent,Natalie Jones,Line 196,2608007 ,690.00, 19/07/2019,690.00,690.00
51,600100,Adult Social Care,Adult Social Care,Community,31503,Taxi and Minibus,RBS Commercial Card Division,06-06-2019|2419|AISLING KHAN|A2B TAXIS TRURO LTD|TR4 9AU|4121|TAXI TO MEETING|,2611566 ,"18,406.09", 26/07/2019,5.00,"19,557.25"
51,600100,Adult Social Care,Adult Social Care,Community,31602,Air Travel,RBS Commercial Card Division,13-06-2019|6459|TRAVEL TEAM|ISLES OF SCILLY SS CO|TR21 0LJ|4411|RETURN FLIGHTS M FULLER - 269368|IOS_NSTINSON,2611566 ,"18,406.09", 26/07/2019,169.10,"19,557.25"
51,600100,Adult Social Care,Adult Social Care,Community,31602,Air Travel,RBS Commercial Card Division,28-05-2019|6459|TRAVEL TEAM|ISLES OF SCILLY SS CO|TR21 0LJ|4411|FLIGHT REFUND 264988|IOS_NSTINSON,2611566 ,"18,406.09", 26/07/2019,-75.76,"19,557.25"
51,600100,Adult Social Care,Adult Social Care,Community,31602,Air Travel,RBS Commercial Card Division,28-05-2019|6459|TRAVEL TEAM|ISLES OF SCILLY SS CO|TR21 0LJ|4411|FLIGHT REFUND|IOS_NSTINSON,2611566 ,"18,406.09", 26/07/2019,-12.25,"19,557.25"
51,600100,Adult Social Care,Adult Social Care,Community,31602,Air Travel,RBS Commercial Card Division,10-06-2019|6459|TRAVEL TEAM|ISLES OF SCILLY SS CO|TR21 0LJ|4411|RETURN FLIGHT FOR A NICHOL - 268807|IOS_NSTINSON,2611566 ,"18,406.09", 26/07/2019,169.10,"19,557.25"
51,600100,Adult Social Care,Adult Social Care,Community,31602,Air Travel,RBS Commercial Card Division,12-06-2019|6459|TRAVEL TEAM|ISLES OF SCILLY SS CO|TR21 0LJ|4411|REFUND FOR A NICHOL - 268807|IOS_NSTINSON,2611566 ,"18,406.09", 26/07/2019,-84.55,"19,557.25"
51,600100,Adult Social Care,Adult Social Care,Community,31602,Air Travel,RBS Commercial Card Division,13-06-2019|6459|TRAVEL TEAM|ISLES OF SCILLY SS CO|TR21 0LJ|4411|RETURN FLIGHTS FOR M FULLER - 269451|IOS_NSTINSON,2611566 ,"18,406.09", 26/07/2019,169.10,"19,557.25"
51,600100,Adult Social Care,Adult Social Care,Community,46103,Hotel Expenses,RBS Commercial Card Division,13-06-2019|6517|SCOTT FULLER|PREMIER INN|TR3 6JT|3811||IOS_AKHAN,2611566 ,"18,406.09", 26/07/2019,90.83,"19,557.25"
51,600100,Adult Social Care,Adult Social Care,Community,46103,Hotel Expenses,RBS Commercial Card Division,24-06-2019|6517|SCOTT FULLER|PREMIER INN|TR27 4PN|3811||IOS_AKHAN,2611566 ,"18,406.09", 26/07/2019,99.16,"19,557.25"
51,600100,Adult Social Care,Adult Social Care,Community,46103,Hotel Expenses,RBS Commercial Card Division,28-05-2019|6517|SCOTT FULLER|MARSHAM ARMS|NR10 5NP|7011||IOS_AKHAN,2611566 ,"18,406.09", 26/07/2019,67.50,"19,557.25"
51,600100,Adult Social Care,Adult Social Care,Community,43532,Professional Fees - Other,Ms Jane Mccarthy,"Best interest Assessor, two assessments for clients, one on mainland and one on St Mary's. Estimate of 500 per assessment and 500 for travel expenses",2626284 ,505.30, 06/08/2019,505.30,505.30
51,600100,Adult Social Care,Adult Social Care,Community,22501,Rent,One Off Payments,Natalie Jones - Line 262,2629830 ,690.00, 09/08/2019,690.00,690.00
51,600100,Adult Social Care,Adult Social Care,Community,43532,Professional Fees - Other,Ms Jane Mccarthy,"Best interest Assessor, two assessments for clients, one on mainland and one on St Mary's. Estimate of 500 per assessment and 500 for travel expenses",2630459 ,"1,632.25", 13/08/2019,"1,632.25","1,632.25"
51,600100,Adult Social Care,Adult Social Care,Community,31602,Air Travel,RBS Commercial Card Division,11-07-2019|6459|TRAVEL TEAM|ISLES OF SCILLY SS CO|TR21 0LJ|4411|ADD A RETURN FLIGHT TO 274124 - A KHAN|IOS_NSTINSON,2639302 ,"10,452.23", 22/08/2019,32.78,"10,892.36"
51,600100,Adult Social Care,Adult Social Care,Community,31602,Air Travel,RBS Commercial Card Division,16-07-2019|6459|TRAVEL TEAM|WWW.ISLEOFSCILLY-TRAVE|TR21 0LJ|4411|RETURN FLIGHTS FOR A KHAN - 275909|IOS_NSTINSON,2639302 ,"10,452.23", 22/08/2019,183.96,"10,892.36"
51,600100,Adult Social Care,Adult Social Care,Community,31602,Air Travel,RBS Commercial Card Division,18-07-2019|6459|TRAVEL TEAM|ISLES OF SCILLY SS CO|TR21 0LJ|4411|PART REFUND FOR 274124 - A KHAN|IOS_NSTINSON,2639302 ,"10,452.23", 22/08/2019,-118.76,"10,892.36"
51,600100,Adult Social Care,Adult Social Care,Community,31602,Air Travel,RBS Commercial Card Division,18-07-2019|6459|TRAVEL TEAM|ISLES OF SCILLY SS CO|TR21 0LJ|4411|PART REFUND ON 274123 - M FULLER|IOS_NSTINSON,2639302 ,"10,452.23", 22/08/2019,-118.76,"10,892.36"
51,600100,Adult Social Care,Adult Social Care,Community,31602,Air Travel,RBS Commercial Card Division,01-07-2019|6459|TRAVEL TEAM|ISLES OF SCILLY SS CO|TR21 0LJ|4411|SINGLE FOR MARK FULLER - 272560|IOS_NSTINSON,2639302 ,"10,452.23", 22/08/2019,85.98,"10,892.36"
51,600100,Adult Social Care,Adult Social Care,Community,31602,Air Travel,RBS Commercial Card Division,01-07-2019|6459|TRAVEL TEAM|ISLES OF SCILLY SS CO|TR21 0LJ|4411|SINGLE FLIGHT FOR MARK FULLER - 272566|IOS_NSTINSON,2639302 ,"10,452.23", 22/08/2019,85.98,"10,892.36"
51,600100,Adult Social Care,Adult Social Care,Community,31602,Air Travel,RBS Commercial Card Division,08-07-2019|6459|TRAVEL TEAM|ISLES OF SCILLY SS CO|TR21 0LJ|4411|RETURN FLIGHTS FOR MARK FULLER - 274123|IOS_NSTINSON,2639302 ,"10,452.23", 22/08/2019,118.76,"10,892.36"
51,600100,Adult Social Care,Adult Social Care,Community,31602,Air Travel,RBS Commercial Card Division,08-07-2019|6459|TRAVEL TEAM|ISLES OF SCILLY SS CO|TR21 0LJ|4411|SINGLE FOR AISLING KAHN - 274124|IOS_NSTINSON,2639302 ,"10,452.23", 22/08/2019,85.98,"10,892.36"
51,600100,Adult Social Care,Adult Social Care,Community,31602,Air Travel,RBS Commercial Card Division,09-07-2019|6459|TRAVEL TEAM|ISLES OF SCILLY SS CO|TR21 0LJ|4411|AMENDMENT TO 274123 - MARK FULLER|IOS_NSTINSON,2639302 ,"10,452.23", 22/08/2019,23.76,"10,892.36"
51,600100,Adult Social Care,Adult Social Care,Community,31602,Air Travel,RBS Commercial Card Division,09-07-2019|6459|TRAVEL TEAM|ISLES OF SCILLY SS CO|TR21 0LJ|4411|AMENDMENT TO 274124 - A KHAN|IOS_NSTINSON,2639302 ,"10,452.23", 22/08/2019,17.20,"10,892.36"
51,600100,Adult Social Care,Adult Social Care,Community,52001,Payments to Other Local Authorities,Cornwall Council,2019 / 2020 Contribution to Cornwall and Isles of Scilly Safeguarding Adults Board,2654765 ,"3,590.00", 05/09/2019,"3,590.00","3,590.00"
51,600100,Adult Social Care,Adult Social Care,Community,43506,Professional Fees - Legal,Cornwall Council,General legal advice 19/03/2019,2638318 ,"2,563.47", 17/09/2019,48.00,"3,072.16"
51,600100,Adult Social Care,Adult Social Care,Community,22501,Rent,One Off Payments,Line 332,2666888 ,690.00, 20/09/2019,690.00,690.00
51,600100,Adult Social Care,Adult Social Care,Community,31602,Air Travel,RBS Commercial Card Division,05-08-2019|6459|TRAVEL TEAM|ISLES OF SCILLY SS CO|TR21 0LJ|4411|AMENDMENT FOR 276419 - HELEN TITE|IOS_NSTINSON,2670465 ,"16,790.01", 27/09/2019,69.86,"17,110.78"
51,600100,Adult Social Care,Adult Social Care,Community,31602,Air Travel,RBS Commercial Card Division,05-08-2019|6459|TRAVEL TEAM|ISLES OF SCILLY SS CO|TR21 0LJ|4411|RETURN FLIGHTS FOR MARK FULLER - 279695|IOS_NSTINSON,2670465 ,"16,790.01", 27/09/2019,171.96,"17,110.78"
51,600100,Adult Social Care,Adult Social Care,Community,31602,Air Travel,RBS Commercial Card Division,05-08-2019|6459|TRAVEL TEAM|ISLES OF SCILLY SS CO|TR21 0LJ|4411|AMENDMENT FOR 276418 - HELEN TITE|IOS_NSTINSON,2670465 ,"16,790.01", 27/09/2019,69.86,"17,110.78"
51,600100,Adult Social Care,Adult Social Care,Community,31602,Air Travel,RBS Commercial Card Division,27-08-2019|6459|TRAVEL TEAM|ISLES OF SCILLY SS CO|TR21 0LJ|4411|RETURN FLIGHT FOR A KHAN - 283501|IOS_NSTINSON,2670465 ,"16,790.01", 27/09/2019,183.96,"17,110.78"
51,600100,Adult Social Care,Adult Social Care,Community,31602,Air Travel,RBS Commercial Card Division,27-08-2019|6459|TRAVEL TEAM|ISLES OF SCILLY SS CO|TR21 0LJ|4411|RETURN FLIGHTS FOR LIZ MCCARTHY-LUNN - 283631|IOS_NSTINSON,2670465 ,"16,790.01", 27/09/2019,324.42,"17,110.78"
51,600101,Better Care Fund,Adult Social Care,Community,62004,Direct Payments,One Off Payments,Line 189,2597024 ,"1,056.00", 05/07/2019,"1,056.00","1,056.00"
51,600101,Better Care Fund,Adult Social Care,Community,43532,Professional Fees - Other,St Mary's Health Centre,"St. Mary's Health Centre - rehabilitation physiotherapy role 20,000.00 for 2019-2020",2604328 ,"5,000.00", 16/07/2019,"5,000.00","5,000.00"
51,600101,Better Care Fund,Adult Social Care,Community,31603,Other Public Transport,Tresco Estate,"Tresco Boats: Concessionary Fares Tickets for the period 1st April 2019 - 31st March 2020, estimate of 16,500 for the year",2607364 ,808.50, 18/07/2019,808.50,808.50
51,600101,Better Care Fund,Adult Social Care,Community,31603,Other Public Transport,Tresco Estate,"Tresco Boats: Concessionary Fares Tickets for the period 1st April 2019 - 31st March 2020, estimate of 16,500 for the year",2607455 ,605.50, 18/07/2019,605.50,605.50
51,600101,Better Care Fund,Adult Social Care,Community,47013,Grants & Conts to Other Bodies - Discretionary,Age UK Cornwall & The Isles of Scilly (Age Concern In Cornwall & The Isles of Scilly),Line 195,2607985 ,"3,375.00", 19/07/2019,"3,375.00","3,375.00"
51,600101,Better Care Fund,Adult Social Care,Community,31603,Other Public Transport,Tresco Estate,"Tresco Boats: Concessionary Fares Tickets for the period 1st April 2019 - 31st March 2020, estimate of 16,500 for the year",2628935 ,577.50, 08/08/2019,577.50,577.50
51,600101,Better Care Fund,Adult Social Care,Community,31603,Other Public Transport,Tresco Estate,"Tresco Boats: Concessionary Fares Tickets for the period 1st April 2019 - 31st March 2020, estimate of 16,500 for the year",2628935 ,577.50, 08/08/2019,-557.50,577.50
51,600101,Better Care Fund,Adult Social Care,Community,31603,Other Public Transport,Tresco Estate,"Tresco Boats: Concessionary Fares Tickets for the period 1st April 2019 - 31st March 2020, estimate of 16,500 for the year",2628935 ,577.50, 08/08/2019,557.50,577.50
51,600101,Better Care Fund,Adult Social Care,Community,47013,Grants & Conts to Other Bodies - Discretionary,One Off Payments,Age uk Line 259,2629811 ,"3,375.00", 09/08/2019,"3,375.00","3,375.00"
51,600101,Better Care Fund,Adult Social Care,Community,31603,Other Public Transport,St Mary's Boatmens Association,"St. Mary's Boatmen Association: Concessionary Fare tickets for St. Martins for the period 1st April 2019 - 31st March 2020. Tickets @ 6 each, estimate of 10,800",2633161 ,510.00, 13/08/2019,510.00,510.00
51,600101,Better Care Fund,Adult Social Care,Community,31602,Air Travel,RBS Commercial Card Division,19-07-2019|6459|TRAVEL TEAM|ISLES OF SCILLY SS CO|TR21 0LJ|4411|RETURN FLIGHTS FOR HEALTHY AGEING - 276416|IOS_NSTINSON,2639302 ,"10,452.23", 22/08/2019,443.64,"10,892.36"
51,600101,Better Care Fund,Adult Social Care,Community,31603,Other Public Transport,Tresco Estate,"Tresco Boats: Concessionary Fares Tickets for the period 1st April 2019 - 31st March 2020, estimate of 16,500 for the year",2649478 ,588.50, 03/09/2019,588.50,588.50
51,600101,Better Care Fund,Adult Social Care,Community,43504,Consultants - Management,The Core Health Consultancy t/a iCareiMove Ltd,iCareiMove Consultancy for Healthy Aging workshop training sessions from Sept 2019,2654798 ,"2,000.00", 10/09/2019,"2,000.00","2,400.00"
51,600101,Better Care Fund,Adult Social Care,Community,47013,Grants & Conts to Other Bodies - Discretionary,Age UK Cornwall & The Isles of Scilly (Age Concern In Cornwall & The Isles of Scilly),Line 328,2666885 ,"3,375.00", 20/09/2019,"3,375.00","3,375.00"
51,600102,One Public Estate_,Adult Social Care,Community,31502,Public Service Vehicle Hire,RBS Commercial Card Division,06-06-2019|2419|AISLING KHAN|A2B TAXIS TRURO LTD|TR4 9AU|4121|TAXI TO MEETING|,2611566 ,"18,406.09", 26/07/2019,9.00,"19,557.25"
51,600102,One Public Estate_,Adult Social Care,Community,31602,Air Travel,RBS Commercial Card Division,27-06-2019|6459|TRAVEL TEAM|ISLES OF SCILLY SS CO|TR21 0LJ|4411|FLIGHT 271982|IOS_NSTINSON,2611566 ,"18,406.09", 26/07/2019,184.96,"19,557.25"
51,600102,One Public Estate_,Adult Social Care,Community,31602,Air Travel,RBS Commercial Card Division,27-06-2019|6459|TRAVEL TEAM|ISLES OF SCILLY SS CO|TR21 0LJ|4411|FLIGHT 245004|IOS_NSTINSON,2611566 ,"18,406.09", 26/07/2019,35.86,"19,557.25"
51,600102,One Public Estate_,Adult Social Care,Community,31602,Air Travel,RBS Commercial Card Division,27-06-2019|6459|TRAVEL TEAM|ISLES OF SCILLY SS CO|TR21 0LJ|4411|FLIGHT 262642|IOS_NSTINSON,2611566 ,"18,406.09", 26/07/2019,12.86,"19,557.25"
51,600102,One Public Estate_,Adult Social Care,Community,31602,Air Travel,RBS Commercial Card Division,04-06-2019|6459|TRAVEL TEAM|ISLES OF SCILLY SS CO|TR21 0LJ|4411|RETURN FLIGHTS FOR H TITE & EM PRIOR - 267752|IOS_NSTINSON,2611566 ,"18,406.09", 26/07/2019,304.00,"19,557.25"
51,600102,One Public Estate_,Adult Social Care,Community,31602,Air Travel,RBS Commercial Card Division,10-06-2019|6459|TRAVEL TEAM|ISLES OF SCILLY SS CO|TR21 0LJ|4411|RETURN FLIGHT FOR C SHORE - 268728|IOS_NSTINSON,2611566 ,"18,406.09", 26/07/2019,250.86,"19,557.25"
51,600102,One Public Estate_,Adult Social Care,Community,31602,Air Travel,RBS Commercial Card Division,28-05-2019|6459|TRAVEL TEAM|ISLES OF SCILLY SS CO|TR21 0LJ|4411|FLIGHT REFUND 262954|IOS_NSTINSON,2611566 ,"18,406.09", 26/07/2019,-218.50,"19,557.25"
51,600102,One Public Estate_,Adult Social Care,Community,31602,Air Travel,RBS Commercial Card Division,12-06-2019|6459|TRAVEL TEAM|ISLES OF SCILLY SS CO|TR21 0LJ|4411|RETURN FLIGHTS FOR AISLING KING - 269216|IOS_NSTINSON,2611566 ,"18,406.09", 26/07/2019,181.10,"19,557.25"
51,600102,One Public Estate_,Adult Social Care,Community,43504,Consultants - Management,Community 1st Cornwall Ltd,"Community 1st: project management, design and C1CL (Integration Project) July 2019",2627691 ,"5,122.15", 08/08/2019,"5,122.15","6,146.58"
51,600102,One Public Estate_,Adult Social Care,Community,31503,Taxi and Minibus,RBS Commercial Card Division,01-07-2019|2419|AISLING KHAN|A2B TAXIS TRURO LTD|TR4 9AU|4121|TAXI TO MEETING|,2639302 ,"10,452.23", 22/08/2019,5.00,"10,892.36"
51,600102,One Public Estate_,Adult Social Care,Community,31503,Taxi and Minibus,RBS Commercial Card Division,01-07-2019|2419|AISLING KHAN|GWR TRURO SST|TR1 3HH|4112|TRAIN TO MEETING|,2639302 ,"10,452.23", 22/08/2019,9.50,"10,892.36"
51,600102,One Public Estate_,Adult Social Care,Community,31602,Air Travel,RBS Commercial Card Division,19-07-2019|6459|TRAVEL TEAM|ISLES OF SCILLY SS CO|TR21 0LJ|4411|RETURN FLIGHTS FOR HEALTHY LIVING - 276418|IOS_NSTINSON,2639302 ,"10,452.23", 22/08/2019,343.92,"10,892.36"
51,600102,One Public Estate_,Adult Social Care,Community,31602,Air Travel,RBS Commercial Card Division,19-07-2019|6459|TRAVEL TEAM|ISLES OF SCILLY SS CO|TR21 0LJ|4411|RETURN FLIGHTS FOR HEALTHY LIVING - 276419|IOS_NSTINSON,2639302 ,"10,452.23", 22/08/2019,343.92,"10,892.36"
51,600102,One Public Estate_,Adult Social Care,Community,31602,Air Travel,RBS Commercial Card Division,19-07-2019|6459|TRAVEL TEAM|ISLES OF SCILLY SS CO|TR21 0LJ|4411|RETURN FLIGHTS FOR HEALTHY AGEING - 276417|IOS_NSTINSON,2639302 ,"10,452.23", 22/08/2019,443.64,"10,892.36"
51,600102,One Public Estate_,Adult Social Care,Community,31602,Air Travel,RBS Commercial Card Division,22-07-2019|6459|TRAVEL TEAM|ISLES OF SCILLY SS CO|TR21 0LJ|4411|AMENDMENT FOR C SHORE - 262642|IOS_NSTINSON,2639302 ,"10,452.23", 22/08/2019,86.23,"10,892.36"
51,600102,One Public Estate_,Adult Social Care,Community,31602,Air Travel,RBS Commercial Card Division,23-07-2019|6459|TRAVEL TEAM|ISLES OF SCILLY SS CO|TR21 0LJ|4411|PART REFUND ON C SHORE - 261864|IOS_NSTINSON,2639302 ,"10,452.23", 22/08/2019,-125.43,"10,892.36"
51,600102,One Public Estate_,Adult Social Care,Community,31602,Air Travel,RBS Commercial Card Division,23-07-2019|6459|TRAVEL TEAM|ISLES OF SCILLY SS CO|TR21 0LJ|4411|50% REFUND ON C SHORE - 268728|IOS_NSTINSON,2639302 ,"10,452.23", 22/08/2019,-255.21,"10,892.36"
51,600102,One Public Estate_,Adult Social Care,Community,31602,Air Travel,RBS Commercial Card Division,24-07-2019|6459|TRAVEL TEAM|ISLES OF SCILLY SS CO|TR21 0LJ|4411|RETURN FLIGHT FOR A KHAN - 277430|IOS_NSTINSON,2639302 ,"10,452.23", 22/08/2019,183.96,"10,892.36"
51,600102,One Public Estate_,Adult Social Care,Community,31602,Air Travel,RBS Commercial Card Division,24-07-2019|6459|TRAVEL TEAM|ISLES OF SCILLY SS CO|TR21 0LJ|4411|AMENDMENT FOR 276418 - NOV|IOS_NSTINSON,2639302 ,"10,452.23", 22/08/2019,67.76,"10,892.36"
51,600102,One Public Estate_,Adult Social Care,Community,31602,Air Travel,RBS Commercial Card Division,24-07-2019|6459|TRAVEL TEAM|ISLES OF SCILLY SS CO|TR21 0LJ|4411|AMENDMENT TO 276419 - MARIE|IOS_NSTINSON,2639302 ,"10,452.23", 22/08/2019,67.76,"10,892.36"
51,600102,One Public Estate_,Adult Social Care,Community,46103,Hotel Expenses,RBS Commercial Card Division,01-07-2019|2419|AISLING KHAN|MANNINGS HOTEL|TR1 2QB|7011|OVERNIGHT ACCOMMODATION FOR OPE MEETING|,2639302 ,"10,452.23", 22/08/2019,75.00,"10,892.36"
51,600102,One Public Estate_,Adult Social Care,Community,43504,Consultants - Management,The Core Health Consultancy t/a iCareiMove Ltd,iCareiMove: consultancy services for service design for OPE project,2654798 ,"2,000.00", 10/09/2019,"2,000.00","2,400.00"
51,600102,One Public Estate_,Adult Social Care,Community,43504,Consultants - Management,The Core Health Consultancy t/a iCareiMove Ltd,iCareiMove: consultancy services for service design for OPE project,2654798 ,"2,000.00", 10/09/2019,"-2,000.00","2,400.00"
51,600102,One Public Estate_,Adult Social Care,Community,43504,Consultants - Management,Community 1st Cornwall Ltd,C1C: IOS HSC Integration Project consultancy & Design - Invoice 10874 dated 11-Sept-19,2664035 ,"8,783.16", 17/09/2019,"8,783.16","10,539.79"
51,600102,One Public Estate_,Adult Social Care,Community,31602,Air Travel,RBS Commercial Card Division,06-08-2019|6459|TRAVEL TEAM|ISLES OF SCILLY SS CO|TR21 0LJ|4411|PART REFUND ON JUSTIN CUNNINGHAM - 254003|IOS_NSTINSON,2670465 ,"16,790.01", 27/09/2019,-256.50,"17,110.78"
51,600103,Short and Long Term Support 18-64,Adult Social Care,Community,57053,Independent Schools - Private Contractors,One Off Payments,Line 186,2597028 ,"6,691.40", 05/07/2019,"6,691.40","6,691.40"
51,600103,Short and Long Term Support 18-64,Adult Social Care,Community,57053,Independent Schools - Private Contractors,One Off Payments,Autism West Midlands - Line 241,2621841 ,"6,691.40", 02/08/2019,"6,691.40","6,691.40"
51,600103,Short and Long Term Support 18-64,Adult Social Care,Community,62004,Direct Payments,One Off Payments,A Holwill Line 249,2621826 ,"1,056.00", 02/08/2019,"1,056.00","1,056.00"
51,600103,Short and Long Term Support 18-64,Adult Social Care,Community,46111,Other Expense Reimbursements,S F & LA Morris,"Reimbursement of car hire and fuel costs for Carer to collect client at Christmas, easter and summer 2018-19",2634129 ,500.00, 20/08/2019,500.00,500.00
51,600103,Short and Long Term Support 18-64,Adult Social Care,Community,52006,Fees - Students,Mr & Mrs A Holwill,Contingency fund for college fees that have increased.,2641291 ,"1,000.00", 27/08/2019,"1,000.00","1,000.00"
51,600103,Short and Long Term Support 18-64,Adult Social Care,Community,57053,Independent Schools - Private Contractors,One Off Payments,Autism West Midlands Line 307,2647915 ,"6,691.40", 30/08/2019,"6,691.40","6,691.40"
51,600103,Short and Long Term Support 18-64,Adult Social Care,Community,62004,Direct Payments,One Off Payments,A Holwill Line 311,2647910 ,"1,056.00", 30/08/2019,"1,056.00","1,056.00"
51,600104,Short and Long Term Support 65,Adult Social Care,Community,57066,Independent Meals at Home - Private Contractors,Cornwall Partnership NHS Foundation Trust,"Meals on Wheels: Provision by Cornwall Partnership NHS FT, for the period 1st April 2019 - 31st March 2020, estimate of 900 pm before tax",2583186 ,"1,312.00", 04/07/2019,"1,312.00","1,574.40"
51,600104,Short and Long Term Support 65,Adult Social Care,Community,57093,Residential Care (Long Stay) - Health,N Notaro Home Ltd Campania Care Home,"Notaro Care Home Fees for client 5770 from the 1st April 2019 - 31st March 2020, 52 weeks @ 830..00 per week",2608732 ,"3,675.71", 18/07/2019,"3,675.71","3,675.71"
51,600104,Short and Long Term Support 65,Adult Social Care,Community,57066,Independent Meals at Home - Private Contractors,Cornwall Partnership NHS Foundation Trust,"Meals on Wheels: Provision by Cornwall Partnership NHS FT, for the period 1st April 2019 - 31st March 2020, estimate of 900 pm before tax",2607447 ,"1,184.00", 01/08/2019,"1,184.00","1,420.80"
51,600104,Short and Long Term Support 65,Adult Social Care,Community,57093,Residential Care (Long Stay) - Health,N Notaro Home Ltd Campania Care Home,"Notaro Care Home Fees for client 5770 from the 1st April 2019 - 31st March 2020, 52 weeks @ 830..00 per week",2636988 ,"3,675.71", 20/08/2019,"3,675.71","3,675.71"
51,600104,Short and Long Term Support 65,Adult Social Care,Community,57066,Independent Meals at Home - Private Contractors,Cornwall Partnership NHS Foundation Trust,"Meals on Wheels: Provision by Cornwall Partnership NHS FT, for the period 1st April 2019 - 31st March 2020, estimate of 900 pm before tax",2633159 ,"1,348.00", 03/09/2019,"1,348.00","1,617.60"
51,600104,Short and Long Term Support 65,Adult Social Care,Community,46106,External Legal Exps,Cornwall Council,Legal Services for Client ref 5770,2647769 ,"5,417.60", 05/09/2019,"1,450.40","6,499.52"
51,600104,Short and Long Term Support 65,Adult Social Care,Community,46106,External Legal Exps,Cornwall Council,Legal Services for Client ref 5770,2638318 ,"2,563.47", 17/09/2019,902.40,"3,072.16"
51,600104,Short and Long Term Support 65,Adult Social Care,Community,57093,Residential Care (Long Stay) - Health,N Notaro Home Ltd Campania Care Home,"Notaro Care Home Fees for client 5770 from the 1st April 2019 - 31st March 2020, 52 weeks @ 830..00 per week",2665992 ,"3,557.14", 24/09/2019,"3,557.14","3,557.14"
51,600105,Park House,Adult Social Care,Community,49002,Miscellaneous Expenditure,Tresco Estate,"Tresco Boats: Concessionary Fares Tickets for the period 1st April 2019 - 31st March 2020, estimate of 16,500 for the year",2607364 ,808.50, 18/07/2019,808.50,808.50
51,600105,Park House,Adult Social Care,Community,49002,Miscellaneous Expenditure,Tresco Estate,"Tresco Boats: Concessionary Fares Tickets for the period 1st April 2019 - 31st March 2020, estimate of 16,500 for the year",2607364 ,808.50, 18/07/2019,-808.50,808.50
51,600105,Park House,Adult Social Care,Community,22501,Rent,One Off Payments,Line 197,2608026 ,600.00, 19/07/2019,600.00,600.00
51,600105,Park House,Adult Social Care,Community,22501,Rent,Scillonian Holdings Ltd,lINE 213,2608034 ,550.00, 19/07/2019,550.00,550.00
51,600105,Park House,Adult Social Care,Community,41304,Cleaning & Domestic Materials,Protec Healthcare LLP,Protec: health supplies ordered July for Park House,2610463 ,708.19, 23/07/2019,708.19,849.83
51,600105,Park House,Adult Social Care,Community,31602,Air Travel,RBS Commercial Card Division,30-05-2019|6459|TRAVEL TEAM|ISLES OF SCILLY SS CO|TR21 0LJ|4411|REFUND FOR C SCHWARZ -|IOS_NSTINSON,2611566 ,"18,406.09", 26/07/2019,-169.10,"19,557.25"
51,600105,Park House,Adult Social Care,Community,41115,First Aid Equipment,RBS Commercial Card Division,26-06-2019|6517|SCOTT FULLER|AMZNMKTPLACE|EC2A 2FA|5999||IOS_AKHAN,2611566 ,"18,406.09", 26/07/2019,20.82,"19,557.25"
51,600105,Park House,Adult Social Care,Community,22501,Rent,One Off Payments,Alan Hartwell - Line 263,2629833 ,600.00, 09/08/2019,600.00,600.00
51,600105,Park House,Adult Social Care,Community,12301,Training,RBS Commercial Card Division,23-07-2019|6517|SCOTT FULLER|HIGHSPEEDTRAINING.CO.U|LS29 8JZ|8244||,2639302 ,"10,452.23", 22/08/2019,48.00,"10,892.36"
51,600105,Park House,Adult Social Care,Community,22501,Rent,Scillonian Holdings Ltd,Line No.282,2639777 ,550.00, 22/08/2019,550.00,550.00
51,600105,Park House,Adult Social Care,Community,42503,Uniforms / Clothing,RBS Commercial Card Division,10-07-2019|6517|SCOTT FULLER|AMZNMKTPLACE AMAZON.CO|EC2A 2FA|5999||,2639302 ,"10,452.23", 22/08/2019,18.58,"10,892.36"
51,600105,Park House,Adult Social Care,Community,21116,R&M - Other - Planned,Shearwater Construction Ltd,Materials,2643323 ,"1,520.00", 27/08/2019,695.00,"1,659.00"
51,600105,Park House,Adult Social Care,Community,21116,R&M - Other - Planned,Shearwater Construction Ltd,Labour,2643323 ,"1,520.00", 27/08/2019,825.00,"1,659.00"
51,600105,Park House,Adult Social Care,Community,21116,R&M - Other - Planned,Shearwater Construction Ltd,Shearwater Construction: kitchen works for Park House,2643323 ,"1,520.00", 27/08/2019,"-1,520.00","1,659.00"
51,600105,Park House,Adult Social Care,Community,21116,R&M - Other - Planned,Shearwater Construction Ltd,Shearwater Construction: kitchen works for Park House,2643323 ,"1,520.00", 27/08/2019,"1,520.00","1,659.00"
51,600105,Park House,Adult Social Care,Community,21126,R&M - Planned legionella testing,Davey & Gilbert Ltd,Davey and Gilbert - Legionella Park house Aug 19,2649477 ,477.20, 03/09/2019,477.20,572.64
51,600105,Park House,Adult Social Care,Community,22501,Rent,Scillonian Holdings Ltd,Line 341,2666894 ,550.00, 20/09/2019,550.00,550.00
51,600105,Park House,Adult Social Care,Community,22501,Rent,One Off Payments,Line 333,2666892 ,600.00, 20/09/2019,600.00,600.00
51,600105,Park House,Adult Social Care,Community,41304,Cleaning & Domestic Materials,Protec Healthcare LLP,"Protec: ordered 9-9-19, document 75146",2673735 ,516.42, 26/09/2019,516.42,619.70
51,600110,Post 16 Youth Services,Childrens Services,Community,31602,Air Travel,RBS Commercial Card Division,18-06-2019|6459|TRAVEL TEAM|ISLES OF SCILLY SS CO|TR21 0LJ|4411|RETURN FLIGHT FOR M WILTON - 270192|IOS_NSTINSON,2611566 ,"18,406.09", 26/07/2019,125.26,"19,557.25"
51,600110,Post 16 Youth Services,Childrens Services,Community,31602,Air Travel,RBS Commercial Card Division,12-06-2019|6459|TRAVEL TEAM|ISLES OF SCILLY SS CO|TR21 0LJ|4411|RETURN FLIGHT FOR MARIE WILTON - 269218|IOS_NSTINSON,2611566 ,"18,406.09", 26/07/2019,175.60,"19,557.25"
51,600110,Post 16 Youth Services,Childrens Services,Community,31602,Air Travel,RBS Commercial Card Division,23-07-2019|6459|TRAVEL TEAM|WWW.ISLEOFSCILLY-TRAVE|TR21 0LJ|4411|RETURN FLIGHTS FOR M WILTON - 277185|IOS_NSTINSON,2639302 ,"10,452.23", 22/08/2019,111.39,"10,892.36"
51,600111,Universal Youth Services,Childrens Services,Community,31602,Air Travel,RBS Commercial Card Division,15-07-2019|6459|TRAVEL TEAM|WWW.ISLEOFSCILLY-TRAVE|TR21 0LJ|4411|RETURN FLIGHTS FOR L DEAN - 275696|IOS_NSTINSON,2639302 ,"10,452.23", 22/08/2019,195.94,"10,892.36"
51,600111,Universal Youth Services,Childrens Services,Community,31602,Air Travel,RBS Commercial Card Division,15-07-2019|6459|TRAVEL TEAM|WWW.ISLEOFSCILLY-TRAVE|TR21 0LJ|4411|RETURN FLIGHTS FOR L DEAN - 275701|IOS_NSTINSON,2639302 ,"10,452.23", 22/08/2019,166.86,"10,892.36"
51,600113,Early Year Provision,Childrens Services,Community,47001,Grants & Conts to Other Bodies - Non Discretionary,Leading Edge Academies Partnership (Five Islands),EY Grant Non Discretionary,2598052 ,"12,709.80", 04/07/2019,"12,709.80","12,709.80"
51,600113,Early Year Provision,Childrens Services,Community,47001,Grants & Conts to Other Bodies - Non Discretionary,Mrs H V Glenn,EY GRANT NON DISCRETIONARY / EY GRANT DISCRETIONARY,2597034 ,"1,025.31", 04/07/2019,600.30,"1,025.31"
51,600113,Early Year Provision,Childrens Services,Community,47001,Grants & Conts to Other Bodies - Non Discretionary,Leading Edge Academies Partnership (Five Islands),EY Grant Non Discretionary,2597047 ,"10,336.20", 04/07/2019,"10,336.20","10,336.20"
51,600113,Early Year Provision,Childrens Services,Community,47013,Grants & Conts to Other Bodies - Discretionary,Mrs H V Glenn,EY GRANT NON DISCRETIONARY / EY GRANT DISCRETIONARY,2597034 ,"1,025.31", 04/07/2019,425.01,"1,025.31"
51,600113,Early Year Provision,Childrens Services,Community,47013,Grants & Conts to Other Bodies - Discretionary,Mrs T Wallace,EY Grant discretionary,2597043 ,605.71, 04/07/2019,605.71,605.71
51,600113,Early Year Provision,Childrens Services,Community,47001,Grants & Conts to Other Bodies - Non Discretionary,Katt Hennessey,DISCRETIONARY EY FUNDING NON DISCRETIONARY,2597002 ,"1,281.24", 09/07/2019,515.20,"1,281.24"
51,600113,Early Year Provision,Childrens Services,Community,47013,Grants & Conts to Other Bodies - Discretionary,Katt Hennessey,DISCRETIONARY EY FUNDING NON DISCRETIONARY,2597002 ,"1,281.24", 09/07/2019,766.04,"1,281.24"
51,600113,Early Year Provision,Childrens Services,Community,31603,Other Public Transport,Tresco Estate,Tresco Boats Inv 54351- EYs Access May-June 19,2621035 ,"2,528.00", 30/07/2019,"2,528.00","2,528.00"
51,600113,Early Year Provision,Childrens Services,Community,31603,Other Public Transport,Tresco Estate,Tresco Boating Inv 54222 EYS April -May 2019,2620978 ,"1,630.00", 30/07/2019,"1,630.00","1,630.00"
51,600113,Early Year Provision,Childrens Services,Community,31603,Other Public Transport,Tresco Estate,Tresco Boat Services- Inv 54474 EYs July 19,2630414 ,"2,350.00", 13/08/2019,"2,350.00","2,350.00"
51,600113,Early Year Provision,Childrens Services,Community,47001,Grants & Conts to Other Bodies - Non Discretionary,Mrs H V Glenn,EY Grant non discretionary,2636992 ,653.20, 20/08/2019,653.20,653.20
51,600113,Early Year Provision,Childrens Services,Community,31603,Other Public Transport,Tresco Estate,Tresco Boats_ EYS July 22-Aug-12-19,2651065 ,"1,013.00", 03/09/2019,"1,013.00","1,013.00"
51,600113,Early Year Provision,Childrens Services,Community,47013,Grants & Conts to Other Bodies - Discretionary,Mrs T Wallace, EY Grant discretionary,2648473 ,585.35, 03/09/2019,585.35,585.35
51,600113,Early Year Provision,Childrens Services,Community,28001,Maintenance of Grounds,Redlynch Leisure Installations Ltd,Lappset at Redlynch Play Park Equipment,2654791 ,"4,451.00", 05/09/2019,"4,451.00","5,341.20"
51,600113,Early Year Provision,Childrens Services,Community,47001,Grants & Conts to Other Bodies - Non Discretionary,Cherry Blossom Childcare,EY Grant non discretionary,2657119 ,"1,308.70", 10/09/2019,"1,308.70","1,308.70"
51,600113,Early Year Provision,Childrens Services,Community,47001,Grants & Conts to Other Bodies - Non Discretionary,Cherry Blossom Childcare,EY Grant non discretionary,2668490 ,630.16, 24/09/2019,558.90,630.16
51,600113,Early Year Provision,Childrens Services,Community,47013,Grants & Conts to Other Bodies - Discretionary,Cherry Blossom Childcare,,2668490 ,630.16, 24/09/2019,71.26,630.16
51,600115,Children Centres,Childrens Services,Community,21236,R&M - Playgrounds - Reactive,Pernic Forge,Works on Garrison Playpark,2658732 ,"7,584.00", 17/09/2019,"7,584.00","9,100.80"
51,600117,Five Island School,Childrens Services,Community,43505,Consultants - Other,Mr Jb Hurr,J Hurr Education Consultant Inv 1004,2611437 ,800.00, 23/07/2019,800.00,800.00
51,600117,Five Island School,Childrens Services,Community,11411,Pension Payments,Cornwall Council,Fire Pensions Teacher Pensions Q1 2019-20,2610003 ,"2,713.93", 01/08/2019,"1,951.75","2,713.93"
51,600117,Five Island School,Childrens Services,Community,43506,Professional Fees - Legal,Cornwall Council,Re Legal Services and Support for Five Islands School re MUGA Pitch,2647769 ,"5,417.60", 05/09/2019,19.60,"6,499.52"
51,600117,Five Island School,Childrens Services,Community,43506,Professional Fees - Legal,Cornwall Council,Re Legal Services and Support for Five Islands School re MUGA Pitch,2638318 ,"2,563.47", 17/09/2019,19.20,"3,072.16"
51,600120,Post 16 Travel and Accommodation Grant,Childrens Services,Community,47016,Accomodation Grants,Mrs C Hicks,2018-19 Post 16 Grant A6 Hicks A,2606271 ,992.56, 18/07/2019,852.66,992.56
51,600120,Post 16 Travel and Accommodation Grant,Childrens Services,Community,47017,Travel Grant,Mrs C Hicks, 2018-19 Post 16 Grant T6 Hicks A,2606271 ,992.56, 18/07/2019,100.00,992.56
51,600120,Post 16 Travel and Accommodation Grant,Childrens Services,Community,47017,Travel Grant,Mrs C Hicks," , 2018-19 Post 16 Grant T5 Hicks A",2606271 ,992.56, 18/07/2019,39.90,992.56
51,600120,Post 16 Travel and Accommodation Grant,Childrens Services,Community,47016,Accomodation Grants,Mr J Badcock,2019-20 Post 16 Grant A1 Badcock E,2633244 ,"1,705.33", 22/08/2019,"1,705.33","1,705.33"
51,600120,Post 16 Travel and Accommodation Grant,Childrens Services,Community,47016,Accomodation Grants,Helen Pearce,2019-20 Post 16 Grant A1 Austin J,2633257 ,"1,705.33", 22/08/2019,"1,705.33","1,705.33"
51,600120,Post 16 Travel and Accommodation Grant,Childrens Services,Community,47016,Accomodation Grants,Mrs Jenni Hale,2019-20 Post 16 Grant A1  L Dawes,2633295 ,"1,705.33", 22/08/2019,"1,705.33","1,705.33"
51,600120,Post 16 Travel and Accommodation Grant,Childrens Services,Community,47016,Accomodation Grants,Ms E Driscoll,2019-20 Post 16 Grant A1 Driscoll Johnson M,2633237 ,852.66, 22/08/2019,852.66,852.66
51,600120,Post 16 Travel and Accommodation Grant,Childrens Services,Community,47016,Accomodation Grants,Diana Mompoloki,2019-20 Post 16 Grant A1 Mompoloki K,2633242 ,852.66, 22/08/2019,852.66,852.66
51,600120,Post 16 Travel and Accommodation Grant,Childrens Services,Community,47016,Accomodation Grants,Mrs G Ferguson,2019-20 Post 16 Grant A1 Asten L,2633300 ,852.66, 22/08/2019,852.66,852.66
51,600120,Post 16 Travel and Accommodation Grant,Childrens Services,Community,47016,Accomodation Grants,Mrs C Hicks,2019-20 Post 16 Grant Hicks A,2633268 ,852.66, 22/08/2019,852.66,852.66
51,600120,Post 16 Travel and Accommodation Grant,Childrens Services,Community,47016,Accomodation Grants,Mr Matthew Honeychurch,2019-20 Post 16 Grant Jesenko J,2633224 ,852.66, 22/08/2019,852.66,852.66
51,600120,Post 16 Travel and Accommodation Grant,Childrens Services,Community,47016,Accomodation Grants,Mr & Mrs A Gilbert,2019-20 Post 16 Grant A1 Gilbert S,2633229 ,852.66, 22/08/2019,852.66,852.66
51,600120,Post 16 Travel and Accommodation Grant,Childrens Services,Community,47016,Accomodation Grants,Mrs Shirley Graham,2019-20 Post 16 Grant A1 Graham C,2633225 ,852.66, 22/08/2019,852.66,852.66
51,600120,Post 16 Travel and Accommodation Grant,Childrens Services,Community,47016,Accomodation Grants,Mr J B & Mrs T C Smith,2019-20 Post 16 Grant A1 Smith A,2633220 ,852.66, 22/08/2019,852.66,852.66
51,600120,Post 16 Travel and Accommodation Grant,Childrens Services,Community,47016,Accomodation Grants,Nicholas Gould,2019-20 Post 16 Grant A1 Gould S,2633282 ,852.66, 22/08/2019,852.66,852.66
51,600120,Post 16 Travel and Accommodation Grant,Childrens Services,Community,47016,Accomodation Grants,Mrs Jo Hathway,2019-20 Post 16 Grant A1 Hathway J,2633252 ,852.66, 22/08/2019,852.66,852.66
51,600120,Post 16 Travel and Accommodation Grant,Childrens Services,Community,47016,Accomodation Grants,Mrs Zoe Julian,2019-20 Post 16 Grant A1 Julian R,2633285 ,"1,705.33", 22/08/2019,"1,705.33","1,705.33"
51,600120,Post 16 Travel and Accommodation Grant,Childrens Services,Community,47016,Accomodation Grants,A Pender,2019-20 POST 16 GRANT A1 C PENDER FRAZER,2633265 ,852.66, 22/08/2019,852.66,852.66
51,600120,Post 16 Travel and Accommodation Grant,Childrens Services,Community,47016,Accomodation Grants,Sarah Jenkins,2019-20 Post 16 Grant Jenkins S,2633247 ,852.66, 22/08/2019,852.66,852.66
51,600120,Post 16 Travel and Accommodation Grant,Childrens Services,Community,47016,Accomodation Grants,Mrs Samantha Jane Oakes,2019-20 Post 16 Grant A1 Oakes T,2633277 ,852.66, 22/08/2019,852.66,852.66
51,600120,Post 16 Travel and Accommodation Grant,Childrens Services,Community,47016,Accomodation Grants,R Thornton,2019-20 Post 16 grant A1 Underwood I,2640018 ,852.66, 22/08/2019,852.66,852.66
51,600120,Post 16 Travel and Accommodation Grant,Childrens Services,Community,47016,Accomodation Grants,Tamasin Bridge,2019-20 Post 16 Grant A1 Chuter D,2633263 ,"1,705.33", 22/08/2019,"1,705.33","1,705.33"
51,600120,Post 16 Travel and Accommodation Grant,Childrens Services,Community,47016,Accomodation Grants,Mr Piers Lewin,2019-20 Post 16 Grant A1 Lewin L,2633248 ,"1,705.33", 22/08/2019,"1,705.33","1,705.33"
51,600120,Post 16 Travel and Accommodation Grant,Childrens Services,Community,47016,Accomodation Grants,Michelle Morel,2019-20 Post 16 Grant A1 Morel M,2640123 ,"1,705.33", 22/08/2019,"1,705.33","1,705.33"
51,600120,Post 16 Travel and Accommodation Grant,Childrens Services,Community,47016,Accomodation Grants,M G Smalley,2019-20 Post 16 Grant A1 Smalley C,2633266 ,852.66, 22/08/2019,852.66,852.66
51,600120,Post 16 Travel and Accommodation Grant,Childrens Services,Community,47016,Accomodation Grants,Mr Gary Thomas,2019-20 Post 16 Grant A1 Thomas J,2648015 ,852.66, 03/09/2019,852.66,852.66
51,600120,Post 16 Travel and Accommodation Grant,Childrens Services,Community,47016,Accomodation Grants,Mrs S Twynham,2019-20 Post 16 Grant A1 Twynham S,2647356 ,852.66, 03/09/2019,852.66,852.66
51,600120,Post 16 Travel and Accommodation Grant,Childrens Services,Community,47016,Accomodation Grants,Mrs Aisling Khan,2019-20 Post 16 Grant A1 Hick Z,2654834 ,"1,705.33", 10/09/2019,"1,705.33","1,705.33"
51,600120,Post 16 Travel and Accommodation Grant,Childrens Services,Community,47016,Accomodation Grants,Mr Philip C Spence,2019-20 Post 16 Grant A1 Spence M,2658702 ,852.66, 17/09/2019,852.66,852.66
51,600120,Post 16 Travel and Accommodation Grant,Childrens Services,Community,47016,Accomodation Grants,Neil Moorton,2020-19 Post 16 Grant A1 Moorton E,2665875 ,852.66, 19/09/2019,852.66,852.66
51,600120,Post 16 Travel and Accommodation Grant,Childrens Services,Community,31602,Air Travel,RBS Commercial Card Division,26-07-2019|6459|TRAVEL TEAM|WWW.ISLEOFSCILLY-TRAVE|TR21 0LJ|4411|RETURN FLIGHT FOR R THOMAS - 277868|,2670465 ,"16,790.01", 27/09/2019,130.76,"17,110.78"
51,600120,Post 16 Travel and Accommodation Grant,Childrens Services,Community,31602,Air Travel,RBS Commercial Card Division,26-07-2019|6459|TRAVEL TEAM|WWW.ISLEOFSCILLY-TRAVE|TR21 0LJ|4411|RETURN FLIGHT FOR R THOMAS - 277864|,2670465 ,"16,790.01", 27/09/2019,130.76,"17,110.78"
51,600120,Post 16 Travel and Accommodation Grant,Childrens Services,Community,31602,Air Travel,RBS Commercial Card Division,26-07-2019|6459|TRAVEL TEAM|WWW.ISLEOFSCILLY-TRAVE|TR21 0LJ|4411|RETURN FLIGHT FOR R THOMAS - 277860|,2670465 ,"16,790.01", 27/09/2019,130.76,"17,110.78"
51,600120,Post 16 Travel and Accommodation Grant,Childrens Services,Community,31602,Air Travel,RBS Commercial Card Division,26-07-2019|6459|TRAVEL TEAM|WWW.ISLEOFSCILLY-TRAVE|TR21 0LJ|4411|RETURN FLIGHT FOR R THOMAS - 277857|,2670465 ,"16,790.01", 27/09/2019,130.76,"17,110.78"
51,600121,Home to School Transport,Childrens Services,Community,31603,Other Public Transport,Leading Edge Academies Partnership (Five Islands),HtS Boating -Five Island Academy Student  Sept 18-June 19,2603839 ,"1,660.00", 11/07/2019,"1,660.00","1,660.00"
51,600121,Home to School Transport,Childrens Services,Community,31603,Other Public Transport,Tresco Estate,Tresco Boats- Inv 54219 Home to School Transport April-May 2019,2620990 ,"2,850.00", 30/07/2019,"2,850.00","2,850.00"
51,600121,Home to School Transport,Childrens Services,Community,31603,Other Public Transport,Tresco Estate,Tresco Boats-Home to School Travel Inv 54347,2621042 ,"3,050.00", 01/08/2019,"3,050.00","3,050.00"
51,600121,Home to School Transport,Childrens Services,Community,31603,Other Public Transport,Tresco Estate,"Tresco Boat Services Inv 54471
HtS July 19",2630420 ,"2,950.00", 13/08/2019,"2,950.00","2,950.00"
51,600121,Home to School Transport,Childrens Services,Community,31603,Other Public Transport,Tresco Estate,Tresco Boats Home to Sch Boating Inv July 22-26 -19,2651058 ,850.00, 03/09/2019,850.00,850.00
51,600122,Children Services Staff Costs,Childrens Services,Community,43532,Professional Fees - Other,Tozers,"Tozers Solicitors FIS INV 26430
30/4/19",2602978 ,500.00, 11/07/2019,500.00,600.00
51,600122,Children Services Staff Costs,Childrens Services,Community,31503,Taxi and Minibus,RBS Commercial Card Division,07-06-2019|2419|AISLING KHAN|A2B TAXIS TRURO LTD|TR4 9AU|4121|TAXI TO AIRPORT AFTER MEETINGS TO AVOID POOR WEATHER AND BEING STRANDED ON MAINLAND FOR 2 DAYS|,2611566 ,"18,406.09", 26/07/2019,85.00,"19,557.25"
51,600122,Children Services Staff Costs,Childrens Services,Community,46103,Hotel Expenses,RBS Commercial Card Division,07-06-2019|2419|AISLING KHAN|MANNINGS HOTEL|TR1 2QB|7011|OVERNIGHT ACCOMMODATION FOR MEETING|,2611566 ,"18,406.09", 26/07/2019,75.00,"19,557.25"
51,600122,Children Services Staff Costs,Childrens Services,Community,43506,Professional Fees - Legal,Cornwall Council,Legal Services Jan and Feb 2019 re Children's Services Staff Costs,2638318 ,"2,563.47", 17/09/2019,19.20,"3,072.16"
51,600122,Children Services Staff Costs,Childrens Services,Community,43506,Professional Fees - Legal,Cornwall Council,Legal Services Jan and Feb 2019 re Children's Services Staff Costs,2638318 ,"2,563.47", 17/09/2019,-20.00,"3,072.16"
51,600122,Children Services Staff Costs,Childrens Services,Community,43506,Professional Fees - Legal,Cornwall Council,Legal Services Jan and Feb 2019 re Children's Services Staff Costs,2638318 ,"2,563.47", 17/09/2019,20.00,"3,072.16"
51,600123,High Need SEND,Childrens Services,Community,47001,Grants & Conts to Other Bodies - Non Discretionary,Leading Edge Academies Partnership (Five Islands),SEND Top Up High Needs,2611433 ,"15,519.63", 25/07/2019,"15,519.63","15,519.63"
51,600124,SEND Development,Childrens Services,Community,31602,Air Travel,RBS Commercial Card Division,14-06-2019|6459|TRAVEL TEAM|ISLES OF SCILLY SS CO|TR21 0LJ|4411|RETURN FLIGHT FOR R FEATHERSTONE - 269601|IOS_NSTINSON,2611566 ,"18,406.09", 26/07/2019,171.96,"19,557.25"
51,600124,SEND Development,Childrens Services,Community,31602,Air Travel,RBS Commercial Card Division,14-06-2019|6459|TRAVEL TEAM|ISLES OF SCILLY SS CO|TR21 0LJ|4411|RETURN FLIGHT FOR T SMITH - 269602|IOS_NSTINSON,2611566 ,"18,406.09", 26/07/2019,177.96,"19,557.25"
51,600124,SEND Development,Childrens Services,Community,31602,Air Travel,RBS Commercial Card Division,14-06-2019|6459|TRAVEL TEAM|ISLES OF SCILLY SS CO|TR21 0LJ|4411|RETURN FLIGHT FOR J MAWER - 269604|IOS_NSTINSON,2611566 ,"18,406.09", 26/07/2019,171.96,"19,557.25"
51,600124,SEND Development,Childrens Services,Community,31602,Air Travel,RBS Commercial Card Division,28-05-2019|6459|TRAVEL TEAM|ISLES OF SCILLY SS CO|TR21 0LJ|4411|FLIGHT 266352|IOS_NSTINSON,2611566 ,"18,406.09", 26/07/2019,130.76,"19,557.25"
51,600124,SEND Development,Childrens Services,Community,31603,Other Public Transport,RBS Commercial Card Division,14-06-2019|6459|TRAVEL TEAM|ISLES OF SCILLY SS CO|TR21 0LJ|4411|BUS TRANSPORT FOR J MAWER - 269604|IOS_NSTINSON,2611566 ,"18,406.09", 26/07/2019,6.00,"19,557.25"
51,600124,SEND Development,Childrens Services,Community,46103,Hotel Expenses,RBS Commercial Card Division,19-06-2019|7435|JOANNA EVANS|PREMIER INN|TA1 2DU|3811||IOS_NSTINSON,2611566 ,"18,406.09", 26/07/2019,96.67,"19,557.25"
51,600124,SEND Development,Childrens Services,Community,46103,Hotel Expenses,RBS Commercial Card Division,19-06-2019|7435|JOANNA EVANS|PREMIER INN|PL31 2AR|3811||IOS_NSTINSON,2611566 ,"18,406.09", 26/07/2019,95.00,"19,557.25"
51,600124,SEND Development,Childrens Services,Community,31602,Air Travel,RBS Commercial Card Division,11-07-2019|6459|TRAVEL TEAM|WWW.ISLEOFSCILLY-TRAVE|TR21 0LJ|4411|RETURN FLIGHTS FOR R LAWLER - 274934|IOS_NSTINSON,2639302 ,"10,452.23", 22/08/2019,221.82,"10,892.36"
51,600124,SEND Development,Childrens Services,Community,31602,Air Travel,RBS Commercial Card Division,23-07-2019|6459|TRAVEL TEAM|ISLES OF SCILLY SS CO|TR21 0LJ|4411|RETURN FLIGHTS FOR R LAWLER - 277207|IOS_NSTINSON,2639302 ,"10,452.23", 22/08/2019,300.00,"10,892.36"
51,600124,SEND Development,Childrens Services,Community,31602,Air Travel,RBS Commercial Card Division,23-07-2019|6459|TRAVEL TEAM|ISLES OF SCILLY SS CO|TR21 0LJ|4411|RETURN FLIGHTS FOR R LAWLER - 277207|IOS_NSTINSON,2639302 ,"10,452.23", 22/08/2019,205.86,"10,892.36"
51,600126,School Development,Childrens Services,Community,25001,Fixtures and Fittings (attached to building only),RBS Commercial Card Division,18-07-2019|7427|LYNN PLUMMER|ARGOS DIRECT|MK92NW|5310||,2639302 ,"10,452.23", 22/08/2019,358.32,"10,892.36"
51,600126,School Development,Childrens Services,Community,25001,Fixtures and Fittings (attached to building only),RBS Commercial Card Division,18-07-2019|7427|LYNN PLUMMER|ARGOS DIRECT|MK92NW|5310||,2639302 ,"10,452.23", 22/08/2019,45.79,"10,892.36"
51,600126,School Development,Childrens Services,Community,25001,Fixtures and Fittings (attached to building only),RBS Commercial Card Division,18-07-2019|7427|LYNN PLUMMER|BABYWISE.CO.UK|BB3 2SD|5399||,2639302 ,"10,452.23", 22/08/2019,53.63,"10,892.36"
51,600126,School Development,Childrens Services,Community,25001,Fixtures and Fittings (attached to building only),RBS Commercial Card Division,18-07-2019|7427|LYNN PLUMMER|BLINDS 2 GO LTD|NG2 1NA|5714||,2639302 ,"10,452.23", 22/08/2019,192.70,"10,892.36"
51,600126,School Development,Childrens Services,Community,25001,Fixtures and Fittings (attached to building only),RBS Commercial Card Division,09-07-2019|7427|LYNN PLUMMER|AMZNMKTPLACE|EC2A 2FA|5999|CAPITAL COSTS NURSERY BUILD|,2639302 ,"10,452.23", 22/08/2019,7.62,"10,892.36"
51,600126,School Development,Childrens Services,Community,25001,Fixtures and Fittings (attached to building only),RBS Commercial Card Division,09-07-2019|7427|LYNN PLUMMER|AMZNMKTPLACE|EC2A 2FA|5999|CAPITAL COSTS NURSERY BUILD|,2639302 ,"10,452.23", 22/08/2019,8.98,"10,892.36"
51,600126,School Development,Childrens Services,Community,25001,Fixtures and Fittings (attached to building only),RBS Commercial Card Division,09-07-2019|7427|LYNN PLUMMER|AMZNMKTPLACE|EC2A 2FA|5999|CAPITAL COSTS NURSERY BUILD|,2639302 ,"10,452.23", 22/08/2019,10.26,"10,892.36"
51,600126,School Development,Childrens Services,Community,25001,Fixtures and Fittings (attached to building only),RBS Commercial Card Division,10-07-2019|7427|LYNN PLUMMER|AMZNMKTPLACE|EC2A 2FA|5999|CAPITAL COSTS NURSERY BUILD|,2639302 ,"10,452.23", 22/08/2019,9.16,"10,892.36"
51,600126,School Development,Childrens Services,Community,25001,Fixtures and Fittings (attached to building only),RBS Commercial Card Division,29-07-2019|7427|LYNN PLUMMER|AO RETAIL LIMITED|BL6 6QQ|5722||,2670465 ,"16,790.01", 27/09/2019,158.33,"17,110.78"
51,600126,School Development,Childrens Services,Community,25001,Fixtures and Fittings (attached to building only),RBS Commercial Card Division,31-07-2019|7427|LYNN PLUMMER|AMZNMKTPLACE|EC2A 2FA|5999||,2670465 ,"16,790.01", 27/09/2019,7.33,"17,110.78"
51,600126,School Development,Childrens Services,Community,25001,Fixtures and Fittings (attached to building only),RBS Commercial Card Division,24-07-2019|7427|LYNN PLUMMER|WWW.IRONMONGERYDIRECT.|SS13 1ND|5968||,2670465 ,"16,790.01", 27/09/2019,79.60,"17,110.78"
51,600126,School Development,Childrens Services,Community,25001,Fixtures and Fittings (attached to building only),RBS Commercial Card Division,21-08-2019|7427|LYNN PLUMMER|WWW.IRONMONGERYDIRECT.|SS13 1ND|5231|EQUIPMENT FOR EARLY YEARS DEVELOPMENT|,2670465 ,"16,790.01", 27/09/2019,21.90,"17,110.78"
51,600126,School Development,Childrens Services,Community,25001,Fixtures and Fittings (attached to building only),RBS Commercial Card Division,28-07-2019|7427|LYNN PLUMMER|AMAZON.CO.UK MH73H8PK4|L2338|5969||,2670465 ,"16,790.01", 27/09/2019,9.57,"17,110.78"
51,600126,School Development,Childrens Services,Community,25001,Fixtures and Fittings (attached to building only),RBS Commercial Card Division,27-07-2019|7427|LYNN PLUMMER|AMAZON.CO.UK MH7776PZ4|L2338|5969||,2670465 ,"16,790.01", 27/09/2019,69.88,"17,110.78"
51,600126,School Development,Childrens Services,Community,25001,Fixtures and Fittings (attached to building only),RBS Commercial Card Division,29-07-2019|7427|LYNN PLUMMER|DISCOUNT FIRE SUPP|SA12EF|7393||,2670465 ,"16,790.01", 27/09/2019,27.55,"17,110.78"
51,600130,Children Social Care - Strategic,Childrens Social Care,Community,12301,Training,RBS Commercial Card Division,25-06-2019|7427|LYNN PLUMMER|ISLES OF SCILLY SS CO|TR21 0LJ|4411|FLIGHTS TO RPC CONFERENCE|IOS_AKHAN,2611566 ,"18,406.09", 26/07/2019,66.67,"19,557.25"
51,600130,Children Social Care - Strategic,Childrens Social Care,Community,12301,Training,RBS Commercial Card Division,25-06-2019|7427|LYNN PLUMMER|HOTEL ON BOOKING.COM T|1017 SG|7011||IOS_AKHAN,2611566 ,"18,406.09", 26/07/2019,54.17,"19,557.25"
51,600130,Children Social Care - Strategic,Childrens Social Care,Community,12301,Training,RBS Commercial Card Division,31-05-2019|7427|LYNN PLUMMER|EUROPCAR|LE2 7AR|3381||IOS_AKHAN,2611566 ,"18,406.09", 26/07/2019,-51.10,"19,557.25"
51,600130,Children Social Care - Strategic,Childrens Social Care,Community,12301,Training,RBS Commercial Card Division,31-05-2019|7427|LYNN PLUMMER|EUROPCAR|LE2 7AR|3381||IOS_AKHAN,2611566 ,"18,406.09", 26/07/2019,131.32,"19,557.25"
51,600130,Children Social Care - Strategic,Childrens Social Care,Community,12301,Training,RBS Commercial Card Division,03-06-2019|7427|LYNN PLUMMER|EUROPCAR|LE2 7AR|3381||IOS_AKHAN,2611566 ,"18,406.09", 26/07/2019,-109.43,"19,557.25"
51,600130,Children Social Care - Strategic,Childrens Social Care,Community,12301,Training,RBS Commercial Card Division,06-06-2019|7427|LYNN PLUMMER|FLYBE.COM WXS8RD       0|EX5 3HL|4511||IOS_AKHAN,2611566 ,"18,406.09", 26/07/2019,104.25,"19,557.25"
51,600130,Children Social Care - Strategic,Childrens Social Care,Community,31602,Air Travel,RBS Commercial Card Division,20-06-2019|6459|TRAVEL TEAM|ISLES OF SCILLY SS CO|TR21 0LJ|4411|FLIGHT 270577|IOS_NSTINSON,2611566 ,"18,406.09", 26/07/2019,304.00,"19,557.25"
51,600130,Children Social Care - Strategic,Childrens Social Care,Community,31602,Air Travel,RBS Commercial Card Division,06-06-2019|6459|TRAVEL TEAM|ISLES OF SCILLY SS CO|TR21 0LJ|4411|FLIGHT 268081|IOS_NSTINSON,2611566 ,"18,406.09", 26/07/2019,109.25,"19,557.25"
51,600130,Children Social Care - Strategic,Childrens Social Care,Community,31602,Air Travel,RBS Commercial Card Division,06-06-2019|6459|TRAVEL TEAM|ISLES OF SCILLY SS CO|TR21 0LJ|4411|FLIGHT 268081|IOS_NSTINSON,2611566 ,"18,406.09", 26/07/2019,109.25,"19,557.25"
51,600130,Children Social Care - Strategic,Childrens Social Care,Community,41104,Equipment & Plant - Direct Purchase,RBS Commercial Card Division,17-06-2019|7427|LYNN PLUMMER|WWW.IKEA.COM|PE2 9ET|5712|SPLIT - WHITE GOODS FOR CHY AND MOR AND NURSERY (22.21%)|IOS_AKHAN,2611566 ,"18,406.09", 26/07/2019,285.83,"19,557.25"
51,600130,Children Social Care - Strategic,Childrens Social Care,Community,41104,Equipment & Plant - Direct Purchase,RBS Commercial Card Division,17-06-2019|7427|LYNN PLUMMER|AO RETAIL LIMITED|BL6 6QQ|5722|WHITE GOODS CHY AN MOR|IOS_AKHAN,2611566 ,"18,406.09", 26/07/2019,383.33,"19,557.25"
51,600130,Children Social Care - Strategic,Childrens Social Care,Community,41104,Equipment & Plant - Direct Purchase,RBS Commercial Card Division,17-06-2019|7427|LYNN PLUMMER|WWW.IKEA.COM|PE2 9ET|5712|SPLIT - WHITE GOODS FOR CHY AND MOR AND NURSERY (77.79%)|IOS_AKHAN,2611566 ,"18,406.09", 26/07/2019,"1,001.04","19,557.25"
51,600130,Children Social Care - Strategic,Childrens Social Care,Community,25001,Fixtures and Fittings (attached to building only),RBS Commercial Card Division,19-07-2019|7427|LYNN PLUMMER|ARGOS DIRECT|MK92NW|5310||,2639302 ,"10,452.23", 22/08/2019,-358.32,"10,892.36"
51,600130,Children Social Care - Strategic,Childrens Social Care,Community,25001,Fixtures and Fittings (attached to building only),RBS Commercial Card Division,19-07-2019|7427|LYNN PLUMMER|BABYWISE.CO.UK|BB3 2SD|5399||,2639302 ,"10,452.23", 22/08/2019,115.00,"10,892.36"
51,600130,Children Social Care - Strategic,Childrens Social Care,Community,25001,Fixtures and Fittings (attached to building only),RBS Commercial Card Division,19-07-2019|7427|LYNN PLUMMER|AMZNMKTPLACE|EC2A 2FA|5999||,2639302 ,"10,452.23", 22/08/2019,33.32,"10,892.36"
51,600130,Children Social Care - Strategic,Childrens Social Care,Community,25001,Fixtures and Fittings (attached to building only),RBS Commercial Card Division,23-07-2019|7427|LYNN PLUMMER|WWW.SHEDSWAREHOUSE.COM|MK43 8RU|5399||,2639302 ,"10,452.23", 22/08/2019,367.49,"10,892.36"
51,600130,Children Social Care - Strategic,Childrens Social Care,Community,25001,Fixtures and Fittings (attached to building only),RBS Commercial Card Division,23-07-2019|7427|LYNN PLUMMER|WWW.IRONMONGERYDIRECT.|SS13 1ND|5231||,2639302 ,"10,452.23", 22/08/2019,38.70,"10,892.36"
51,600130,Children Social Care - Strategic,Childrens Social Care,Community,25001,Fixtures and Fittings (attached to building only),RBS Commercial Card Division,25-07-2019|7427|LYNN PLUMMER|AMZNMKTPLACE|EC2A 2FA|5999||,2639302 ,"10,452.23", 22/08/2019,61.61,"10,892.36"
51,600130,Children Social Care - Strategic,Childrens Social Care,Community,25001,Fixtures and Fittings (attached to building only),RBS Commercial Card Division,09-07-2019|7427|LYNN PLUMMER|AMZNMKTPLACE|EC2A 2FA|5999||,2639302 ,"10,452.23", 22/08/2019,13.32,"10,892.36"
51,600130,Children Social Care - Strategic,Childrens Social Care,Community,31602,Air Travel,RBS Commercial Card Division,17-07-2019|6459|TRAVEL TEAM|WWW.ISLEOFSCILLY-TRAVE|TR21 0LJ|4411|RETURN FLIGHTS FOR A KHAN - 276016|IOS_NSTINSON,2639302 ,"10,452.23", 22/08/2019,130.76,"10,892.36"
51,600130,Children Social Care - Strategic,Childrens Social Care,Community,52001,Payments to Other Local Authorities,Cornwall Council,Contribution to LSCB Budget 2019/20.,2649490 ,"4,800.00", 17/09/2019,"4,800.00","4,800.00"
51,600130,Children Social Care - Strategic,Childrens Social Care,Community,31602,Air Travel,RBS Commercial Card Division,01-08-2019|6459|TRAVEL TEAM|WWW.ISLEOFSCILLY-TRAVE|TR21 0LJ|4411|RETURN FLIGHTS FOR E WOOD & A R WOOD - 278990|,2670465 ,"16,790.01", 27/09/2019,247.04,"17,110.78"
51,600130,Children Social Care - Strategic,Childrens Social Care,Community,31602,Air Travel,RBS Commercial Card Division,02-08-2019|6459|TRAVEL TEAM|WWW.ISLEOFSCILLY-TRAVE|TR21 0LJ|4411|RETURN FLIGHTS FOR K WALKER - 279161|,2670465 ,"16,790.01", 27/09/2019,152.00,"17,110.78"
51,600130,Children Social Care - Strategic,Childrens Social Care,Community,31602,Air Travel,RBS Commercial Card Division,02-08-2019|6459|TRAVEL TEAM|WWW.ISLEOFSCILLY-TRAVE|TR21 0LJ|4411|RETURN FLIGHTS FOR J SAVILLE - 279159|,2670465 ,"16,790.01", 27/09/2019,125.26,"17,110.78"
51,600130,Children Social Care - Strategic,Childrens Social Care,Community,31602,Air Travel,RBS Commercial Card Division,08-08-2019|6459|TRAVEL TEAM|ISLES OF SCILLY SS CO|TR21 0LJ|4411|PART REFUND ON J SAVILLE - 279159|IOS_NSTINSON,2670465 ,"16,790.01", 27/09/2019,-65.88,"17,110.78"
51,600130,Children Social Care - Strategic,Childrens Social Care,Community,41104,Equipment & Plant - Direct Purchase,RBS Commercial Card Division,09-08-2019|7427|LYNN PLUMMER|PLUSNET PLC 0845 14002|S1 2GU|4814|WIFI ROUTER FOR LOCUM|,2670465 ,"16,790.01", 27/09/2019,21.00,"17,110.78"
51,600131,Children Social Care - Commissioning,Childrens Social Care,Community,11601,Agency Costs,Sanctuary Personnel Ltd,"Agency fees for Locum Children's Social Worker, Brian Hook. INV00413800.",2602981 ,"1,095.00", 11/07/2019,"1,095.00","1,314.00"
51,600131,Children Social Care - Commissioning,Childrens Social Care,Community,11601,Agency Costs,Sanctuary Personnel Ltd,"Agency fees for Locum Children's Social Worker, Brian Hook. INV00413801.",2602983 ,"1,350.50", 11/07/2019,"1,350.50","1,620.60"
51,600131,Children Social Care - Commissioning,Childrens Social Care,Community,11601,Agency Costs,Sanctuary Personnel Ltd,"Agency fees for Locum Children's Social Worker, Brian Hook. INV00413799.",2602979 ,"1,350.50", 11/07/2019,"1,350.50","1,620.60"
51,600131,Children Social Care - Commissioning,Childrens Social Care,Community,11601,Agency Costs,Sanctuary Personnel Ltd,"Agency fees for Locum Children's Social Worker, Brian Hook. INV00416652",2607379 ,"1,441.75", 18/07/2019,"1,441.75","1,730.10"
51,600131,Children Social Care - Commissioning,Childrens Social Care,Community,31602,Air Travel,RBS Commercial Card Division,19-06-2019|6459|TRAVEL TEAM|ISLES OF SCILLY SS CO|TR21 0LJ|4411|FLIGHT 270377|IOS_NSTINSON,2611566 ,"18,406.09", 26/07/2019,202.89,"19,557.25"
51,600131,Children Social Care - Commissioning,Childrens Social Care,Community,31602,Air Travel,RBS Commercial Card Division,27-06-2019|6459|TRAVEL TEAM|ISLES OF SCILLY SS CO|TR21 0LJ|4411|FLIGHT 271859|IOS_NSTINSON,2611566 ,"18,406.09", 26/07/2019,202.89,"19,557.25"
51,600131,Children Social Care - Commissioning,Childrens Social Care,Community,11601,Agency Costs,Sanctuary Personnel Ltd,Agency fees for Locum Children's Social Worker. INV00420564,2627556 ,"1,332.25", 08/08/2019,"1,332.25","1,598.70"
51,600131,Children Social Care - Commissioning,Childrens Social Care,Community,11601,Agency Costs,Sanctuary Personnel Ltd,Agency fees for Locum Children's Social Worker. INV00420565,2627553 ,"1,022.00", 08/08/2019,"1,022.00","1,226.40"
51,600131,Children Social Care - Commissioning,Childrens Social Care,Community,11601,Agency Costs,Sanctuary Personnel Ltd,Agency fees for Children's Social Worker. INV00424481.,2638362 ,"1,350.50", 20/08/2019,"1,350.50","1,620.60"
51,600131,Children Social Care - Commissioning,Childrens Social Care,Community,11601,Agency Costs,Sanctuary Personnel Ltd,Agency fees for Children's Social Worker. INV00424480,2638359 ,"1,350.50", 20/08/2019,"1,350.50","1,620.60"
51,600131,Children Social Care - Commissioning,Childrens Social Care,Community,21202,R&M - Painting - Reactive,Mr MJ Bridge,Decoration off Chy-An-Mor,2639920 ,"1,835.00", 22/08/2019,187.50,"1,543.00"
51,600131,Children Social Care - Commissioning,Childrens Social Care,Community,21202,R&M - Painting - Reactive,Mr MJ Bridge,Decoration off Chy-An-Mor,2639920 ,"1,835.00", 22/08/2019,730.00,"1,543.00"
51,600131,Children Social Care - Commissioning,Childrens Social Care,Community,31602,Air Travel,RBS Commercial Card Division,02-07-2019|6459|TRAVEL TEAM|ISLES OF SCILLY SS CO|TR21 0LJ|4411|RETURN FLIGHT FOR B HOOK - 272818|,2639302 ,"10,452.23", 22/08/2019,202.89,"10,892.36"
51,600131,Children Social Care - Commissioning,Childrens Social Care,Community,11601,Agency Costs,Sanctuary Personnel Ltd,Agency fees for locum social worker. INV00428751,2641304 ,"1,478.25", 27/08/2019,"1,478.25","1,773.90"
51,600131,Children Social Care - Commissioning,Childrens Social Care,Community,11601,Agency Costs,Sanctuary Personnel Ltd,Agency fees for locum social worker. INV00428752.,2641305 ,"1,314.00", 27/08/2019,"1,314.00","1,576.80"
51,600131,Children Social Care - Commissioning,Childrens Social Care,Community,11601,Agency Costs,Sanctuary Personnel Ltd,Agency fees for locum social worker.,2641306 ,"1,368.75", 27/08/2019,"1,368.75","1,642.50"
51,600131,Children Social Care - Commissioning,Childrens Social Care,Community,11601,Agency Costs,Sanctuary Personnel Ltd,Agency fees for Children's Social Worker. INV00430005.,2650842 ,"1,587.75", 03/09/2019,"1,587.75","1,905.30"
51,600131,Children Social Care - Commissioning,Childrens Social Care,Community,11601,Agency Costs,Sanctuary Personnel Ltd,Agency fee's for children's social worker. INV00433650.,2664001 ,584.00, 17/09/2019,584.00,700.80
51,600131,Children Social Care - Commissioning,Childrens Social Care,Community,31602,Air Travel,RBS Commercial Card Division,20-08-2019|6459|TRAVEL TEAM|ISLES OF SCILLY SS CO|TR21 0LJ|4411|RETURN FLIGHTS FOR H MCFARLANE - 282446|IOS_NSTINSON,2670465 ,"16,790.01", 27/09/2019,262.91,"17,110.78"
51,600131,Children Social Care - Commissioning,Childrens Social Care,Community,31602,Air Travel,RBS Commercial Card Division,27-08-2019|6459|TRAVEL TEAM|WWW.ISLEOFSCILLY-TRAVE|TR21 0LJ|4411|RETURN FLIGHT FOR B HOOK - 283487|IOS_NSTINSON,2670465 ,"16,790.01", 27/09/2019,110.91,"17,110.78"
51,600133,CSC Short Break Care,Childrens Social Care,Community,57014,Client Related Personal Needs - Private Contractors,Miss L Beattie,Reimbursement of Short Breaks Care Budget.,2635960 ,569.13, 20/08/2019,569.13,569.13
51,600200,Environmental Health & Food,Environmental Services,Strategic Development and Finance,12301,Training,RBS Commercial Card Division,14-06-2019|7468|MICHAEL COATES|CORNWALL COUNCIL|TR1 3AY|9399||IOS_NSTINSON,2611566 ,"18,406.09", 26/07/2019,30.00,"19,557.25"
51,600200,Environmental Health & Food,Environmental Services,Strategic Development and Finance,31602,Air Travel,RBS Commercial Card Division,12-06-2019|6459|TRAVEL TEAM|ISLES OF SCILLY SS CO|TR21 0LJ|4411|FLIGHT 269155|IOS_NSTINSON,2611566 ,"18,406.09", 26/07/2019,104.50,"19,557.25"
51,600200,Environmental Health & Food,Environmental Services,Strategic Development and Finance,31602,Air Travel,RBS Commercial Card Division,12-06-2019|6459|TRAVEL TEAM|ISLES OF SCILLY SS CO|TR21 0LJ|4411|FLIGHT 269152|IOS_NSTINSON,2611566 ,"18,406.09", 26/07/2019,169.10,"19,557.25"
51,600200,Environmental Health & Food,Environmental Services,Strategic Development and Finance,41103,Equipment - Spares,RBS Commercial Card Division,18-06-2019|7468|MICHAEL COATES|TESTO LTD|GU34 2QJ|5085|PROBE THERMOMETERS|IOS_NSTINSON,2611566 ,"18,406.09", 26/07/2019,297.60,"19,557.25"
51,600200,Environmental Health & Food,Environmental Services,Strategic Development and Finance,41118,Health & Safety Equipment,RBS Commercial Card Division,06-06-2019|7468|MICHAEL COATES|SETON|OX163JU|5099|HEALTH AND SAFETY SIGNS|IOS_NSTINSON,2611566 ,"18,406.09", 26/07/2019,95.57,"19,557.25"
51,600200,Environmental Health & Food,Environmental Services,Strategic Development and Finance,42503,Uniforms / Clothing,RBS Commercial Card Division,18-06-2019|7468|MICHAEL COATES|FOOD SAFETY DIRECT|LA13AW|5169||IOS_NSTINSON,2611566 ,"18,406.09", 26/07/2019,95.28,"19,557.25"
51,600200,Environmental Health & Food,Environmental Services,Strategic Development and Finance,46103,Hotel Expenses,RBS Commercial Card Division,12-06-2019|7468|MICHAEL COATES|PREMIER INN|PL31 2AR|3811||IOS_NSTINSON,2611566 ,"18,406.09", 26/07/2019,104.50,"19,557.25"
51,600200,Environmental Health & Food,Environmental Services,Strategic Development and Finance,46103,Hotel Expenses,RBS Commercial Card Division,12-06-2019|7468|MICHAEL COATES|PREMIER INN|EX4 4BG|3811||IOS_NSTINSON,2611566 ,"18,406.09", 26/07/2019,299.00,"19,557.25"
51,600200,Environmental Health & Food,Environmental Services,Strategic Development and Finance,41301,Books and Publications,RBS Commercial Card Division,05-07-2019|7468|MICHAEL COATES|AMZN MKTP UK M69X457B4|L23 38|5942|FOOD PUBLICATION|,2639302 ,"10,452.23", 22/08/2019,14.44,"10,892.36"
51,600200,Environmental Health & Food,Environmental Services,Strategic Development and Finance,45302,Postal/Secure Courier,RBS Commercial Card Division,05-07-2019|7468|MICHAEL COATES|POST OFFICE COUNTER|TR21 0LR|9402|POST|,2639302 ,"10,452.23", 22/08/2019,15.51,"10,892.36"
51,600200,Environmental Health & Food,Environmental Services,Strategic Development and Finance,46103,Hotel Expenses,RBS Commercial Card Division,28-06-2019|7468|MICHAEL COATES|PREMIER INN|PL31 2AR|3811||,2639302 ,"10,452.23", 22/08/2019,-9.50,"10,892.36"
51,600200,Environmental Health & Food,Environmental Services,Strategic Development and Finance,46103,Hotel Expenses,RBS Commercial Card Division,29-06-2019|7468|MICHAEL COATES|WWW.THESTANLEYPENZANCE|TR18 4DW|7011||,2639302 ,"10,452.23", 22/08/2019,55.00,"10,892.36"
51,600201,"Plant, Animal Health & Pest Control",Environmental Services,Strategic Development and Finance,41103,Equipment - Spares,RBS Commercial Card Division,31-07-2019|7468|MICHAEL COATES|AMZNMKTPLACE AMAZON.CO|EC2A 2FA|5999||,2670465 ,"16,790.01", 27/09/2019,48.30,"17,110.78"
51,600201,"Plant, Animal Health & Pest Control",Environmental Services,Strategic Development and Finance,42503,Uniforms / Clothing,RBS Commercial Card Division,31-07-2019|7468|MICHAEL COATES|AMZNMKTPLACE|EC2A 2FA|5999||,2670465 ,"16,790.01", 27/09/2019,39.99,"17,110.78"
51,600210,Adult Education,Learning and  Library,Strategic Development and Finance,12301,Training,In Safe Hands Health & Safety Training & Consultancy Ltd,Fire Warden Training for CIOS staff- Monday 29th July,2598520 ,495.00, 09/07/2019,495.00,594.00
51,600210,Adult Education,Learning and  Library,Strategic Development and Finance,31602,Air Travel,RBS Commercial Card Division,25-06-2019|6459|TRAVEL TEAM|ISLES OF SCILLY SS CO|TR21 0LJ|4411|RETURN FLIGHT FOR C WOOLWAY - 271408|IOS_NSTINSON,2611566 ,"18,406.09", 26/07/2019,152.00,"19,557.25"
51,600210,Adult Education,Learning and  Library,Strategic Development and Finance,31603,Other Public Transport,RBS Commercial Card Division,03-06-2019|6459|TRAVEL TEAM|ISLES OF SCILLY SS CO|TR21 0LJ|4411|SURFACE TRANSPORT ADDED TO 26249|IOS_NSTINSON,2611566 ,"18,406.09", 26/07/2019,12.00,"19,557.25"
51,600210,Adult Education,Learning and  Library,Strategic Development and Finance,31603,Other Public Transport,RBS Commercial Card Division,05-06-2019|6459|TRAVEL TEAM|ISLES OF SCILLY S S CO|TR18 4BZ|4411|REFUND OF SURFACE TRANSPORT - 263249|IOS_NSTINSON,2611566 ,"18,406.09", 26/07/2019,-6.00,"19,557.25"
51,600210,Adult Education,Learning and  Library,Strategic Development and Finance,43510,Advertising (Non Recruitment),RBS Commercial Card Division,07-06-2019|7435|JOANNA EVANS|FACEBK XL8JRLEZY2|2|7311||IOS_NSTINSON,2611566 ,"18,406.09", 26/07/2019,15.00,"19,557.25"
51,600210,Adult Education,Learning and  Library,Strategic Development and Finance,45206,IT Software Purchases,RBS Commercial Card Division,19-06-2019|7435|JOANNA EVANS|BOOKWHEN.COM - BOOKING|OX2 6HJ|5734||IOS_NSTINSON,2611566 ,"18,406.09", 26/07/2019,90.00,"19,557.25"
51,600210,Adult Education,Learning and  Library,Strategic Development and Finance,12301,Training,TS Training Ltd,Duty crew and op services training x 5 days,2634589 ,"2,205.00", 15/08/2019,"1,102.50","2,646.00"
51,600210,Adult Education,Learning and  Library,Strategic Development and Finance,43576,Purchased Training (Not for Staff),In Safe Hands Health & Safety Training & Consultancy Ltd,EFAAW course Monday 29th July,2633832 ,595.00, 15/08/2019,595.00,714.00
51,600210,Adult Education,Learning and  Library,Strategic Development and Finance,12301,Training,Institute Of Licensing Events Ltd,"Professional Licensing Practitioners Qualification,17th, 18th, 19th & 20th September 2019 for Kath Gilbert",2636904 ,470.25, 20/08/2019,470.25,564.30
51,600210,Adult Education,Learning and  Library,Strategic Development and Finance,12301,Training,RBS Commercial Card Division,11-07-2019|7435|JOANNA EVANS|HIGHSPEEDTRAINING.CO.U|LS29 8JZ|8244||IOS_NSTINSON,2639302 ,"10,452.23", 22/08/2019,20.00,"10,892.36"
51,600210,Adult Education,Learning and  Library,Strategic Development and Finance,12301,Training,RBS Commercial Card Division,28-06-2019|7435|JOANNA EVANS|HIGHSPEEDTRAINING.CO.U|LS29 8JZ|8244||IOS_NSTINSON,2639302 ,"10,452.23", 22/08/2019,70.00,"10,892.36"
51,600210,Adult Education,Learning and  Library,Strategic Development and Finance,31602,Air Travel,RBS Commercial Card Division,02-07-2019|6459|TRAVEL TEAM|ISLES OF SCILLY SS CO|TR21 0LJ|4411|RETURN FLIGHTS FOR C WOOLWAY - 271408|IOS_NSTINSON,2639302 ,"10,452.23", 22/08/2019,89.82,"10,892.36"
51,600210,Adult Education,Learning and  Library,Strategic Development and Finance,31602,Air Travel,RBS Commercial Card Division,03-07-2019|6459|TRAVEL TEAM|WWW.ISLEOFSCILLY-TRAVE|TR21 0LJ|4411|RETURN FLIGHTS FOR TIM SAMREUS - 273151|IOS_NSTINSON,2639302 ,"10,452.23", 22/08/2019,221.82,"10,892.36"
51,600210,Adult Education,Learning and  Library,Strategic Development and Finance,31602,Air Travel,RBS Commercial Card Division,04-07-2019|6459|TRAVEL TEAM|WWW.ISLEOFSCILLY-TRAVE|TR21 0LJ|4411|RETURN FLIGHTS FOR LEIGHTON BARTLETT - 273378|IOS_NSTINSON,2639302 ,"10,452.23", 22/08/2019,118.76,"10,892.36"
51,600210,Adult Education,Learning and  Library,Strategic Development and Finance,41103,Equipment - Spares,RBS Commercial Card Division,25-07-2019|7435|JOANNA EVANS|AMZNMKTPLACE|EC2A 2FA|5999||IOS_NSTINSON,2639302 ,"10,452.23", 22/08/2019,9.33,"10,892.36"
51,600210,Adult Education,Learning and  Library,Strategic Development and Finance,43510,Advertising (Non Recruitment),RBS Commercial Card Division,07-07-2019|7435|JOANNA EVANS|FACEBK XDPWYMA2Z2|2|7311||IOS_NSTINSON,2639302 ,"10,452.23", 22/08/2019,15.00,"10,892.36"
51,600210,Adult Education,Learning and  Library,Strategic Development and Finance,43576,Purchased Training (Not for Staff),Shield Environmental Services Ltd,Asbestos course - non licensed removal refresher,2639602 ,855.00, 22/08/2019,855.00,"1,026.00"
51,600210,Adult Education,Learning and  Library,Strategic Development and Finance,12301,Training,RBS Commercial Card Division,21-08-2019|7435|JOANNA EVANS|BOXERCISE.CO.UK|LE17 6NT|7997||IOS_NSTINSON,2670465 ,"16,790.01", 27/09/2019,165.83,"17,110.78"
51,600210,Adult Education,Learning and  Library,Strategic Development and Finance,12301,Training,RBS Commercial Card Division,26-07-2019|7435|JOANNA EVANS|WWW.BBETRAINING.CO|NN9 5QF|8299||IOS_NSTINSON,2670465 ,"16,790.01", 27/09/2019,249.17,"17,110.78"
51,600210,Adult Education,Learning and  Library,Strategic Development and Finance,31602,Air Travel,RBS Commercial Card Division,29-07-2019|6459|TRAVEL TEAM|WWW.ISLEOFSCILLY-TRAVE|TR21 0LJ|4411|RETURN FLIGHTS FOR F NOTLEY - 278292|,2670465 ,"16,790.01", 27/09/2019,118.76,"17,110.78"
51,600210,Adult Education,Learning and  Library,Strategic Development and Finance,31602,Air Travel,RBS Commercial Card Division,30-07-2019|6459|TRAVEL TEAM|ISLES OF SCILLY SS CO|TR21 0LJ|4411|RETURN FLIGHTS FOR LOUISE ARGENT - 278826|,2670465 ,"16,790.01", 27/09/2019,98.80,"17,110.78"
51,600210,Adult Education,Learning and  Library,Strategic Development and Finance,31602,Air Travel,RBS Commercial Card Division,23-08-2019|6459|TRAVEL TEAM|WWW.ISLEOFSCILLY-TRAVE|TR21 0LJ|4411|RETURN FLIGHT FOR STEPH CHODKIEWICZ - 283038|IOS_NSTINSON,2670465 ,"16,790.01", 27/09/2019,183.96,"17,110.78"
51,600210,Adult Education,Learning and  Library,Strategic Development and Finance,31602,Air Travel,RBS Commercial Card Division,31-07-2019|6459|TRAVEL TEAM|WWW.ISLEOFSCILLY-TRAVE|TR21 0LJ|4411|RETURN FLIGHTS FOR H AUSTWICK - 278773|,2670465 ,"16,790.01", 27/09/2019,118.76,"17,110.78"
51,600210,Adult Education,Learning and  Library,Strategic Development and Finance,31602,Air Travel,RBS Commercial Card Division,12-08-2019|6459|TRAVEL TEAM|WWW.ISLEOFSCILLY-TRAVE|TR21 0LJ|4411|FLIGHT FOR DR G TWISTON DAVIES - 280806|IOS_NSTINSON,2670465 ,"16,790.01", 27/09/2019,91.98,"17,110.78"
51,600210,Adult Education,Learning and  Library,Strategic Development and Finance,41301,Books and Publications,RBS Commercial Card Division,01-08-2019|7435|JOANNA EVANS|AMAZON.CO.UK MH2C58MM4|L2338|5969||,2670465 ,"16,790.01", 27/09/2019,13.18,"17,110.78"
51,600211,Library Services,Learning and  Library,Strategic Development and Finance,49002,Miscellaneous Expenditure,Cornwall Council,Legal Services -Requested by SO Capital Development and Procurement,2638318 ,"2,563.47", 17/09/2019,643.20,"3,072.16"
51,600212,Customer Hub,Learning and  Library,Strategic Development and Finance,31602,Air Travel,RBS Commercial Card Division,19-06-2019|6459|TRAVEL TEAM|ISLES OF SCILLY SS CO|TR21 0LJ|4411|REFUND ON 265388 - J DANIEL|IOS_NSTINSON,2611566 ,"18,406.09", 26/07/2019,-118.76,"19,557.25"
51,600212,Customer Hub,Learning and  Library,Strategic Development and Finance,31602,Air Travel,RBS Commercial Card Division,03-07-2019|6459|TRAVEL TEAM|WWW.ISLEOFSCILLY-TRAVE|TR21 0LJ|4411|RETURN FLIGHTS FOR MARK CRAMER - 273036|IOS_NSTINSON,2639302 ,"10,452.23", 22/08/2019,118.76,"10,892.36"
51,600212,Customer Hub,Learning and  Library,Strategic Development and Finance,41201,Office Furniture,RBS Commercial Card Division,19-07-2019|7435|JOANNA EVANS|AMZNMKTPLACE|EC2A 2FA|5999||IOS_NSTINSON,2639302 ,"10,452.23", 22/08/2019,60.83,"10,892.36"
51,600212,Customer Hub,Learning and  Library,Strategic Development and Finance,43002,Stationery and Consumables,RBS Commercial Card Division,02-07-2019|7435|JOANNA EVANS|AMZNMKTPLACE|EC2A 2FA|5999||IOS_NSTINSON,2639302 ,"10,452.23", 22/08/2019,2.47,"10,892.36"
51,600212,Customer Hub,Learning and  Library,Strategic Development and Finance,45301,Postage/Franking Charges,RBS Commercial Card Division,10-07-2019|7450|NICOLA STINSON|POST OFFICE COUNTER|TR21 0LR|9402||,2639302 ,"10,452.23", 22/08/2019,11.68,"10,892.36"
51,600212,Customer Hub,Learning and  Library,Strategic Development and Finance,45301,Postage/Franking Charges,RBS Commercial Card Division,12-07-2019|7450|NICOLA STINSON|POST OFFICE COUNTER|TR21 0LR|9402||,2639302 ,"10,452.23", 22/08/2019,29.04,"10,892.36"
51,600212,Customer Hub,Learning and  Library,Strategic Development and Finance,45301,Postage/Franking Charges,RBS Commercial Card Division,16-07-2019|7450|NICOLA STINSON|POST OFFICE COUNTER|TR21 0LR|9402||,2639302 ,"10,452.23", 22/08/2019,10.64,"10,892.36"
51,600212,Customer Hub,Learning and  Library,Strategic Development and Finance,45301,Postage/Franking Charges,RBS Commercial Card Division,28-06-2019|7450|NICOLA STINSON|POST OFFICE COUNTER|TR21 0LR|9402||,2639302 ,"10,452.23", 22/08/2019,11.48,"10,892.36"
51,600212,Customer Hub,Learning and  Library,Strategic Development and Finance,45301,Postage/Franking Charges,RBS Commercial Card Division,01-07-2019|7450|NICOLA STINSON|POST OFFICE COUNTER|TR21 0LR|9402||,2639302 ,"10,452.23", 22/08/2019,5.71,"10,892.36"
51,600212,Customer Hub,Learning and  Library,Strategic Development and Finance,45301,Postage/Franking Charges,RBS Commercial Card Division,02-07-2019|7450|NICOLA STINSON|POST OFFICE COUNTER|TR21 0LR|9402||,2639302 ,"10,452.23", 22/08/2019,13.25,"10,892.36"
51,600212,Customer Hub,Learning and  Library,Strategic Development and Finance,45301,Postage/Franking Charges,RBS Commercial Card Division,03-07-2019|7450|NICOLA STINSON|POST OFFICE COUNTER|TR21 0LR|9402||,2639302 ,"10,452.23", 22/08/2019,5.10,"10,892.36"
51,600212,Customer Hub,Learning and  Library,Strategic Development and Finance,45301,Postage/Franking Charges,RBS Commercial Card Division,09-07-2019|7450|NICOLA STINSON|POST OFFICE COUNTER|TR21 0LR|9402||,2639302 ,"10,452.23", 22/08/2019,8.02,"10,892.36"
51,600212,Customer Hub,Learning and  Library,Strategic Development and Finance,45301,Postage/Franking Charges,RBS Commercial Card Division,"28-06-2019|7476|ANDREW THOMAS|POST OFFICE COUNTER|TR21 0LR|9402|FRANKING MACHINE BROKEN, SO THIS IS MAIL COSTS FOR THIS DEPARTMENT FOR THAT DAY.|",2639302 ,"10,452.23", 22/08/2019,5.28,"10,892.36"
51,600212,Customer Hub,Learning and  Library,Strategic Development and Finance,45302,Postal/Secure Courier,RBS Commercial Card Division,15-07-2019|7450|NICOLA STINSON|POST OFFICE COUNTER|TR21 0LR|9402||,2639302 ,"10,452.23", 22/08/2019,3.27,"10,892.36"
51,600212,Customer Hub,Learning and  Library,Strategic Development and Finance,45302,Postal/Secure Courier,RBS Commercial Card Division,08-07-2019|7369|CRAIG DRYDEN|POST OFFICE COUNTER|TR21 0LR|9402||,2639302 ,"10,452.23", 22/08/2019,7.08,"10,892.36"
51,600212,Customer Hub,Learning and  Library,Strategic Development and Finance,45301,Postage/Franking Charges,Francotyp-Postalia Ltd,INV 20522159 Line 180,2665916 ,512.00, 20/09/2019,12.00,514.40
51,600212,Customer Hub,Learning and  Library,Strategic Development and Finance,45301,Postage/Franking Charges,Francotyp-Postalia Ltd,INV 20522159 Line 180,2665916 ,512.00, 20/09/2019,500.00,514.40
51,600212,Customer Hub,Learning and  Library,Strategic Development and Finance,31602,Air Travel,RBS Commercial Card Division,29-07-2019|6459|TRAVEL TEAM|WWW.ISLEOFSCILLY-TRAVE|TR21 0LJ|4411|RETURN FLIGHTS FOR MARK CRANMER - 278417|,2670465 ,"16,790.01", 27/09/2019,118.76,"17,110.78"
51,600212,Customer Hub,Learning and  Library,Strategic Development and Finance,31602,Air Travel,RBS Commercial Card Division,22-08-2019|6459|TRAVEL TEAM|ISLES OF SCILLY SS CO|TR21 0LJ|4411|REFUND ON MARK CANMER - 278417|IOS_NSTINSON,2670465 ,"16,790.01", 27/09/2019,-118.76,"17,110.78"
51,600220,IFCA,Inshore Fisheries and Conservation Authoirutues,Strategic Development and Finance,31602,Air Travel,RBS Commercial Card Division,05-06-2019|6459|TRAVEL TEAM|ISLES OF SCILLY SS CO|TR21 0LJ|4411|FLIGHT 267856|IOS_NSTINSON,2611566 ,"18,406.09", 26/07/2019,104.50,"19,557.25"
51,600220,IFCA,Inshore Fisheries and Conservation Authoirutues,Strategic Development and Finance,31602,Air Travel,RBS Commercial Card Division,12-06-2019|6459|TRAVEL TEAM|ISLES OF SCILLY SS CO|TR21 0LJ|4411|FLIGHT 269270|IOS_NSTINSON,2611566 ,"18,406.09", 26/07/2019,106.88,"19,557.25"
51,600220,IFCA,Inshore Fisheries and Conservation Authoirutues,Strategic Development and Finance,31602,Air Travel,RBS Commercial Card Division,12-06-2019|6459|TRAVEL TEAM|ISLES OF SCILLY SS CO|TR21 0LJ|4411|FLIGHT 269243|IOS_NSTINSON,2611566 ,"18,406.09", 26/07/2019,106.88,"19,557.25"
51,600220,IFCA,Inshore Fisheries and Conservation Authoirutues,Strategic Development and Finance,31602,Air Travel,RBS Commercial Card Division,12-06-2019|6459|TRAVEL TEAM|ISLES OF SCILLY SS CO|TR21 0LJ|4411|FLIGHT 269239|IOS_NSTINSON,2611566 ,"18,406.09", 26/07/2019,54.63,"19,557.25"
51,600220,IFCA,Inshore Fisheries and Conservation Authoirutues,Strategic Development and Finance,31602,Air Travel,RBS Commercial Card Division,12-06-2019|6459|TRAVEL TEAM|ISLES OF SCILLY SS CO|TR21 0LJ|4411|FLIGHT 269237|IOS_NSTINSON,2611566 ,"18,406.09", 26/07/2019,147.31,"19,557.25"
51,600220,IFCA,Inshore Fisheries and Conservation Authoirutues,Strategic Development and Finance,31602,Air Travel,RBS Commercial Card Division,12-06-2019|6459|TRAVEL TEAM|ISLES OF SCILLY SS CO|TR21 0LJ|4411|FLIGHT 269235|IOS_NSTINSON,2611566 ,"18,406.09", 26/07/2019,113.52,"19,557.25"
51,600220,IFCA,Inshore Fisheries and Conservation Authoirutues,Strategic Development and Finance,41104,Equipment & Plant - Direct Purchase,RBS Commercial Card Division,27-06-2019|7236|THOMAS HOOPER|AMZNMKTPLACE|EC2A 2FA|5999||IOS_NSTINSON,2611566 ,"18,406.09", 26/07/2019,27.19,"19,557.25"
51,600220,IFCA,Inshore Fisheries and Conservation Authoirutues,Strategic Development and Finance,41104,Equipment & Plant - Direct Purchase,RBS Commercial Card Division,27-06-2019|7236|THOMAS HOOPER|AMZNMKTPLACE|EC2A 2FA|5999||IOS_NSTINSON,2611566 ,"18,406.09", 26/07/2019,320.50,"19,557.25"
51,600220,IFCA,Inshore Fisheries and Conservation Authoirutues,Strategic Development and Finance,41104,Equipment & Plant - Direct Purchase,RBS Commercial Card Division,27-06-2019|7236|THOMAS HOOPER|WWW.GAELFORCEMARINE.CO|IV3 8DH|4468||IOS_NSTINSON,2611566 ,"18,406.09", 26/07/2019,25.94,"19,557.25"
51,600220,IFCA,Inshore Fisheries and Conservation Authoirutues,Strategic Development and Finance,31111,Boat Inspection/Survey costs,Cornwall Inshore Fisheries &,4 Days survey work in IOS IFCA district 19-22 May 2019,2612554 ,"1,000.00", 30/07/2019,"1,000.00","1,200.00"
51,600220,IFCA,Inshore Fisheries and Conservation Authoirutues,Strategic Development and Finance,31505,Boat Hire,Survitec Service & Distribution Ltd,Hire - Lift raft RFD 6 Person - 52 weeks from 19/7/19,2625911 ,536.12, 06/08/2019,536.12,643.34
51,600220,IFCA,Inshore Fisheries and Conservation Authoirutues,Strategic Development and Finance,43510,Advertising (Non Recruitment),Reach Publishing Services Ltd,Advertisement in the West Briton & Cornishman,2610045 ,483.84, 13/08/2019,483.84,580.61
51,600220,IFCA,Inshore Fisheries and Conservation Authoirutues,Strategic Development and Finance,31602,Air Travel,RBS Commercial Card Division,19-07-2019|6459|TRAVEL TEAM|WWW.ISLEOFSCILLY-TRAVE|TR21 0LJ|4411|RETURN FLIGHTS FOR ADAM REES- 276379|IOS_NSTINSON,2639302 ,"10,452.23", 22/08/2019,109.26,"10,892.36"
51,600220,IFCA,Inshore Fisheries and Conservation Authoirutues,Strategic Development and Finance,41104,Equipment & Plant - Direct Purchase,RBS Commercial Card Division,15-07-2019|7236|THOMAS HOOPER|GWR PLYMOUTH GATE|PL4 6AB|4112||IOS_NSTINSON,2639302 ,"10,452.23", 22/08/2019,136.90,"10,892.36"
51,600220,IFCA,Inshore Fisheries and Conservation Authoirutues,Strategic Development and Finance,41104,Equipment & Plant - Direct Purchase,RBS Commercial Card Division,02-07-2019|7236|THOMAS HOOPER|WALTERS AND WALTERS LI|SG85HA|5943|SPECIALIST PENS FOR RESEARCH|IOS_NSTINSON,2639302 ,"10,452.23", 22/08/2019,21.59,"10,892.36"
51,600220,IFCA,Inshore Fisheries and Conservation Authoirutues,Strategic Development and Finance,41104,Equipment & Plant - Direct Purchase,RBS Commercial Card Division,02-07-2019|7236|THOMAS HOOPER|WWW.WEATHERWRITER.COM|IP14 6AX|5999||IOS_NSTINSON,2639302 ,"10,452.23", 22/08/2019,168.60,"10,892.36"
51,600220,IFCA,Inshore Fisheries and Conservation Authoirutues,Strategic Development and Finance,31301,Vehicle acquisition <10k,Ribcraft UK Ltd,%Boat stage payment,2649464 ,"31,848.47", 03/09/2019,"-31,848.47","38,218.16"
51,600220,IFCA,Inshore Fisheries and Conservation Authoirutues,Strategic Development and Finance,31301,Vehicle acquisition <10k,Ribcraft UK Ltd,%Boat stage payment,2649464 ,"31,848.47", 03/09/2019,"31,848.47","38,218.16"
51,600220,IFCA,Inshore Fisheries and Conservation Authoirutues,Strategic Development and Finance,31301,Vehicle acquisition <10k,Ribcraft UK Ltd,%Boat stage payment,2641194 ,"43,419.10", 03/09/2019,"43,419.10","52,102.92"
51,600220,IFCA,Inshore Fisheries and Conservation Authoirutues,Strategic Development and Finance,31301,Vehicle acquisition <10k,Ribcraft UK Ltd,%Boat stage payment,2641194 ,"43,419.10", 03/09/2019,"-43,419.10","52,102.92"
51,600220,IFCA,Inshore Fisheries and Conservation Authoirutues,Strategic Development and Finance,31301,Vehicle acquisition <10k,Ribcraft UK Ltd,%Boat stage payment,2658709 ,"11,570.63", 12/09/2019,"-11,570.63","13,884.76"
51,600220,IFCA,Inshore Fisheries and Conservation Authoirutues,Strategic Development and Finance,31301,Vehicle acquisition <10k,Ribcraft UK Ltd,%Boat stage payment,2658709 ,"11,570.63", 12/09/2019,"11,570.63","13,884.76"
51,600220,IFCA,Inshore Fisheries and Conservation Authoirutues,Strategic Development and Finance,31602,Air Travel,RBS Commercial Card Division,12-08-2019|6459|TRAVEL TEAM|ISLES OF SCILLY SS CO|TR21 0LJ|4411|RETURN FLIGHTS FOR TOM HOOPER - 280926|IOS_NSTINSON,2670465 ,"16,790.01", 27/09/2019,146.61,"17,110.78"
51,600220,IFCA,Inshore Fisheries and Conservation Authoirutues,Strategic Development and Finance,31602,Air Travel,RBS Commercial Card Division,22-08-2019|6459|TRAVEL TEAM|WWW.ISLEOFSCILLY-TRAVE|TR21 0LJ|4411|RETURN FLIGHTS FOR TOM HOOPER - 282767|IOS_NSTINSON,2670465 ,"16,790.01", 27/09/2019,171.96,"17,110.78"
51,600220,IFCA,Inshore Fisheries and Conservation Authoirutues,Strategic Development and Finance,31602,Air Travel,RBS Commercial Card Division,22-08-2019|6459|TRAVEL TEAM|WWW.ISLEOFSCILLY-TRAVE|TR21 0LJ|4411|ADJUSTMENT FOR ADAM REES - 276379|IOS_NSTINSON,2670465 ,"16,790.01", 27/09/2019,18.55,"17,110.78"
51,600220,IFCA,Inshore Fisheries and Conservation Authoirutues,Strategic Development and Finance,31603,Other Public Transport,RBS Commercial Card Division,22-08-2019|6459|TRAVEL TEAM|WWW.ISLEOFSCILLY-TRAVE|TR21 0LJ|4411|SINGLE FOR R PENDER - 282770|IOS_NSTINSON,2670465 ,"16,790.01", 27/09/2019,85.98,"17,110.78"
51,600220,IFCA,Inshore Fisheries and Conservation Authoirutues,Strategic Development and Finance,41103,Equipment - Spares,RBS Commercial Card Division,05-08-2019|8235|FREDERICK PENDER|BANBURY TRAILER CT|CV350DZ|5533||IOS_NSTINSON,2670465 ,"16,790.01", 27/09/2019,117.00,"17,110.78"
51,600220,IFCA,Inshore Fisheries and Conservation Authoirutues,Strategic Development and Finance,46103,Hotel Expenses,RBS Commercial Card Division,22-08-2019|8235|FREDERICK PENDER|THE AQUA|DT5 1BD|7011||IOS_NSTINSON,2670465 ,"16,790.01", 27/09/2019,110.00,"17,110.78"
51,600230,Capital Development & Procurement Team,Capital Development and Procurement,Strategic Development and Finance,49002,Miscellaneous Expenditure,Wright Construction,Materials for Water Board for March 2018,2627490 ,820.36, 13/08/2019,820.36,980.83
51,600230,Capital Development & Procurement Team,Capital Development and Procurement,Strategic Development and Finance,49002,Miscellaneous Expenditure,Wright Construction,Materials for Water Board for March 2018,2627490 ,820.36, 13/08/2019,802.37,980.83
51,600230,Capital Development & Procurement Team,Capital Development and Procurement,Strategic Development and Finance,49002,Miscellaneous Expenditure,Wright Construction,Materials for Water Board for March 2018,2627490 ,820.36, 13/08/2019,17.99,980.83
51,600230,Capital Development & Procurement Team,Capital Development and Procurement,Strategic Development and Finance,49002,Miscellaneous Expenditure,Wright Construction,Materials for Water Board for March 2018,2627490 ,820.36, 13/08/2019,-820.36,980.83
51,600230,Capital Development & Procurement Team,Capital Development and Procurement,Strategic Development and Finance,43532,Professional Fees - Other,Atlantic Arc Planning Ltd,Production of Key Worker Strategy,2632020 ,"14,419.50", 15/08/2019,"14,419.50","14,419.50"
51,600230,Capital Development & Procurement Team,Capital Development and Procurement,Strategic Development and Finance,41101,Office Equipment,RBS Commercial Card Division,10-07-2019|6509|KEITH GROSSETT|ISLAND HARDWARE|TR21 0JD|5251||,2639302 ,"10,452.23", 22/08/2019,5.29,"10,892.36"
51,600230,Capital Development & Procurement Team,Capital Development and Procurement,Strategic Development and Finance,41301,Books and Publications,RBS Commercial Card Division,23-07-2019|6509|KEITH GROSSETT|VISTAPR VISTAPRINT.COM|LW 5928|2741||,2639302 ,"10,452.23", 22/08/2019,12.00,"10,892.36"
51,600230,Capital Development & Procurement Team,Capital Development and Procurement,Strategic Development and Finance,43506,Professional Fees - Legal,Cornwall Council,Legal Fees for Smart Islands Project,2647769 ,"5,417.60", 05/09/2019,499.80,"6,499.52"
51,600230,Capital Development & Procurement Team,Capital Development and Procurement,Strategic Development and Finance,43506,Professional Fees - Legal,Cornwall Council,Legal Fees for Smart Islands Project,2638318 ,"2,563.47", 17/09/2019,259.20,"3,072.16"
51,600230,Capital Development & Procurement Team,Capital Development and Procurement,Strategic Development and Finance,43506,Professional Fees - Legal,Ashfords,State Aid Advice OTTER Project,2649394 ,"1,190.00", 26/09/2019,"1,190.00","1,428.00"
51,600230,Capital Development & Procurement Team,Capital Development and Procurement,Strategic Development and Finance,41108,Audio/Visual Equipment,RBS Commercial Card Division,01-08-2019|7450|NICOLA STINSON|CANVA  02403-6520208|95120|7221|WORK FOR LIVE SCILLY BANNERS|,2670465 ,"16,790.01", 27/09/2019,0.85,"17,110.78"
51,600240,Social Housing,Housing Rented Property and Homelessness,Strategic Development and Finance,41104,Equipment & Plant - Direct Purchase,One Off Payments,FLOORING AND SHIPPING,2588354 ,433.60, 02/07/2019,408.60,520.32
51,600240,Social Housing,Housing Rented Property and Homelessness,Strategic Development and Finance,43532,Professional Fees - Other,One Off Payments,LAND REGISTER FEE'S,2588410 ,680.00, 02/07/2019,680.00,680.00
51,600240,Social Housing,Housing Rented Property and Homelessness,Strategic Development and Finance,45302,Postal/Secure Courier,One Off Payments,FLOORING AND SHIPPING,2588354 ,433.60, 02/07/2019,25.00,520.32
51,600240,Social Housing,Housing Rented Property and Homelessness,Strategic Development and Finance,21110,R&M - Electrical - Planned,Kor Electrical,Install Cooker Circuit at 4 Ennor House,2590891 ,477.00, 04/07/2019,237.00,524.40
51,600240,Social Housing,Housing Rented Property and Homelessness,Strategic Development and Finance,21110,R&M - Electrical - Planned,Kor Electrical,Install Cooker Circuit at 4 Ennor House,2590891 ,477.00, 04/07/2019,240.00,524.40
51,600240,Social Housing,Housing Rented Property and Homelessness,Strategic Development and Finance,21110,R&M - Electrical - Planned,Kor Electrical,Install Cooker Circuit at 4 Ennor House,2590891 ,477.00, 04/07/2019,-477.00,524.40
51,600240,Social Housing,Housing Rented Property and Homelessness,Strategic Development and Finance,21110,R&M - Electrical - Planned,Kor Electrical,Install Cooker Circuit at 4 Ennor House,2590891 ,477.00, 04/07/2019,477.00,524.40
51,600240,Social Housing,Housing Rented Property and Homelessness,Strategic Development and Finance,21116,R&M - Other - Planned,Davey & Gilbert Ltd,"13 Sallyport: Decommission, remove and install replacement Boiler",2603028 ,"1,725.00", 18/07/2019,"1,725.00","2,070.00"
51,600240,Social Housing,Housing Rented Property and Homelessness,Strategic Development and Finance,21110,R&M - Electrical - Planned,Davey & Gilbert Ltd,Emergency lighting for Ennor Flats,2613339 ,"1,150.00", 25/07/2019,190.90,"1,380.00"
51,600240,Social Housing,Housing Rented Property and Homelessness,Strategic Development and Finance,21110,R&M - Electrical - Planned,Davey & Gilbert Ltd,Emergency lighting for Ennor Flats,2613339 ,"1,150.00", 25/07/2019,192.05,"1,380.00"
51,600240,Social Housing,Housing Rented Property and Homelessness,Strategic Development and Finance,21110,R&M - Electrical - Planned,Davey & Gilbert Ltd,Emergency lighting for Ennor Flats,2613339 ,"1,150.00", 25/07/2019,192.05,"1,380.00"
51,600240,Social Housing,Housing Rented Property and Homelessness,Strategic Development and Finance,21110,R&M - Electrical - Planned,Davey & Gilbert Ltd,Emergency lighting for Ennor Flats,2613339 ,"1,150.00", 25/07/2019,190.90,"1,380.00"
51,600240,Social Housing,Housing Rented Property and Homelessness,Strategic Development and Finance,21110,R&M - Electrical - Planned,Davey & Gilbert Ltd,Emergency lighting for Ennor Flats,2613339 ,"1,150.00", 25/07/2019,192.05,"1,380.00"
51,600240,Social Housing,Housing Rented Property and Homelessness,Strategic Development and Finance,21110,R&M - Electrical - Planned,Davey & Gilbert Ltd,Emergency lighting for Ennor Flats,2613339 ,"1,150.00", 25/07/2019,192.05,"1,380.00"
51,600240,Social Housing,Housing Rented Property and Homelessness,Strategic Development and Finance,21110,R&M - Electrical - Planned,Davey & Gilbert Ltd,"FLAT 9 ENNOR: Remedials, works to make rectifications to failed EICR report.",2613342 ,"2,485.63", 25/07/2019,"2,485.63","2,982.76"
51,600240,Social Housing,Housing Rented Property and Homelessness,Strategic Development and Finance,21132,21132- R&M Electrical Remedial (Works after Stat Testing),Davey & Gilbert Ltd,"Travel, accommodation and sustenance to facilitate Ennor Flats fire system works",2613988 ,"1,759.00", 25/07/2019,"1,759.00","2,110.80"
51,600240,Social Housing,Housing Rented Property and Homelessness,Strategic Development and Finance,21132,21132- R&M Electrical Remedial (Works after Stat Testing),Davey & Gilbert Ltd,Electrical remedial works to School cottage following failed EICR,2613340 ,"2,925.00", 25/07/2019,"2,925.00","3,510.00"
51,600240,Social Housing,Housing Rented Property and Homelessness,Strategic Development and Finance,25003,Fire Equipment,Davey & Gilbert Ltd,Ennor Flats: Communal Fire Alarm Panel Installation,2613345 ,"4,140.00", 25/07/2019,689.72,"4,968.00"
51,600240,Social Housing,Housing Rented Property and Homelessness,Strategic Development and Finance,25003,Fire Equipment,Davey & Gilbert Ltd,Ennor Flats: Communal Fire Alarm Panel Installation,2613345 ,"4,140.00", 25/07/2019,689.72,"4,968.00"
51,600240,Social Housing,Housing Rented Property and Homelessness,Strategic Development and Finance,25003,Fire Equipment,Davey & Gilbert Ltd,Ennor Flats: Communal Fire Alarm Panel Installation,2613345 ,"4,140.00", 25/07/2019,689.72,"4,968.00"
51,600240,Social Housing,Housing Rented Property and Homelessness,Strategic Development and Finance,25003,Fire Equipment,Davey & Gilbert Ltd,Ennor Flats: Communal Fire Alarm Panel Installation,2613345 ,"4,140.00", 25/07/2019,689.72,"4,968.00"
51,600240,Social Housing,Housing Rented Property and Homelessness,Strategic Development and Finance,25003,Fire Equipment,Davey & Gilbert Ltd,Ennor Flats: Communal Fire Alarm Panel Installation,2613345 ,"4,140.00", 25/07/2019,691.40,"4,968.00"
51,600240,Social Housing,Housing Rented Property and Homelessness,Strategic Development and Finance,41308,Construction Materials,Kor Electrical,"Additional work to 13 Sallyport - Bathroom panelling, installation of doors, including fire door, skirting and decs.",2597491 ,"4,862.85", 30/07/2019,"1,170.00","5,445.42"
51,600240,Social Housing,Housing Rented Property and Homelessness,Strategic Development and Finance,41308,Construction Materials,Kor Electrical,"Additional work to 13 Sallyport - Bathroom panelling, installation of doors, including fire door, skirting and decs.",2597491 ,"4,862.85", 30/07/2019,447.26,"5,445.42"
51,600240,Social Housing,Housing Rented Property and Homelessness,Strategic Development and Finance,41308,Construction Materials,Kor Electrical,"Additional work to 13 Sallyport - Bathroom panelling, installation of doors, including fire door, skirting and decs.",2597491 ,"4,862.85", 30/07/2019,"1,457.29","5,445.42"
51,600240,Social Housing,Housing Rented Property and Homelessness,Strategic Development and Finance,41308,Construction Materials,Kor Electrical,"Additional work to 13 Sallyport - Bathroom panelling, installation of doors, including fire door, skirting and decs.",2597491 ,"4,862.85", 30/07/2019,780.00,"5,445.42"
51,600240,Social Housing,Housing Rented Property and Homelessness,Strategic Development and Finance,41308,Construction Materials,Kor Electrical,"Additional work to 13 Sallyport - Bathroom panelling, installation of doors, including fire door, skirting and decs.",2597491 ,"4,862.85", 30/07/2019,"1,008.30","5,445.42"
51,600240,Social Housing,Housing Rented Property and Homelessness,Strategic Development and Finance,46103,Hotel Expenses,Cornwall Woodburners Ltd,Accommodation to facilitate log burner remedial works,2617677 ,982.50, 30/07/2019,982.50,"1,179.00"
51,600240,Social Housing,Housing Rented Property and Homelessness,Strategic Development and Finance,21132,21132- R&M Electrical Remedial (Works after Stat Testing),Davey & Gilbert Ltd,Davey and Gilbert - 7 Parade Flats 22/07/2019,2621914 ,"1,185.56", 01/08/2019,"1,185.56","1,422.67"
51,600240,Social Housing,Housing Rented Property and Homelessness,Strategic Development and Finance,21208,R&M - Solid Fuel - Reactive,Cornwall Woodburners Ltd,Remedial works to condemned fires in social propertied,2617659 ,"3,687.07", 01/08/2019,"3,687.07","4,424.50"
51,600240,Social Housing,Housing Rented Property and Homelessness,Strategic Development and Finance,21201,R&M - Buildings - Reactive,P C Green,31 Porthcressa: Chimney capping and damp prevention works,2610222 ,496.00, 06/08/2019,496.00,576.00
51,600240,Social Housing,Housing Rented Property and Homelessness,Strategic Development and Finance,21201,R&M - Buildings - Reactive,P C Green,31 Porthcressa: Chimney capping and damp prevention works,2610222 ,496.00, 06/08/2019,400.00,576.00
51,600240,Social Housing,Housing Rented Property and Homelessness,Strategic Development and Finance,21201,R&M - Buildings - Reactive,P C Green,31 Porthcressa: Chimney capping and damp prevention works,2610222 ,496.00, 06/08/2019,96.00,576.00
51,600240,Social Housing,Housing Rented Property and Homelessness,Strategic Development and Finance,21201,R&M - Buildings - Reactive,P C Green,31 Porthcressa: Chimney capping and damp prevention works,2610222 ,496.00, 06/08/2019,-496.00,576.00
51,600240,Social Housing,Housing Rented Property and Homelessness,Strategic Development and Finance,21101,R&M - Buildings - Planned,Shearwater Construction Ltd,MATERIALS,2632262 ,"17,225.00", 13/08/2019,"6,125.00","18,450.00"
51,600240,Social Housing,Housing Rented Property and Homelessness,Strategic Development and Finance,21101,R&M - Buildings - Planned,Shearwater Construction Ltd,LABOUR,2632262 ,"17,225.00", 13/08/2019,"11,100.00","18,450.00"
51,600240,Social Housing,Housing Rented Property and Homelessness,Strategic Development and Finance,21101,R&M - Buildings - Planned,Cornwall Woodburners Ltd,Re-line chimney at 42 Sally Port etc.,2629777 ,"4,228.33", 15/08/2019,"1,322.08","5,074.00"
51,600240,Social Housing,Housing Rented Property and Homelessness,Strategic Development and Finance,21101,R&M - Buildings - Planned,Cornwall Woodburners Ltd,Re-Line Chimney at 17 Sally Port etc.,2629777 ,"4,228.33", 15/08/2019,"1,227.08","5,074.00"
51,600240,Social Housing,Housing Rented Property and Homelessness,Strategic Development and Finance,21101,R&M - Buildings - Planned,Cornwall Woodburners Ltd,Re Line chimney & new stove etc. for 17 Ennor Close,2629777 ,"4,228.33", 15/08/2019,"1,679.17","5,074.00"
51,600240,Social Housing,Housing Rented Property and Homelessness,Strategic Development and Finance,21101,R&M - Buildings - Planned,Cornwall Woodburners Ltd,Re-line chimney at 42 Sally Port etc.,2629777 ,"4,228.33", 15/08/2019,"-1,586.50","5,074.00"
51,600240,Social Housing,Housing Rented Property and Homelessness,Strategic Development and Finance,21101,R&M - Buildings - Planned,Cornwall Woodburners Ltd,Re-Line Chimney at 17 Sally Port etc.,2629777 ,"4,228.33", 15/08/2019,"-1,472.50","5,074.00"
51,600240,Social Housing,Housing Rented Property and Homelessness,Strategic Development and Finance,21101,R&M - Buildings - Planned,Cornwall Woodburners Ltd,Re Line chimney & new stove etc. for 17 Ennor Close,2629777 ,"4,228.33", 15/08/2019,"-2,015.00","5,074.00"
51,600240,Social Housing,Housing Rented Property and Homelessness,Strategic Development and Finance,21101,R&M - Buildings - Planned,Cornwall Woodburners Ltd,Re-line chimney at 42 Sally Port etc.,2629777 ,"4,228.33", 15/08/2019,"1,586.50","5,074.00"
51,600240,Social Housing,Housing Rented Property and Homelessness,Strategic Development and Finance,21101,R&M - Buildings - Planned,Cornwall Woodburners Ltd,Re-Line Chimney at 17 Sally Port etc.,2629777 ,"4,228.33", 15/08/2019,"1,472.50","5,074.00"
51,600240,Social Housing,Housing Rented Property and Homelessness,Strategic Development and Finance,21101,R&M - Buildings - Planned,Cornwall Woodburners Ltd,Re Line chimney & new stove etc. for 17 Ennor Close,2629777 ,"4,228.33", 15/08/2019,"2,015.00","5,074.00"
51,600240,Social Housing,Housing Rented Property and Homelessness,Strategic Development and Finance,21101,R&M - Buildings - Planned,Cornwall Woodburners Ltd,Re-line chimney at 42 Sally Port etc.,2629777 ,"4,228.33", 15/08/2019,-887.50,"5,074.00"
51,600240,Social Housing,Housing Rented Property and Homelessness,Strategic Development and Finance,21101,R&M - Buildings - Planned,Cornwall Woodburners Ltd,Re-Line Chimney at 17 Sally Port etc.,2629777 ,"4,228.33", 15/08/2019,-862.50,"5,074.00"
51,600240,Social Housing,Housing Rented Property and Homelessness,Strategic Development and Finance,21101,R&M - Buildings - Planned,Cornwall Woodburners Ltd,Re Line chimney & new stove etc. for 17 Ennor Close,2629777 ,"4,228.33", 15/08/2019,"-1,405.00","5,074.00"
51,600240,Social Housing,Housing Rented Property and Homelessness,Strategic Development and Finance,21101,R&M - Buildings - Planned,Cornwall Woodburners Ltd,Re Line chimney & new stove etc. for 17 Ennor Close,2629777 ,"4,228.33", 15/08/2019,"4,228.33","5,074.00"
51,600240,Social Housing,Housing Rented Property and Homelessness,Strategic Development and Finance,21101,R&M - Buildings - Planned,Cornwall Woodburners Ltd,Re-line chimney at 42 Sally Port etc.,2629777 ,"4,228.33", 15/08/2019,887.50,"5,074.00"
51,600240,Social Housing,Housing Rented Property and Homelessness,Strategic Development and Finance,21101,R&M - Buildings - Planned,Cornwall Woodburners Ltd,Re-Line Chimney at 17 Sally Port etc.,2629777 ,"4,228.33", 15/08/2019,862.50,"5,074.00"
51,600240,Social Housing,Housing Rented Property and Homelessness,Strategic Development and Finance,21101,R&M - Buildings - Planned,Cornwall Woodburners Ltd,Re Line chimney & new stove etc. for 17 Ennor Close,2629777 ,"4,228.33", 15/08/2019,"1,405.00","5,074.00"
51,600240,Social Housing,Housing Rented Property and Homelessness,Strategic Development and Finance,21101,R&M - Buildings - Planned,Cornwall Woodburners Ltd,Re Line chimney & new stove etc. for 17 Ennor Close,2629777 ,"4,228.33", 15/08/2019,"-4,228.33","5,074.00"
51,600240,Social Housing,Housing Rented Property and Homelessness,Strategic Development and Finance,21110,R&M - Electrical - Planned,Davey & Gilbert Ltd,"DEICR's for compliance and Hitachi handover on: 
Ennor Close - 32,34
Parsons Field - 7,8a,9,9a
Garrison Lane - 6,8,12,17
The Strand - 15,16,17
Hillside
4 Porthcressa
3 Branksea",2638253 ,"4,800.00", 20/08/2019,"4,800.00","5,760.00"
51,600240,Social Housing,Housing Rented Property and Homelessness,Strategic Development and Finance,21110,R&M - Electrical - Planned,Davey & Gilbert Ltd,"DEICR's for compliance and Hitachi handover on: Ennor House - 2,4,5 
29 Sally Port - Flat 3, Flat 4
Museum Flats - 1,2,4",2638246 ,"2,400.00", 20/08/2019,"2,400.00","2,880.00"
51,600240,Social Housing,Housing Rented Property and Homelessness,Strategic Development and Finance,21208,R&M - Solid Fuel - Reactive,Cornwall Woodburners Ltd,Remedial works to condemned fires in social propertied,2637023 ,"5,612.08", 20/08/2019,"5,612.08","6,734.50"
51,600240,Social Housing,Housing Rented Property and Homelessness,Strategic Development and Finance,21210,R&M - Electrical - Reactive,Davey & Gilbert Ltd,"DEICR's for compliance and Hitachi handover on: 
Sally Port - 7,11,27,32,34,36,42
Ennor Close - 4,15,17,19,21,22,23,27,31",2638248 ,"4,800.00", 20/08/2019,"4,800.00","5,760.00"
51,600240,Social Housing,Housing Rented Property and Homelessness,Strategic Development and Finance,46103,Hotel Expenses,Davey & Gilbert Ltd,"Travel, accommodation and sustenance to facilitate DEICR works for compliance and Hitachi asset handover",2638249 ,"3,005.00", 20/08/2019,"3,005.00","3,606.00"
51,600240,Social Housing,Housing Rented Property and Homelessness,Strategic Development and Finance,12301,Training,RBS Commercial Card Division,03-07-2019|7450|NICOLA STINSON|WWW.WESTMINSTER-BRIEFI|SE1 9SG|8244||,2639302 ,"10,452.23", 22/08/2019,306.00,"10,892.36"
51,600240,Social Housing,Housing Rented Property and Homelessness,Strategic Development and Finance,21110,R&M - Electrical - Planned,Evans Electricals,2nd fix electrics to 3 Ennor House,2638312 ,770.00, 22/08/2019,770.00,770.00
51,600240,Social Housing,Housing Rented Property and Homelessness,Strategic Development and Finance,21110,R&M - Electrical - Planned,Kor Electrical,Materials,2624604 ,"1,378.40", 22/08/2019,853.40,"1,549.08"
51,600240,Social Housing,Housing Rented Property and Homelessness,Strategic Development and Finance,21110,R&M - Electrical - Planned,Kor Electrical,Labour,2624604 ,"1,378.40", 22/08/2019,345.00,"1,549.08"
51,600240,Social Housing,Housing Rented Property and Homelessness,Strategic Development and Finance,21110,R&M - Electrical - Planned,Kor Electrical,Labour,2624604 ,"1,378.40", 22/08/2019,180.00,"1,549.08"
51,600240,Social Housing,Housing Rented Property and Homelessness,Strategic Development and Finance,21110,R&M - Electrical - Planned,Kor Electrical,4 Longras - Electrical checks after Tennant moved out,2624604 ,"1,378.40", 22/08/2019,"-1,378.40","1,549.08"
51,600240,Social Housing,Housing Rented Property and Homelessness,Strategic Development and Finance,21110,R&M - Electrical - Planned,Kor Electrical,4 Longras - Electrical checks after Tennant moved out,2624604 ,"1,378.40", 22/08/2019,"1,378.40","1,549.08"
51,600240,Social Housing,Housing Rented Property and Homelessness,Strategic Development and Finance,21202,R&M - Painting - Reactive,Mr MJ Bridge,Decoration off Chy-An-Mor,2639920 ,"1,835.00", 22/08/2019,187.50,"1,543.00"
51,600240,Social Housing,Housing Rented Property and Homelessness,Strategic Development and Finance,21202,R&M - Painting - Reactive,Mr MJ Bridge,Decoration off Chy-An-Mor,2639920 ,"1,835.00", 22/08/2019,730.00,"1,543.00"
51,600240,Social Housing,Housing Rented Property and Homelessness,Strategic Development and Finance,31601,Rail,RBS Commercial Card Division,08-07-2019|7450|NICOLA STINSON|TRAINLINE.COM|EC1N 2TD|4112||,2639302 ,"10,452.23", 22/08/2019,121.59,"10,892.36"
51,600240,Social Housing,Housing Rented Property and Homelessness,Strategic Development and Finance,31602,Air Travel,RBS Commercial Card Division,03-07-2019|6459|TRAVEL TEAM|WWW.ISLEOFSCILLY-TRAVE|TR21 0LJ|4411|RETURN FLIGHTS FOR RACHEL GUY - 273144|IOS_NSTINSON,2639302 ,"10,452.23", 22/08/2019,171.96,"10,892.36"
51,600240,Social Housing,Housing Rented Property and Homelessness,Strategic Development and Finance,43512,Publicity Promotions & Marketing,RBS Commercial Card Division,16-07-2019|7450|NICOLA STINSON|GOOGLE  DOMAINS|SW1W 9TQ|7399||,2639302 ,"10,452.23", 22/08/2019,20.00,"10,892.36"
51,600240,Social Housing,Housing Rented Property and Homelessness,Strategic Development and Finance,46103,Hotel Expenses,RBS Commercial Card Division,09-07-2019|7450|NICOLA STINSON|THE BELGRAVE LONDON|SW1V 1PB|7011||,2639302 ,"10,452.23", 22/08/2019,138.00,"10,892.36"
51,600240,Social Housing,Housing Rented Property and Homelessness,Strategic Development and Finance,21202,R&M - Painting - Reactive,Vykintas Simutis,4 LONGRAS: Complete internal decoration.,2637027 ,"1,959.25", 29/08/2019,"1,959.25","1,656.85"
51,600240,Social Housing,Housing Rented Property and Homelessness,Strategic Development and Finance,21202,R&M - Painting - Reactive,Vykintas Simutis,4 LONGRAS: Complete internal decoration.,2637027 ,"1,959.25", 29/08/2019,447.25,"1,656.85"
51,600240,Social Housing,Housing Rented Property and Homelessness,Strategic Development and Finance,21202,R&M - Painting - Reactive,Vykintas Simutis,4 LONGRAS: Complete internal decoration.,2637027 ,"1,959.25", 29/08/2019,"1,512.00","1,656.85"
51,600240,Social Housing,Housing Rented Property and Homelessness,Strategic Development and Finance,21202,R&M - Painting - Reactive,Vykintas Simutis,4 LONGRAS: Complete internal decoration.,2637027 ,"1,959.25", 29/08/2019,"-1,959.25","1,656.85"
51,600240,Social Housing,Housing Rented Property and Homelessness,Strategic Development and Finance,21239,R&M - Disrepair Works,Wright Construction,"supply and install 2 UPVC doors for security one with wing light, additional security bolt, repairs to leak under bath, replacement ceiling below, replacement kitchen extractor and replacement of 2 internal doors 22 Ennor Close",2646573 ,"3,450.00", 29/08/2019,"3,450.00","4,140.00"
51,600240,Social Housing,Housing Rented Property and Homelessness,Strategic Development and Finance,49002,Miscellaneous Expenditure,Clifford Freeman t/a Scilly Self Catering,Temp accommodation for tenants of 9 The Strand after property electrics condemned.,2643314 ,916.67, 29/08/2019,916.67,920.00
51,600240,Social Housing,Housing Rented Property and Homelessness,Strategic Development and Finance,49002,Miscellaneous Expenditure,Clifford Freeman t/a Scilly Self Catering,Temp accommodation for tenants of 9 The Strand after property electrics condemned.,2643314 ,916.67, 29/08/2019,16.67,920.00
51,600240,Social Housing,Housing Rented Property and Homelessness,Strategic Development and Finance,49002,Miscellaneous Expenditure,Clifford Freeman t/a Scilly Self Catering,Temp accommodation for tenants of 9 The Strand after property electrics condemned.,2643314 ,916.67, 29/08/2019,900.00,920.00
51,600240,Social Housing,Housing Rented Property and Homelessness,Strategic Development and Finance,49002,Miscellaneous Expenditure,Clifford Freeman t/a Scilly Self Catering,Temp accommodation for tenants of 9 The Strand after property electrics condemned.,2643314 ,916.67, 29/08/2019,-916.67,920.00
51,600240,Social Housing,Housing Rented Property and Homelessness,Strategic Development and Finance,46103,Hotel Expenses,Steve Benney t/a Fire Risk Consulting Ltd,Travel and accommodation for Steve Benny to carry out fire risk assessments to communal buildings,2649294 ,487.00, 03/09/2019,487.00,584.40
51,600240,Social Housing,Housing Rented Property and Homelessness,Strategic Development and Finance,43506,Professional Fees - Legal,Cornwall Council,Legal assistance with SEI assets on social properties.,2647769 ,"5,417.60", 05/09/2019,215.60,"6,499.52"
51,600240,Social Housing,Housing Rented Property and Homelessness,Strategic Development and Finance,43506,Professional Fees - Legal,Cornwall Council,Legal advice: Collection of small debts.,2647769 ,"5,417.60", 05/09/2019,49.00,"6,499.52"
51,600240,Social Housing,Housing Rented Property and Homelessness,Strategic Development and Finance,21101,R&M - Buildings - Planned,Wright Construction,"Repair of handrail at 29 Sally Port (chipping off the rust, sanding back hard and painting with a proprietary finish)",2654839 ,500.00, 10/09/2019,500.00,600.00
51,600240,Social Housing,Housing Rented Property and Homelessness,Strategic Development and Finance,21101,R&M - Buildings - Planned,Wright Construction,Replace the door at the Rookery flats & disposal of spoil & replacement of mortar reveals,2654837 ,"1,550.00", 10/09/2019,"1,550.00","1,860.00"
51,600240,Social Housing,Housing Rented Property and Homelessness,Strategic Development and Finance,46103,Hotel Expenses,Cornwall Woodburners Ltd,Flights and Accommodation to facilitate fire works,2656105 ,861.66, 10/09/2019,861.66,"1,034.00"
51,600240,Social Housing,Housing Rented Property and Homelessness,Strategic Development and Finance,21101,R&M - Buildings - Planned,Cornwall Woodburners Ltd,Re-line chimney at 42 Sally Port etc.,2656106 ,"2,608.33", 12/09/2019,718.75,"3,130.00"
51,600240,Social Housing,Housing Rented Property and Homelessness,Strategic Development and Finance,21101,R&M - Buildings - Planned,Cornwall Woodburners Ltd,Re-Line Chimney at 17 Sally Port etc.,2656106 ,"2,608.33", 12/09/2019,718.75,"3,130.00"
51,600240,Social Housing,Housing Rented Property and Homelessness,Strategic Development and Finance,21101,R&M - Buildings - Planned,Cornwall Woodburners Ltd,Re Line chimney & new stove etc. for 17 Ennor Close,2656106 ,"2,608.33", 12/09/2019,"1,170.83","3,130.00"
51,600240,Social Housing,Housing Rented Property and Homelessness,Strategic Development and Finance,21101,R&M - Buildings - Planned,Cornwall Woodburners Ltd,Re Line chimney & new stove etc. for 17 Ennor Close,2656106 ,"2,608.33", 12/09/2019,"-1,120.00","3,130.00"
51,600240,Social Housing,Housing Rented Property and Homelessness,Strategic Development and Finance,21101,R&M - Buildings - Planned,Cornwall Woodburners Ltd,Re Line chimney & new stove etc. for 17 Ennor Close,2656106 ,"2,608.33", 12/09/2019,"1,120.00","3,130.00"
51,600240,Social Housing,Housing Rented Property and Homelessness,Strategic Development and Finance,21101,R&M - Buildings - Planned,Cornwall Woodburners Ltd,Re-line chimney at 42 Sally Port etc.,2656106 ,"2,608.33", 12/09/2019,-862.50,"3,130.00"
51,600240,Social Housing,Housing Rented Property and Homelessness,Strategic Development and Finance,21101,R&M - Buildings - Planned,Cornwall Woodburners Ltd,Re-Line Chimney at 17 Sally Port etc.,2656106 ,"2,608.33", 12/09/2019,-862.50,"3,130.00"
51,600240,Social Housing,Housing Rented Property and Homelessness,Strategic Development and Finance,21101,R&M - Buildings - Planned,Cornwall Woodburners Ltd,Re Line chimney & new stove etc. for 17 Ennor Close,2656106 ,"2,608.33", 12/09/2019,"-1,405.00","3,130.00"
51,600240,Social Housing,Housing Rented Property and Homelessness,Strategic Development and Finance,21101,R&M - Buildings - Planned,Cornwall Woodburners Ltd,Re-line chimney at 42 Sally Port etc.,2656106 ,"2,608.33", 12/09/2019,862.50,"3,130.00"
51,600240,Social Housing,Housing Rented Property and Homelessness,Strategic Development and Finance,21101,R&M - Buildings - Planned,Cornwall Woodburners Ltd,Re-Line Chimney at 17 Sally Port etc.,2656106 ,"2,608.33", 12/09/2019,862.50,"3,130.00"
51,600240,Social Housing,Housing Rented Property and Homelessness,Strategic Development and Finance,21101,R&M - Buildings - Planned,Cornwall Woodburners Ltd,Re Line chimney & new stove etc. for 17 Ennor Close,2656106 ,"2,608.33", 12/09/2019,"1,405.00","3,130.00"
51,600240,Social Housing,Housing Rented Property and Homelessness,Strategic Development and Finance,21101,R&M - Buildings - Planned,Cornwall Woodburners Ltd,Re Line chimney & new stove etc. for 17 Ennor Close,2656106 ,"2,608.33", 12/09/2019,"-2,608.33","3,130.00"
51,600240,Social Housing,Housing Rented Property and Homelessness,Strategic Development and Finance,21101,R&M - Buildings - Planned,Cornwall Woodburners Ltd,Re Line chimney & new stove etc. for 17 Ennor Close,2656106 ,"2,608.33", 12/09/2019,"2,608.33","3,130.00"
51,600240,Social Housing,Housing Rented Property and Homelessness,Strategic Development and Finance,21101,R&M - Buildings - Planned,Wright Construction,Retention on Porthcressa Flats - Final payment,2658716 ,"5,186.38", 12/09/2019,"5,186.38","6,224.14"
51,600240,Social Housing,Housing Rented Property and Homelessness,Strategic Development and Finance,21208,R&M - Solid Fuel - Reactive,Cornwall Woodburners Ltd,Remedial works to condemned fires in social propertied,2656108 ,"1,482.35", 12/09/2019,"1,482.35","1,778.82"
51,600240,Social Housing,Housing Rented Property and Homelessness,Strategic Development and Finance,21132,21132- R&M Electrical Remedial (Works after Stat Testing),Davey & Gilbert Ltd,Remedial works 19 Social Housing properties as per quotation.,2663802 ,542.85, 17/09/2019,42.25,651.42
51,600240,Social Housing,Housing Rented Property and Homelessness,Strategic Development and Finance,21132,21132- R&M Electrical Remedial (Works after Stat Testing),Davey & Gilbert Ltd,Remedial works 19 Social Housing properties as per quotation.,2663802 ,542.85, 17/09/2019,25.37,651.42
51,600240,Social Housing,Housing Rented Property and Homelessness,Strategic Development and Finance,21132,21132- R&M Electrical Remedial (Works after Stat Testing),Davey & Gilbert Ltd,Remedial works 19 Social Housing properties as per quotation.,2663802 ,542.85, 17/09/2019,12.05,651.42
51,600240,Social Housing,Housing Rented Property and Homelessness,Strategic Development and Finance,21132,21132- R&M Electrical Remedial (Works after Stat Testing),Davey & Gilbert Ltd,Remedial works 19 Social Housing properties as per quotation.,2663802 ,542.85, 17/09/2019,12.62,651.42
51,600240,Social Housing,Housing Rented Property and Homelessness,Strategic Development and Finance,21132,21132- R&M Electrical Remedial (Works after Stat Testing),Davey & Gilbert Ltd,Remedial works 19 Social Housing properties as per quotation.,2663802 ,542.85, 17/09/2019,19.84,651.42
51,600240,Social Housing,Housing Rented Property and Homelessness,Strategic Development and Finance,21132,21132- R&M Electrical Remedial (Works after Stat Testing),Davey & Gilbert Ltd,Remedial works 19 Social Housing properties as per quotation.,2663802 ,542.85, 17/09/2019,19.94,651.42
51,600240,Social Housing,Housing Rented Property and Homelessness,Strategic Development and Finance,21132,21132- R&M Electrical Remedial (Works after Stat Testing),Davey & Gilbert Ltd,Remedial works 19 Social Housing properties as per quotation.,2663802 ,542.85, 17/09/2019,35.82,651.42
51,600240,Social Housing,Housing Rented Property and Homelessness,Strategic Development and Finance,21132,21132- R&M Electrical Remedial (Works after Stat Testing),Davey & Gilbert Ltd,Remedial works 19 Social Housing properties as per quotation.,2663802 ,542.85, 17/09/2019,55.62,651.42
51,600240,Social Housing,Housing Rented Property and Homelessness,Strategic Development and Finance,21132,21132- R&M Electrical Remedial (Works after Stat Testing),Davey & Gilbert Ltd,Remedial works 19 Social Housing properties as per quotation.,2663802 ,542.85, 17/09/2019,39.35,651.42
51,600240,Social Housing,Housing Rented Property and Homelessness,Strategic Development and Finance,21132,21132- R&M Electrical Remedial (Works after Stat Testing),Davey & Gilbert Ltd,Remedial works 19 Social Housing properties as per quotation.,2663802 ,542.85, 17/09/2019,20.53,651.42
51,600240,Social Housing,Housing Rented Property and Homelessness,Strategic Development and Finance,21132,21132- R&M Electrical Remedial (Works after Stat Testing),Davey & Gilbert Ltd,Remedial works 19 Social Housing properties as per quotation.,2663802 ,542.85, 17/09/2019,39.70,651.42
51,600240,Social Housing,Housing Rented Property and Homelessness,Strategic Development and Finance,21132,21132- R&M Electrical Remedial (Works after Stat Testing),Davey & Gilbert Ltd,Remedial works 19 Social Housing properties as per quotation.,2663802 ,542.85, 17/09/2019,18.50,651.42
51,600240,Social Housing,Housing Rented Property and Homelessness,Strategic Development and Finance,21132,21132- R&M Electrical Remedial (Works after Stat Testing),Davey & Gilbert Ltd,Remedial works 19 Social Housing properties as per quotation.,2663802 ,542.85, 17/09/2019,37.97,651.42
51,600240,Social Housing,Housing Rented Property and Homelessness,Strategic Development and Finance,21132,21132- R&M Electrical Remedial (Works after Stat Testing),Davey & Gilbert Ltd,Remedial works 19 Social Housing properties as per quotation.,2663802 ,542.85, 17/09/2019,26.87,651.42
51,600240,Social Housing,Housing Rented Property and Homelessness,Strategic Development and Finance,21132,21132- R&M Electrical Remedial (Works after Stat Testing),Davey & Gilbert Ltd,Remedial works 19 Social Housing properties as per quotation.,2663802 ,542.85, 17/09/2019,29.83,651.42
51,600240,Social Housing,Housing Rented Property and Homelessness,Strategic Development and Finance,21132,21132- R&M Electrical Remedial (Works after Stat Testing),Davey & Gilbert Ltd,Remedial works 19 Social Housing properties as per quotation.,2663802 ,542.85, 17/09/2019,11.61,651.42
51,600240,Social Housing,Housing Rented Property and Homelessness,Strategic Development and Finance,21132,21132- R&M Electrical Remedial (Works after Stat Testing),Davey & Gilbert Ltd,Remedial works 19 Social Housing properties as per quotation.,2663802 ,542.85, 17/09/2019,11.63,651.42
51,600240,Social Housing,Housing Rented Property and Homelessness,Strategic Development and Finance,21132,21132- R&M Electrical Remedial (Works after Stat Testing),Davey & Gilbert Ltd,Remedial works 19 Social Housing properties as per quotation.,2663802 ,542.85, 17/09/2019,41.54,651.42
51,600240,Social Housing,Housing Rented Property and Homelessness,Strategic Development and Finance,21132,21132- R&M Electrical Remedial (Works after Stat Testing),Davey & Gilbert Ltd,Remedial works 19 Social Housing properties as per quotation.,2663802 ,542.85, 17/09/2019,41.81,651.42
51,600240,Social Housing,Housing Rented Property and Homelessness,Strategic Development and Finance,21132,21132- R&M Electrical Remedial (Works after Stat Testing),Davey & Gilbert Ltd,Remedial works 19 Social Housing properties as per quotation.,2663819 ,"1,675.09", 17/09/2019,130.38,"2,010.11"
51,600240,Social Housing,Housing Rented Property and Homelessness,Strategic Development and Finance,21132,21132- R&M Electrical Remedial (Works after Stat Testing),Davey & Gilbert Ltd,Remedial works 19 Social Housing properties as per quotation.,2663819 ,"1,675.09", 17/09/2019,78.29,"2,010.11"
51,600240,Social Housing,Housing Rented Property and Homelessness,Strategic Development and Finance,21132,21132- R&M Electrical Remedial (Works after Stat Testing),Davey & Gilbert Ltd,Remedial works 19 Social Housing properties as per quotation.,2663819 ,"1,675.09", 17/09/2019,37.17,"2,010.11"
51,600240,Social Housing,Housing Rented Property and Homelessness,Strategic Development and Finance,21132,21132- R&M Electrical Remedial (Works after Stat Testing),Davey & Gilbert Ltd,Remedial works 19 Social Housing properties as per quotation.,2663819 ,"1,675.09", 17/09/2019,38.94,"2,010.11"
51,600240,Social Housing,Housing Rented Property and Homelessness,Strategic Development and Finance,21132,21132- R&M Electrical Remedial (Works after Stat Testing),Davey & Gilbert Ltd,Remedial works 19 Social Housing properties as per quotation.,2663819 ,"1,675.09", 17/09/2019,61.22,"2,010.11"
51,600240,Social Housing,Housing Rented Property and Homelessness,Strategic Development and Finance,21132,21132- R&M Electrical Remedial (Works after Stat Testing),Davey & Gilbert Ltd,Remedial works 19 Social Housing properties as per quotation.,2663819 ,"1,675.09", 17/09/2019,61.54,"2,010.11"
51,600240,Social Housing,Housing Rented Property and Homelessness,Strategic Development and Finance,21132,21132- R&M Electrical Remedial (Works after Stat Testing),Davey & Gilbert Ltd,Remedial works 19 Social Housing properties as per quotation.,2663819 ,"1,675.09", 17/09/2019,110.54,"2,010.11"
51,600240,Social Housing,Housing Rented Property and Homelessness,Strategic Development and Finance,21132,21132- R&M Electrical Remedial (Works after Stat Testing),Davey & Gilbert Ltd,Remedial works 19 Social Housing properties as per quotation.,2663819 ,"1,675.09", 17/09/2019,171.59,"2,010.11"
51,600240,Social Housing,Housing Rented Property and Homelessness,Strategic Development and Finance,21132,21132- R&M Electrical Remedial (Works after Stat Testing),Davey & Gilbert Ltd,Remedial works 19 Social Housing properties as per quotation.,2663819 ,"1,675.09", 17/09/2019,121.43,"2,010.11"
51,600240,Social Housing,Housing Rented Property and Homelessness,Strategic Development and Finance,21132,21132- R&M Electrical Remedial (Works after Stat Testing),Davey & Gilbert Ltd,Remedial works 19 Social Housing properties as per quotation.,2663819 ,"1,675.09", 17/09/2019,63.35,"2,010.11"
